Workbook

Sheet MLE_Full
A1: Logistic Regression via Excel Solver to Maximize Log-Likelihood (Minimize Deviance)
A2: Y = 1 if recommended the resataurant, else 0 | H2: b-hat
A3: Intercept Term | H3: -5.15334047 | M3: Deviance (-2LL) | R3: =-2*SUM(P17:P1016) -> 1108.175219
A4: X1 = the side dishes and salads are delicious | H4: 0.170544086 | M4: Akaike's Information Criterion (AIC) = | R4: =R3+2*11 -> 1130.175219
A5: X2 = the entrées are delicious | H5: 0.389906817 | M5: Bayesian Information Criterion (BIC) = | R5: =R3+11*LOG(1000) -> 1141.175219
A6: X3 = the desserts are delicious | H6: -0.1253362846
A7: X4 = parking at the restaurant is ample | H7: 0.1561470776 | M7: % Correctly Classified (Training) = | R7: =SUM(R17:R1016)/1000 -> 0.78
A8: X5 = the lighting in the restaurant is appropriate | H8: -0.04898096336 | M8: % Correctly Classified (Holdout) = | R8: =SUM(R1017:R1516)/500 -> 0.752
A9: X6 = the noise level in the restaurant is not distracting to me | H9: 0.1411632242
A10: X7 = the wait for beverage service is excessive | H10: -0.002619382955
A11: X8 = the wait for food service is excessive | H11: -0.4057062604
A12: X9 = the wait for the check is excessive | H12: -0.07871812692
A13: X10 = restaurant service personnel are courteous and friendly | H13: 0.2443852716
O15: Prob
A16: Customer | B16: Y | C16: X0 | D16: X1 | E16: X2 | F16: X3 | G16: X4 | H16: X5 | I16: X6 | J16: X7 | K16: X8 | L16: X9 | M16: X10 | O16: Y = 1 | P16: LL | Q16: PRED | R16: Correct?
A17: 1 | B17: 0 | C17: 1 | D17: 7 | E17: 7 | F17: 7 | G17: 6 | H17: 6 | I17: 6 | J17: 5 | K17: 4 | L17: 6 | M17: 5 | O17: =1/(1+EXP(-(H$3*C17+H$4*D17+H$5*E17+H$6*F17+H$7*G17+H$8*H17+H$9*I17+H$10*J17+H$11*K17+H$12*L17+H$13*M17))) -> 0.1818495615 | P17: =B17*LN(O17)+(1-B17)*LN(1-O17) -> -0.2007090491 | Q17: =IF(O17>0.5,1,0) -> 0 | R17: =IF(B17=Q17,1,0) -> 1
A18: 2 | B18: 0 | C18: 1 | D18: 7 | E18: 7 | F18: 7 | G18: 7 | H18: 7 | I18: 7 | J18: 2 | K18: 3 | L18: 2 | M18: 6 | O18: =1/(1+EXP(-(H$3*C18+H$4*D18+H$5*E18+H$6*F18+H$7*G18+H$8*H18+H$9*I18+H$10*J18+H$11*K18+H$12*L18+H$13*M18))) -> 0.4297882977 | P18: -0.5617475795 | Q18: 0 | R18: 1
A19: 3 | B19: 0 | C19: 1 | D19: 7 | E19: 7 | F19: 7 | G19: 5 | H19: 4 | I19: 7 | J19: 2 | K19: 3 | L19: 2 | M19: 7 | O19: 0.449255078 | P19: -0.5964835135 | Q19: 0 | R19: 1
A20: 4 | B20: 1 | C20: 1 | D20: 7 | E20: 6 | F20: 6 | G20: 4 | H20: 5 | I20: 6 | J20: 3 | K20: 3 | L20: 2 | M20: 4 | O20: 0.1750403536 | P20: -1.742738739 | Q20: 0 | R20: 0
A21: 5 | B21: 1 | C21: 1 | D21: 6 | E21: 7 | F21: 7 | G21: 7 | H21: 7 | I21: 7 | J21: 6 | K21: 5 | L21: 5 | M21: 6 | O21: 0.1807457004 | P21: -1.710664206 | Q21: 0 | R21: 0
A22: 6 | B22: 1 | C22: 1 | D22: 7 | E22: 7 | F22: 7 | G22: 6 | H22: 5 | I22: 5 | J22: 1 | K22: 1 | L22: 2 | M22: 7 | O22: 0.6071124602 | P22: -0.499041233 | Q22: 1 | R22: 1
A23: 7 | B23: 1 | C23: 1 | D23: 4 | E23: 5 | F23: 4 | G23: 7 | H23: 7 | I23: 7 | J23: 3 | K23: 3 | L23: 3 | M23: 2 | O23: 0.09474474459 | P23: -2.356568903 | Q23: 0 | R23: 0
A24: 8 | B24: 0 | C24: 1 | D24: 7 | E24: 7 | F24: 7 | G24: 6 | H24: 7 | I24: 7 | J24: 1 | K24: 1 | L24: 1 | M24: 7 | O24: 0.6678048254 | P24: -1.102032607 | Q24: 1 | R24: 0
A25: 9 | B25: 1 | C25: 1 | D25: 7 | E25: 7 | F25: 7 | G25: 7 | H25: 7 | I25: 7 | J25: 1 | K25: 1 | L25: 1 | M25: 7 | O25: 0.7014935909 | P25: -0.3545435158 | Q25: 1 | R25: 1
A26: 10 | B26: 0 | C26: 1 | D26: 7 | E26: 7 | F26: 7 | G26: 4 | H26: 7 | I26: 2 | J26: 1 | K26: 1 | L26: 1 | M26: 7 | O26: 0.4207154741 | P26: -0.545961513 | Q26: 0 | R26: 1
A27: 11 | B27: 0 | C27: 1 | D27: 7 | E27: 6 | F27: 7 | G27: 7 | H27: 7 | I27: 7 | J27: 2 | K27: 3 | L27: 3 | M27: 4 | O27: 0.2244167643 | P27: -0.2541399705 | Q27: 0 | R27: 1
A28: 12 | B28: 1 | C28: 1 | D28: 7 | E28: 7 | F28: 7 | G28: 3 | H28: 3 | I28: 3 | J28: 1 | K28: 1 | L28: 1 | M28: 7 | O28: 0.46533147 | P28: -0.7650052886 | Q28: 0 | R28: 0
A29: 13 | B29: 1 | C29: 1 | D29: 7 | E29: 7 | F29: 6 | G29: 7 | H29: 6 | I29: 4 | J29: 4 | K29: 4 | L29: 3 | M29: 5 | O29: 0.2199537712 | P29: -1.514337886 | Q29: 0 | R29: 0
A30: 14 | B30: 0 | C30: 1 | D30: 7 | E30: 7 | F30: 7 | G30: 6 | H30: 6 | I30: 6 | J30: 3 | K30: 2 | L30: 2 | M30: 4 | O30: 0.350525994 | P30: -0.4315924653 | Q30: 0 | R30: 1
A31: 15 | B31: 1 | C31: 1 | D31: 7 | E31: 7 | F31: 7 | G31: 4 | H31: 3 | I31: 4 | J31: 1 | K31: 1 | L31: 1 | M31: 6 | O31: 0.4785202374 | P31: -0.7370567756 | Q31: 0 | R31: 0
A32: 16 | B32: 1 | C32: 1 | D32: 7 | E32: 7 | F32: 7 | G32: 5 | H32: 6 | I32: 6 | J32: 1 | K32: 1 | L32: 1 | M32: 7 | O32: 0.6106259059 | P32: -0.4932707726 | Q32: 1 | R32: 1
A33: 17 | B33: 1 | C33: 1 | D33: 5 | E33: 6 | F33: 6 | G33: 7 | H33: 7 | I33: 7 | J33: 1 | K33: 1 | L33: 1 | M33: 7 | O33: 0.5618716785 | P33: -0.5764817852 | Q33: 1 | R33: 1
A34: 18 | B34: 1 | C34: 1 | D34: 2 | E34: 2 | F34: 2 | G34: 7 | H34: 7 | I34: 3 | J34: 5 | K34: 4 | L34: 5 | M34: 5 | O34: 0.01951153612 | P34: -3.936749393 | Q34: 0 | R34: 0
A35: 19 | B35: 1 | C35: 1 | D35: 2 | E35: 3 | F35: 4 | G35: 7 | H35: 6 | I35: 6 | J35: 4 | K35: 4 | L35: 4 | M35: 5 | O35: 0.03827238678 | P35: -3.263026615 | Q35: 0 | R35: 0
A36: 20 | B36: 0 | C36: 1 | D36: 7 | E36: 7 | F36: 7 | G36: 5 | H36: 6 | I36: 4 | J36: 1 | K36: 3 | L36: 3 | M36: 4 | O36: 0.177352708 | P36: -0.195227734 | Q36: 0 | R36: 1
A37: 21 | B37: 0 | C37: 1 | D37: 7 | E37: 7 | F37: 7 | G37: 7 | H37: 5 | I37: 6 | J37: 5 | K37: 6 | L37: 5 | M37: 5 | O37: 0.1159419777 | P37: -0.1232325824 | Q37: 0 | R37: 1
A38: 22 | B38: 0 | C38: 1 | D38: 7 | E38: 7 | F38: 7 | G38: 7 | H38: 7 | I38: 7 | J38: 2 | K38: 2 | L38: 2 | M38: 5 | O38: 0.4696887258 | P38: -0.634291135 | Q38: 0 | R38: 1
A39: 23 | B39: 0 | C39: 1 | D39: 6 | E39: 7 | F39: 6 | G39: 6 | H39: 3 | I39: 6 | J39: 3 | K39: 2 | L39: 3 | M39: 7 | O39: 0.5348048277 | P39: -0.7652982361 | Q39: 1 | R39: 0
A40: 24 | B40: 1 | C40: 1 | D40: 7 | E40: 7 | F40: 7 | G40: 5 | H40: 6 | I40: 5 | J40: 1 | K40: 1 | L40: 1 | M40: 7 | O40: 0.5765876206 | P40: -0.5506279636 | Q40: 1 | R40: 1
A41: 25 | B41: 1 | C41: 1 | D41: 7 | E41: 7 | F41: 7 | G41: 7 | H41: 7 | I41: 7 | J41: 1 | K41: 1 | L41: 2 | M41: 7 | O41: 0.6847531083 | P41: -0.3786969315 | Q41: 1 | R41: 1
A42: 26 | B42: 0 | C42: 1 | D42: 7 | E42: 6 | F42: 5 | G42: 6 | H42: 7 | I42: 7 | J42: 1 | K42: 1 | L42: 1 | M42: 6 | O42: 0.5780207834 | P42: -0.8627992158 | Q42: 1 | R42: 0
A43: 27 | B43: 1 | C43: 1 | D43: 7 | E43: 7 | F43: 7 | G43: 7 | H43: 7 | I43: 7 | J43: 1 | K43: 1 | L43: 1 | M43: 7 | O43: 0.7014935909 | P43: -0.3545435158 | Q43: 1 | R43: 1
A44: 28 | B44: 1 | C44: 1 | D44: 7 | E44: 7 | F44: 7 | G44: 7 | H44: 6 | I44: 5 | J44: 1 | K44: 1 | L44: 1 | M44: 7 | O44: 0.6504629725 | P44: -0.4300709043 | Q44: 1 | R44: 1
A45: 29 | B45: 0 | C45: 1 | D45: 2 | E45: 2 | F45: 2 | G45: 7 | H45: 7 | I45: 7 | J45: 1 | K45: 1 | L45: 1 | M45: 3 | O45: 0.09123119611 | P45: -0.09566455831 | Q45: 0 | R45: 1
A46: 30 | B46: 1 | C46: 1 | D46: 7 | E46: 6 | F46: 7 | G46: 7 | H46: 7 | I46: 7 | J46: 1 | K46: 1 | L46: 1 | M46: 7 | O46: 0.6140843661 | P46: -0.4876229562 | Q46: 1 | R46: 1
A47: 31 | B47: 1 | C47: 1 | D47: 6 | E47: 6 | F47: 5 | G47: 7 | H47: 7 | I47: 7 | J47: 4 | K47: 4 | L47: 4 | M47: 4 | O47: 0.1611569211 | P47: -1.825376724 | Q47: 0 | R47: 0
A48: 32 | B48: 0 | C48: 1 | D48: 4 | E48: 5 | F48: 5 | G48: 7 | H48: 5 | I48: 7 | J48: 1 | K48: 1 | L48: 1 | M48: 7 | O48: 0.477916617 | P48: -0.6499279663 | Q48: 0 | R48: 1
A49: 33 | B49: 0 | C49: 1 | D49: 7 | E49: 7 | F49: 7 | G49: 7 | H49: 7 | I49: 7 | J49: 4 | K49: 5 | L49: 5 | M49: 7 | O49: 0.251404547 | P49: -0.2895565575 | Q49: 0 | R49: 1
A50: 34 | B50: 1 | C50: 1 | D50: 6 | E50: 5 | F50: 7 | G50: 5 | H50: 7 | I50: 5 | J50: 3 | K50: 4 | L50: 3 | M50: 6 | O50: 0.08990977815 | P50: -2.408948576 | Q50: 0 | R50: 0
A51: 35 | B51: 0 | C51: 1 | D51: 5 | E51: 7 | F51: 7 | G51: 4 | H51: 1 | I51: 3 | J51: 1 | K51: 1 | L51: 1 | M51: 7 | O51: 0.4437698286 | P51: -0.586573093 | Q51: 0 | R51: 1
A52: 36 | B52: 0 | C52: 1 | D52: 6 | E52: 5 | F52: 5 | G52: 7 | H52: 7 | I52: 6 | J52: 2 | K52: 1 | L52: 1 | M52: 5 | O52: 0.3827675187 | P52: -0.482509533 | Q52: 0 | R52: 1
A53: 37 | B53: 0 | C53: 1 | D53: 6 | E53: 7 | F53: 7 | G53: 3 | H53: 2 | I53: 3 | J53: 3 | K53: 4 | L53: 4 | M53: 5 | O53: 0.09905735362 | P53: -0.1043136789 | Q53: 0 | R53: 1
A54: 38 | B54: 1 | C54: 1 | D54: 7 | E54: 7 | F54: 7 | G54: 4 | H54: 4 | I54: 3 | J54: 1 | K54: 1 | L54: 1 | M54: 7 | O54: 0.4920679455 | P54: -0.7091384714 | Q54: 0 | R54: 0
A55: 39 | B55: 0 | C55: 1 | D55: 5 | E55: 6 | F55: 6 | G55: 6 | H55: 6 | I55: 5 | J55: 3 | K55: 3 | L55: 4 | M55: 6 | O55: 0.1918673688 | P55: -0.2130290864 | Q55: 0 | R55: 1
A56: 40 | B56: 1 | C56: 1 | D56: 7 | E56: 7 | F56: 7 | G56: 4 | H56: 3 | I56: 2 | J56: 1 | K56: 1 | L56: 1 | M56: 7 | O56: 0.4690612919 | P56: -0.7570218327 | Q56: 0 | R56: 0
A57: 41 | B57: 1 | C57: 1 | D57: 7 | E57: 7 | F57: 7 | G57: 6 | H57: 7 | I57: 6 | J57: 1 | K57: 1 | L57: 1 | M57: 7 | O57: 0.6357836 | P57: -0.452897025 | Q57: 1 | R57: 1
A58: 42 | B58: 0 | C58: 1 | D58: 5 | E58: 5 | F58: 5 | G58: 7 | H58: 7 | I58: 7 | J58: 5 | K58: 3 | L58: 4 | M58: 5 | O58: 0.1732704634 | P58: -0.190277679 | Q58: 0 | R58: 1
A59: 43 | B59: 0 | C59: 1 | D59: 3 | E59: 4 | F59: 4 | G59: 4 | H59: 7 | I59: 6 | J59: 3 | K59: 3 | L59: 4 | M59: 2 | O59: 0.02914753795 | P59: -0.02958076657 | Q59: 0 | R59: 1
A60: 44 | B60: 0 | C60: 1 | D60: 7 | E60: 7 | F60: 7 | G60: 2 | H60: 5 | I60: 5 | J60: 4 | K60: 4 | L60: 4 | M60: 6 | O60: 0.1398909332 | P60: -0.1506960759 | Q60: 0 | R60: 1
A61: 45 | B61: 0 | C61: 1 | D61: 7 | E61: 5 | F61: 7 | G61: 7 | H61: 6 | I61: 7 | J61: 2 | K61: 1 | L61: 1 | M61: 7 | O61: 0.5302052518 | P61: -0.7554593856 | Q61: 1 | R61: 0
A62: 46 | B62: 0 | C62: 1 | D62: 6 | E62: 4 | F62: 6 | G62: 7 | H62: 7 | I62: 7 | J62: 1 | K62: 2 | L62: 1 | M62: 7 | O62: 0.3172986293 | P62: -0.3816977468 | Q62: 0 | R62: 1
A63: 47 | B63: 0 | C63: 1 | D63: 4 | E63: 5 | F63: 5 | G63: 4 | H63: 5 | I63: 4 | J63: 3 | K63: 3 | L63: 3 | M63: 4 | O63: 0.063711099 | P63: -0.06583119522 | Q63: 0 | R63: 1
A64: 48 | B64: 0 | C64: 1 | D64: 5 | E64: 5 | F64: 3 | G64: 6 | H64: 6 | I64: 6 | J64: 3 | K64: 2 | L64: 2 | M64: 6 | O64: 0.3213632133 | P64: -0.3876692183 | Q64: 0 | R64: 1
A65: 49 | B65: 0 | C65: 1 | D65: 6 | E65: 6 | F65: 6 | G65: 7 | H65: 7 | I65: 7 | J65: 5 | K65: 4 | L65: 3 | M65: 5 | O65: 0.1893103813 | P65: -0.2098700124 | Q65: 0 | R65: 1
A66: 50 | B66: 1 | C66: 1 | D66: 7 | E66: 7 | F66: 7 | G66: 4 | H66: 6 | I66: 7 | J66: 1 | K66: 1 | L66: 1 | M66: 7 | O66: 0.607057468 | P66: -0.499131817 | Q66: 1 | R66: 1
A67: 51 | B67: 0 | C67: 1 | D67: 5 | E67: 6 | F67: 5 | G67: 7 | H67: 7 | I67: 7 | J67: 2 | K67: 2 | L67: 2 | M67: 6 | O67: 0.411605784 | P67: -0.5303581203 | Q67: 0 | R67: 1
A68: 52 | B68: 0 | C68: 1 | D68: 7 | E68: 6 | F68: 6 | G68: 7 | H68: 7 | I68: 7 | J68: 1 | K68: 1 | L68: 1 | M68: 7 | O68: 0.6433306883 | P68: -1.030946224 | Q68: 1 | R68: 0
A69: 53 | B69: 0 | C69: 1 | D69: 4 | E69: 5 | F69: 5 | G69: 7 | H69: 7 | I69: 5 | J69: 5 | K69: 4 | L69: 5 | M69: 5 | O69: 0.07586387433 | P69: -0.07889589604 | Q69: 0 | R69: 1
A70: 54 | B70: 0 | C70: 1 | D70: 7 | E70: 7 | F70: 7 | G70: 7 | H70: 7 | I70: 7 | J70: 2 | K70: 3 | L70: 2 | M70: 7 | O70: 0.4904187552 | P70: -0.6741659791 | Q70: 0 | R70: 1
A71: 55 | B71: 0 | C71: 1 | D71: 6 | E71: 7 | F71: 6 | G71: 5 | H71: 5 | I71: 4 | J71: 4 | K71: 4 | L71: 3 | M71: 6 | O71: 0.1891706954 | P71: -0.2096977223 | Q71: 0 | R71: 1
A72: 56 | B72: 0 | C72: 1 | D72: 4 | E72: 4 | F72: 5 | G72: 7 | H72: 7 | I72: 7 | J72: 2 | K72: 2 | L72: 1 | M72: 6 | O72: 0.2263616289 | P72: -0.2566507353 | Q72: 0 | R72: 1
A73: 57 | B73: 0 | C73: 1 | D73: 7 | E73: 7 | F73: 7 | G73: 6 | H73: 5 | I73: 4 | J73: 2 | K73: 3 | L73: 1 | M73: 2 | O73: 0.159331198 | P73: -0.1735575111 | Q73: 0 | R73: 1
A74: 58 | B74: 0 | C74: 1 | D74: 7 | E74: 7 | F74: 7 | G74: 5 | H74: 6 | I74: 4 | J74: 4 | K74: 2 | L74: 4 | M74: 5 | O74: 0.2747067605 | P74: -0.3211792376 | Q74: 0 | R74: 1
A75: 59 | B75: 1 | C75: 1 | D75: 7 | E75: 7 | F75: 7 | G75: 7 | H75: 7 | I75: 7 | J75: 1 | K75: 1 | L75: 1 | M75: 6 | O75: 0.647948806 | P75: -0.4339435888 | Q75: 1 | R75: 1
A76: 60 | B76: 1 | C76: 1 | D76: 7 | E76: 6 | F76: 6 | G76: 6 | H76: 6 | I76: 7 | J76: 3 | K76: 1 | L76: 3 | M76: 4 | O76: 0.398157741 | P76: -0.9209070182 | Q76: 0 | R76: 0
B77: 0 | C77: 1 | D77: 7 | E77: 7 | F77: 6 | G77: 7 | H77: 7 | I77: 7 | J77: 1 | K77: 1 | L77: 1 | M77: 7 | O77: 0.7270599265 | P77: -1.298503019 | Q77: 1 | R77: 0
B78: 1 | C78: 1 | D78: 6 | E78: 7 | F78: 7 | G78: 5 | H78: 5 | I78: 6 | J78: 1 | K78: 2 | L78: 2 | M78: 7 | O78: 0.4610680743 | P78: -0.7742095802 | Q78: 0 | R78: 0
B79: 1 | C79: 1 | D79: 7 | E79: 7 | F79: 7 | G79: 7 | H79: 7 | I79: 6 | J79: 1 | K79: 1 | L79: 1 | M79: 7 | O79: 0.6711204678 | P79: -0.3988066235 | Q79: 1 | R79: 1
B80: 1 | C80: 1 | D80: 6 | E80: 6 | F80: 6 | G80: 5 | H80: 7 | I80: 6 | J80: 1 | K80: 1 | L80: 1 | M80: 7 | O80: 0.4914629201 | P80: -0.7103687845 | Q80: 0 | R80: 0
B81: 1 | C81: 1 | D81: 7 | E81: 6 | F81: 7 | G81: 6 | H81: 7 | I81: 7 | J81: 1 | K81: 1 | L81: 1 | M81: 7 | O81: 0.5764864837 | P81: =B81*LN(O81)+(1-B81)*LN(1-O81) -> -0.550803385 | Q81: =IF(O81>0.5,1,0) -> 1 | R81: =IF(B81=Q81,1,0) -> 1
B82: 0 | C82: 1 | D82: 7 | E82: 7 | F82: 7 | G82: 7 | H82: 7 | I82: 7 | J82: 1 | K82: 2 | L82: 1 | M82: 7 | O82: =1/(1+EXP(-(H$3*C82+H$4*D82+H$5*E82+H$6*F82+H$7*G82+H$8*H82+H$9*I82+H$10*J82+H$11*K82+H$12*L82+H$13*M82))) -> 0.610333456 | P82: -0.942463921 | Q82: 1 | R82: 0
B83: 1 | C83: 1 | D83: 7 | E83: 7 | F83: 7 | G83: 7 | H83: 7 | I83: 7 | J83: 1 | K83: 1 | L83: 1 | M83: 7 | O83: 0.7014935909 | P83: -0.3545435158 | Q83: 1 | R83: 1
B84: 1 | C84: 1 | D84: 7 | E84: 7 | F84: 7 | G84: 4 | H84: 4 | I84: 7 | J84: 3 | K84: 3 | L84: 2 | M84: 6 | O84: 0.3527820471 | P84: -1.041904843 | Q84: 0 | R84: 0
B85: 0 | C85: 1 | D85: 1 | E85: 2 | F85: 1 | G85: 5 | H85: 5 | I85: 4 | J85: 6 | K85: 5 | L85: 4 | M85: 4 | O85: 0.009859468832 | P85: -0.009908395253 | Q85: 0 | R85: 1
B86: 1 | C86: 1 | D86: 1 | E86: 1 | F86: 1 | G86: 2 | H86: 1 | I86: 3 | J86: 3 | K86: 4 | L86: 4 | M86: 3 | O86: 0.005252300997 | P86: -5.249089013 | Q86: 0 | R86: 0
B87: 0 | C87: 1 | D87: 4 | E87: 6 | F87: 5 | G87: 6 | H87: 5 | I87: 5 | J87: 3 | K87: 5 | L87: 4 | M87: 2 | O87: 0.03830553873 | P87: -0.03905848659 | Q87: 0 | R87: 1
B88: 0 | C88: 1 | D88: 5 | E88: 5 | F88: 4 | G88: 7 | H88: 7 | I88: 7 | J88: 2 | K88: 3 | L88: 3 | M88: 6 | O88: 0.2485564659 | P88: -0.2857592102 | Q88: 0 | R88: 1
B89: 0 | C89: 1 | D89: 7 | E89: 7 | F89: 7 | G89: 4 | H89: 4 | I89: 5 | J89: 3 | K89: 2 | L89: 1 | M89: 7 | O89: 0.4599983089 | P89: -0.6161830077 | Q89: 0 | R89: 1
B90: 0 | C90: 1 | D90: 7 | E90: 7 | F90: 7 | G90: 7 | H90: 4 | I90: 7 | J90: 3 | K90: 3 | L90: 3 | M90: 7 | O90: 0.5068185045 | P90: -0.7068780276 | Q90: 1 | R90: 0
B91: 1 | C91: 1 | D91: 7 | E91: 7 | F91: 7 | G91: 5 | H91: 4 | I91: 4 | J91: 1 | K91: 1 | L91: 1 | M91: 7 | O91: 0.5660073392 | P91: -0.569148234 | Q91: 1 | R91: 1
B92: 0 | C92: 1 | D92: 5 | E92: 5 | F92: 5 | G92: 7 | H92: 7 | I92: 6 | J92: 1 | K92: 1 | L92: 1 | M92: 7 | O92: 0.4608373563 | P92: -0.6177380028 | Q92: 0 | R92: 1
B93: 0 | C93: 1 | D93: 6 | E93: 6 | F93: 6 | G93: 5 | H93: 7 | I93: 6 | J93: 1 | K93: 1 | L93: 1 | M93: 7 | O93: 0.4914629201 | P93: -0.676217146 | Q93: 0 | R93: 1
B94: 0 | C94: 1 | D94: 6 | E94: 7 | F94: 7 | G94: 5 | H94: 6 | I94: 6 | J94: 3 | K94: 4 | L94: 3 | M94: 6 | O94: 0.2067252169 | P94: -0.2315856066 | Q94: 0 | R94: 1
B95: 0 | C95: 1 | D95: 7 | E95: 7 | F95: 7 | G95: 5 | H95: 5 | I95: 5 | J95: 1 | K95: 1 | L95: 1 | M95: 5 | O95: 0.4672945493 | P95: -0.6297866329 | Q95: 0 | R95: 1
B96: 0 | C96: 1 | D96: 7 | E96: 7 | F96: 7 | G96: 6 | H96: 7 | I96: 7 | J96: 1 | K96: 1 | L96: 1 | M96: 6 | O96: 0.6115632445 | P96: -0.9456249141 | Q96: 1 | R96: 0
B97: 1 | C97: 1 | D97: 6 | E97: 7 | F97: 5 | G97: 7 | H97: 5 | I97: 6 | J97: 1 | K97: 1 | L97: 1 | M97: 7 | O97: 0.7091681803 | P97: -0.3436625729 | Q97: 1 | R97: 1
B98: 0 | C98: 1 | D98: 4 | E98: 6 | F98: 5 | G98: 6 | H98: 4 | I98: 5 | J98: 1 | K98: 1 | L98: 1 | M98: 7 | O98: 0.4780199795 | P98: -0.6501259668 | Q98: 0 | R98: 1
B99: 0 | C99: 1 | D99: 6 | E99: 5 | F99: 6 | G99: 6 | H99: 6 | I99: 5 | J99: 3 | K99: 2 | L99: 3 | M99: 7 | O99: 0.2832342228 | P99: -0.3330061623 | Q99: 0 | R99: 1
B100: 0 | C100: 1 | D100: 6 | E100: 6 | F100: 5 | G100: 7 | H100: 7 | I100: 7 | J100: 3 | K100: 2 | L100: 2 | M100: 4 | O100: 0.3366683115 | P100: -0.4104801296 | Q100: 0 | R100: 1
B101: 0 | C101: 1 | D101: 5 | E101: 6 | F101: 5 | G101: 5 | H101: 4 | I101: 5 | J101: 3 | K101: 3 | L101: 3 | M101: 5 | O101: 0.1770537022 | P101: -0.1948643322 | Q101: 0 | R101: 1
B102: 0 | C102: 1 | D102: 5 | E102: 4 | F102: 5 | G102: 7 | H102: 7 | I102: 7 | J102: 2 | K102: 2 | L102: 1 | M102: 6 | O102: 0.2576102464 | P102: -0.2978808994 | Q102: 0 | R102: 1
B103: 1 | C103: 1 | D103: 7 | E103: 7 | F103: 7 | G103: 7 | H103: 7 | I103: 7 | J103: 2 | K103: 1 | L103: 1 | M103: 7 | O103: 0.7009448019 | P103: -0.355326137 | Q103: 1 | R103: 1
B104: 1 | C104: 1 | D104: 6 | E104: 7 | F104: 6 | G104: 6 | H104: 7 | I104: 7 | J104: 1 | K104: 2 | L104: 1 | M104: 7 | O104: 0.5615264085 | P104: -0.5770964738 | Q104: 1 | R104: 1
B105: 1 | C105: 1 | D105: 7 | E105: 7 | F105: 7 | G105: 6 | H105: 6 | I105: 6 | J105: 1 | K105: 2 | L105: 2 | M105: 7 | O105: 0.530379193 | P105: -0.6341630698 | Q105: 1 | R105: 1
B106: 0 | C106: 1 | D106: 7 | E106: 7 | F106: 7 | G106: 7 | H106: 5 | I106: 6 | J106: 1 | K106: 1 | L106: 1 | M106: 7 | O106: 0.6923692182 | P106: -1.178854975 | Q106: 1 | R106: 0
B107: 1 | C107: 1 | D107: 7 | E107: 7 | F107: 7 | G107: 4 | H107: 7 | I107: 7 | J107: 1 | K107: 1 | L107: 2 | M107: 7 | O107: 0.5762165618 | P107: -0.5512717136 | Q107: 1 | R107: 1
B108: 0 | C108: 1 | D108: 7 | E108: 7 | F108: 7 | G108: 4 | H108: 3 | I108: 3 | J108: 1 | K108: 3 | L108: 1 | M108: 7 | O108: 0.3112756129 | P108: -0.3729141067 | Q108: 0 | R108: 1
B109: 0 | C109: 1 | D109: 5 | E109: 5 | F109: 4 | G109: 2 | H109: 6 | I109: 4 | J109: 1 | K109: 1 | L109: 1 | M109: 7 | O109: 0.2600484617 | P109: -0.3011705838 | Q109: 0 | R109: 1
B110: 0 | C110: 1 | D110: 7 | E110: 7 | F110: 5 | G110: 6 | H110: 7 | I110: 7 | J110: 3 | K110: 3 | L110: 2 | M110: 6 | O110: 0.4524419949 | P110: -0.6022868776 | Q110: 0 | R110: 1
B111: 0 | C111: 1 | D111: 6 | E111: 7 | F111: 7 | G111: 5 | H111: 5 | I111: 6 | J111: 2 | K111: 2 | L111: 2 | M111: 5 | O111: 0.3435681267 | P111: -0.4209363632 | Q111: 0 | R111: 1
B112: 0 | C112: 1 | D112: 7 | E112: 7 | F112: 7 | G112: 7 | H112: 6 | I112: 6 | J112: 5 | K112: 4 | L112: 5 | M112: 6 | O112: 0.2641292367 | P112: -0.306700769 | Q112: 0 | R112: 1
B113: 1 | C113: 1 | D113: 7 | E113: 7 | F113: 7 | G113: 7 | H113: 7 | I113: 7 | J113: 1 | K113: 1 | L113: 1 | M113: 7 | O113: 0.7014935909 | P113: -0.3545435158 | Q113: 1 | R113: 1
B114: 0 | C114: 1 | D114: 6 | E114: 5 | F114: 6 | G114: 7 | H114: 7 | I114: 7 | J114: 2 | K114: 2 | L114: 1 | M114: 7 | O114: 0.4063857853 | P114: -0.5215256409 | Q114: 0 | R114: 1
B115: 1 | C115: 1 | D115: 7 | E115: 7 | F115: 7 | G115: 7 | H115: 7 | I115: 7 | J115: 1 | K115: 1 | L115: 1 | M115: 7 | O115: 0.7014935909 | P115: -0.3545435158 | Q115: 1 | R115: 1
B116: 0 | C116: 1 | D116: 4 | E116: 5 | F116: 4 | G116: 4 | H116: 7 | I116: 7 | J116: 1 | K116: 2 | L116: 1 | M116: 5 | O116: 0.1940454853 | P116: -0.2157279715 | Q116: 0 | R116: 1
B117: 0 | C117: 1 | D117: 3 | E117: 4 | F117: 4 | G117: 7 | H117: 6 | I117: 7 | J117: 1 | K117: 1 | L117: 1 | M117: 7 | O117: 0.3606632488 | P117: -0.4473239662 | Q117: 0 | R117: 1
B118: 0 | C118: 1 | D118: 7 | E118: 7 | F118: 7 | G118: 7 | H118: 7 | I118: 5 | J118: 2 | K118: 1 | L118: 3 | M118: 5 | O118: 0.4808263395 | P118: -0.6555168457 | Q118: 0 | R118: 1
B119: 0 | C119: 1 | D119: 4 | E119: 4 | F119: 3 | G119: 7 | H119: 7 | I119: 7 | J119: 5 | K119: 4 | L119: 5 | M119: 6 | O119: 0.1078934602 | P119: -0.1141697143 | Q119: 0 | R119: 1
B120: 0 | C120: 1 | D120: 5 | E120: 5 | F120: 5 | G120: 7 | H120: 4 | I120: 7 | J120: 3 | K120: 4 | L120: 3 | M120: 5 | O120: 0.1496396244 | P120: -0.162095048 | Q120: 0 | R120: 1
B121: 0 | C121: 1 | D121: 7 | E121: 7 | F121: 7 | G121: 5 | H121: 5 | I121: 2 | J121: 3 | K121: 1 | L121: 2 | M121: 7 | O121: 0.4626484934 | P121: -0.6211028239 | Q121: 0 | R121: 1
B122: 0 | C122: 1 | D122: 7 | E122: 6 | F122: 7 | G122: 6 | H122: 6 | I122: 6 | J122: 1 | K122: 1 | L122: 1 | M122: 5 | O122: 0.432272263 | P122: -0.5661133115 | Q122: 0 | R122: 1
B123: 0 | C123: 1 | D123: 6 | E123: 5 | F123: 5 | G123: 5 | H123: 4 | I123: 4 | J123: 3 | K123: 3 | L123: 4 | M123: 6 | O123: 0.1504217968 | P123: -0.1630152842 | Q123: 0 | R123: 1
B124: 0 | C124: 1 | D124: 5 | E124: 6 | F124: 6 | G124: 6 | H124: 5 | I124: 4 | J124: 2 | K124: 2 | L124: 2 | M124: 2 | O124: 0.1254411025 | P124: -0.1340356368 | Q124: 0 | R124: 1
B125: 1 | C125: 1 | D125: 5 | E125: 6 | F125: 5 | G125: 4 | H125: 7 | I125: 7 | J125: 1 | K125: 1 | L125: 1 | M125: 7 | O125: 0.4764316552 | P125: -0.741430997 | Q125: 0 | R125: 0
B126: 0 | C126: 1 | D126: 5 | E126: 5 | F126: 4 | G126: 7 | H126: 7 | I126: 6 | J126: 3 | K126: 5 | L126: 4 | M126: 6 | O126: 0.1052468547 | P126: -0.111207414 | Q126: 0 | R126: 1
B127: 1 | C127: 1 | D127: 5 | E127: 4 | F127: 5 | G127: 7 | H127: 7 | I127: 6 | J127: 2 | K127: 1 | L127: 2 | M127: 3 | O127: 0.1671784603 | P127: -1.788693413 | Q127: 0 | R127: 0
B128: 1 | C128: 1 | D128: 7 | E128: 7 | F128: 7 | G128: 7 | H128: 7 | I128: 7 | J128: 1 | K128: 1 | L128: 1 | M128: 7 | O128: 0.7014935909 | P128: -0.3545435158 | Q128: 1 | R128: 1
B129: 1 | C129: 1 | D129: 6 | E129: 7 | F129: 7 | G129: 6 | H129: 5 | I129: 6 | J129: 5 | K129: 4 | L129: 5 | M129: 5 | O129: 0.1755617423 | P129: -1.73976449 | Q129: 0 | R129: 0
B130: 1 | C130: 1 | D130: 7 | E130: 7 | F130: 7 | G130: 5 | H130: 5 | I130: 5 | J130: 1 | K130: 1 | L130: 1 | M130: 7 | O130: 0.5884984927 | P130: -0.5301809135 | Q130: 1 | R130: 1
B131: 1 | C131: 1 | D131: 7 | E131: 7 | F131: 7 | G131: 7 | H131: 7 | I131: 7 | J131: 1 | K131: 1 | L131: 1 | M131: 7 | O131: 0.7014935909 | P131: -0.3545435158 | Q131: 1 | R131: 1
B132: 0 | C132: 1 | D132: 4 | E132: 3 | F132: 3 | G132: 7 | H132: 7 | I132: 7 | J132: 2 | K132: 1 | L132: 3 | M132: 7 | O132: 0.2941008457 | P132: -0.3482828926 | Q132: 0 | R132: 1
B133: 0 | C133: 1 | D133: 7 | E133: 7 | F133: 7 | G133: 7 | H133: 6 | I133: 7 | J133: 1 | K133: 1 | L133: 1 | M133: 7 | O133: 0.7116479737 | P133: -1.243573232 | Q133: 1 | R133: 0
B134: 0 | C134: 1 | D134: 6 | E134: 7 | F134: 7 | G134: 5 | H134: 4 | I134: 5 | J134: 1 | K134: 1 | L134: 2 | M134: 6 | O134: 0.4782874539 | P134: -0.6506385207 | Q134: 0 | R134: 1
B135: 0 | C135: 1 | D135: 3 | E135: 4 | F135: 5 | G135: 6 | H135: 6 | I135: 7 | J135: 2 | K135: 3 | L135: 1 | M135: 4 | O135: 0.08308445871 | P135: -0.08673991425 | Q135: 0 | R135: 1
B136: 0 | C136: 1 | D136: 7 | E136: 7 | F136: 7 | G136: 5 | H136: 5 | I136: 5 | J136: 1 | K136: 1 | L136: 1 | M136: 6 | O136: 0.5283137799 | P136: -0.7514413025 | Q136: 1 | R136: 0
B137: 0 | C137: 1 | D137: 7 | E137: 7 | F137: 7 | G137: 7 | H137: 7 | I137: 7 | J137: 1 | K137: 1 | L137: 1 | M137: 7 | O137: 0.7014935909 | P137: -1.208963875 | Q137: 1 | R137: 0
B138: 0 | C138: 1 | D138: 7 | E138: 6 | F138: 7 | G138: 6 | H138: 6 | I138: 4 | J138: 1 | K138: 1 | L138: 1 | M138: 5 | O138: 0.3647253576 | P138: -0.4536978659 | Q138: 0 | R138: 1
B139: 0 | C139: 1 | D139: 6 | E139: 6 | F139: 6 | G139: 6 | H139: 6 | I139: 7 | J139: 2 | K139: 1 | L139: 1 | M139: 3 | O139: 0.3389401488 | P139: -0.4139108967 | Q139: 0 | R139: 1
B140: 1 | C140: 1 | D140: 7 | E140: 7 | F140: 7 | G140: 7 | H140: 7 | I140: 7 | J140: 1 | K140: 1 | L140: 1 | M140: 7 | O140: 0.7014935909 | P140: -0.3545435158 | Q140: 1 | R140: 1
B141: 1 | C141: 1 | D141: 7 | E141: 7 | F141: 7 | G141: 6 | H141: 5 | I141: 5 | J141: 4 | K141: 5 | L141: 5 | M141: 4 | O141: 0.1029560414 | P141: -2.273453165 | Q141: 0 | R141: 0
B142: 0 | C142: 1 | D142: 7 | E142: 7 | F142: 7 | G142: 4 | H142: 5 | I142: 4 | J142: 6 | K142: 7 | L142: 6 | M142: 6 | O142: 0.04631537733 | P142: -0.04742224639 | Q142: 0 | R142: 1
B143: 1 | C143: 1 | D143: 7 | E143: 7 | F143: 6 | G143: 7 | H143: 7 | I143: 7 | J143: 1 | K143: 2 | L143: 1 | M143: 6 | O143: 0.5816778912 | P143: -0.5418384361 | Q143: 1 | R143: 1
B144: 1 | C144: 1 | D144: 7 | E144: 7 | F144: 7 | G144: 7 | H144: 7 | I144: 7 | J144: 1 | K144: 1 | L144: 1 | M144: 7 | O144: 0.7014935909 | P144: -0.3545435158 | Q144: 1 | R144: 1
B145: 1 | C145: 1 | D145: 7 | E145: 7 | F145: 7 | G145: 7 | H145: 7 | I145: 7 | J145: 1 | K145: 1 | L145: 1 | M145: 7 | O145: 0.7014935909 | P145: =B145*LN(O145)+(1-B145)*LN(1-O145) -> -0.3545435158 | Q145: =IF(O145>0.5,1,0) -> 1 | R145: =IF(B145=Q145,1,0) -> 1
B146: 1 | C146: 1 | D146: 7 | E146: 7 | F146: 7 | G146: 4 | H146: 5 | I146: 4 | J146: 1 | K146: 1 | L146: 1 | M146: 7 | O146: =1/(1+EXP(-(H$3*C146+H$4*D146+H$5*E146+H$6*F146+H$7*G146+H$8*H146+H$9*I146+H$10*J146+H$11*K146+H$12*L146+H$13*M146))) -> 0.5151082445 | P146: -0.6633782168 | Q146: 1 | R146: 1
B147: 1 | C147: 1 | D147: 7 | E147: 7 | F147: 7 | G147: 7 | H147: 7 | I147: 7 | J147: 1 | K147: 1 | L147: 1 | M147: 7 | O147: 0.7014935909 | P147: -0.3545435158 | Q147: 1 | R147: 1
B148: 1 | C148: 1 | D148: 5 | E148: 6 | F148: 7 | G148: 5 | H148: 6 | I148: 5 | J148: 2 | K148: 3 | L148: 4 | M148: 3 | O148: 0.07944281697 | P148: -2.532717799 | Q148: 0 | R148: 0
B149: 1 | C149: 1 | D149: 7 | E149: 7 | F149: 7 | G149: 7 | H149: 7 | I149: 7 | J149: 1 | K149: 1 | L149: 1 | M149: 7 | O149: 0.7014935909 | P149: -0.3545435158 | Q149: 1 | R149: 1
B150: 1 | C150: 1 | D150: 6 | E150: 7 | F150: 6 | G150: 7 | H150: 7 | I150: 7 | J150: 1 | K150: 1 | L150: 1 | M150: 7 | O150: 0.6919416798 | P150: -0.3682536047 | Q150: 1 | R150: 1
B151: 0 | C151: 1 | D151: 5 | E151: 4 | F151: 5 | G151: 4 | H151: 5 | I151: 5 | J151: 5 | K151: 4 | L151: 6 | M151: 3 | O151: 0.02515432115 | P151: -0.02547609862 | Q151: 0 | R151: 1
B152: 0 | C152: 1 | D152: 7 | E152: 7 | F152: 7 | G152: 6 | H152: 6 | I152: 7 | J152: 2 | K152: 1 | L152: 2 | M152: 7 | O152: 0.6605882458 | P152: -1.080541295 | Q152: 1 | R152: 0
B153: 1 | C153: 1 | D153: 7 | E153: 7 | F153: 6 | G153: 6 | H153: 5 | I153: 4 | J153: 1 | K153: 1 | L153: 1 | M153: 7 | O153: 0.6220084461 | P153: -0.4748016073 | Q153: 1 | R153: 1
B154: 1 | C154: 1 | D154: 6 | E154: 7 | F154: 7 | G154: 5 | H154: 5 | I154: 6 | J154: 1 | K154: 1 | L154: 1 | M154: 6 | O154: 0.5209865499 | P154: -0.6520310534 | Q154: 1 | R154: 1
B155: 1 | C155: 1 | D155: 7 | E155: 7 | F155: 6 | G155: 6 | H155: 6 | I155: 5 | J155: 1 | K155: 1 | L155: 1 | M155: 7 | O155: 0.6434257359 | P155: -0.4409486651 | Q155: 1 | R155: 1
B156: 1 | C156: 1 | D156: 7 | E156: 7 | F156: 6 | G156: 6 | H156: 6 | I156: 5 | J156: 2 | K156: 1 | L156: 2 | M156: 7 | O156: 0.6245548041 | P156: -0.4707161965 | Q156: 1 | R156: 1
B157: 0 | C157: 1 | D157: 6 | E157: 6 | F157: 5 | G157: 7 | H157: 7 | I157: 5 | J157: 1 | K157: 1 | L157: 2 | M157: 3 | O157: 0.3113225221 | P157: -0.3729822193 | Q157: 0 | R157: 1
B158: 1 | C158: 1 | D158: 7 | E158: 7 | F158: 7 | G158: 7 | H158: 7 | I158: 7 | J158: 1 | K158: 1 | L158: 2 | M158: 7 | O158: 0.6847531083 | P158: -0.3786969315 | Q158: 1 | R158: 1
B159: 0 | C159: 1 | D159: 5 | E159: 4 | F159: 4 | G159: 7 | H159: 7 | I159: 5 | J159: 3 | K159: 1 | L159: 1 | M159: 4 | O159: 0.2139798731 | P159: -0.2407728802 | Q159: 0 | R159: 1
B160: 0 | C160: 1 | D160: 4 | E160: 4 | F160: 5 | G160: 7 | H160: 6 | I160: 7 | J160: 2 | K160: 2 | L160: 2 | M160: 4 | O160: 0.1483655275 | P160: -0.1605978671 | Q160: 0 | R160: 1
B161: 1 | C161: 1 | D161: 6 | E161: 7 | F161: 7 | G161: 7 | H161: 7 | I161: 7 | J161: 1 | K161: 1 | L161: 1 | M161: 6 | O161: 0.60813774 | P161: -0.4973538767 | Q161: 1 | R161: 1
B162: 0 | C162: 1 | D162: 6 | E162: 6 | F162: 6 | G162: 6 | H162: 7 | I162: 7 | J162: 1 | K162: 1 | L162: 1 | M162: 6 | O162: 0.5046932101 | P162: -0.7025779308 | Q162: 1 | R162: 0
B163: 0 | C163: 1 | D163: 7 | E163: 7 | F163: 7 | G163: 4 | H163: 3 | I163: 4 | J163: 1 | K163: 2 | L163: 2 | M163: 5 | O163: 0.3068724979 | P163: -0.3665413109 | Q163: 0 | R163: 1
B164: 1 | C164: 1 | D164: 6 | E164: 5 | F164: 5 | G164: 6 | H164: 7 | I164: 7 | J164: 2 | K164: 2 | L164: 2 | M164: 7 | O164: 0.380257447 | P164: -0.9669067637 | Q164: 0 | R164: 0
B165: 0 | C165: 1 | D165: 7 | E165: 7 | F165: 7 | G165: 6 | H165: 4 | I165: 5 | J165: 1 | K165: 1 | L165: 1 | M165: 6 | O165: 0.5789597324 | P165: -0.8650268024 | Q165: 1 | R165: 0
B166: 0 | C166: 1 | D166: 3 | E166: 2 | F166: 3 | G166: 5 | H166: 6 | I166: 6 | J166: 6 | K166: 4 | L166: 4 | M166: 6 | O166: 0.03257235557 | P166: -0.03311464299 | Q166: 0 | R166: 1
B167: 0 | C167: 1 | D167: 5 | E167: 4 | F167: 6 | G167: 4 | H167: 5 | I167: 5 | J167: 3 | K167: 3 | L167: 3 | M167: 7 | O167: 0.1035910979 | P167: -0.1093586062 | Q167: 0 | R167: 1
B168: 1 | C168: 1 | D168: 6 | E168: 7 | F168: 6 | G168: 5 | H168: 4 | I168: 7 | J168: 1 | K168: 1 | L168: 1 | M168: 7 | O168: 0.6556257888 | P168: -0.4221650968 | Q168: 1 | R168: 1
B169: 0 | C169: 1 | D169: 7 | E169: 7 | F169: 7 | G169: 7 | H169: 7 | I169: 7 | J169: 1 | K169: 1 | L169: 1 | M169: 7 | O169: 0.7014935909 | P169: -1.208963875 | Q169: 1 | R169: 0
B170: 1 | C170: 1 | D170: 7 | E170: 7 | F170: 7 | G170: 7 | H170: 7 | I170: 7 | J170: 1 | K170: 1 | L170: 1 | M170: 7 | O170: 0.7014935909 | P170: -0.3545435158 | Q170: 1 | R170: 1
B171: 0 | C171: 1 | D171: 7 | E171: 7 | F171: 7 | G171: 6 | H171: 5 | I171: 5 | J171: 2 | K171: 3 | L171: 3 | M171: 6 | O171: 0.3313812108 | P171: -0.402541203 | Q171: 0 | R171: 1
B172: 1 | C172: 1 | D172: 6 | E172: 6 | F172: 6 | G172: 7 | H172: 7 | I172: 7 | J172: 1 | K172: 1 | L172: 1 | M172: 7 | O172: 0.6033171078 | P172: -0.5053123368 | Q172: 1 | R172: 1
B173: 0 | C173: 1 | D173: 2 | E173: 1 | F173: 1 | G173: 5 | H173: 6 | I173: 7 | J173: 7 | K173: 6 | L173: 6 | M173: 4 | O173: 0.00656099429 | P173: -0.006582612222 | Q173: 0 | R173: 1
B174: 0 | C174: 1 | D174: 5 | E174: 6 | F174: 6 | G174: 4 | H174: 4 | I174: 4 | J174: 2 | K174: 2 | L174: 1 | M174: 7 | O174: 0.2881159582 | P174: -0.3398402435 | Q174: 0 | R174: 1
B175: 1 | C175: 1 | D175: 6 | E175: 6 | F175: 6 | G175: 7 | H175: 7 | I175: 7 | J175: 1 | K175: 1 | L175: 1 | M175: 7 | O175: 0.6033171078 | P175: -0.5053123368 | Q175: 1 | R175: 1
B176: 1 | C176: 1 | D176: 7 | E176: 7 | F176: 7 | G176: 6 | H176: 6 | I176: 6 | J176: 1 | K176: 1 | L176: 1 | M176: 7 | O176: 0.6470485963 | P176: -0.4353338771 | Q176: 1 | R176: 1
B177: 0 | C177: 1 | D177: 6 | E177: 6 | F177: 7 | G177: 6 | H177: 7 | I177: 4 | J177: 1 | K177: 1 | L177: 1 | M177: 7 | O177: 0.4290649146 | P177: -0.5604797616 | Q177: 0 | R177: 1
B178: 1 | C178: 1 | D178: 5 | E178: 4 | F178: 5 | G178: 5 | H178: 5 | I178: 4 | J178: 5 | K178: 4 | L178: 4 | M178: 4 | O178: 0.03767178725 | P178: -3.278843813 | Q178: 0 | R178: 0
B179: 0 | C179: 1 | D179: 7 | E179: 7 | F179: 7 | G179: 7 | H179: 7 | I179: 7 | J179: 1 | K179: 1 | L179: 1 | M179: 7 | O179: 0.7014935909 | P179: -1.208963875 | Q179: 1 | R179: 0
B180: 0 | C180: 1 | D180: 3 | E180: 3 | F180: 2 | G180: 2 | H180: 3 | I180: 2 | J180: 2 | K180: 2 | L180: 3 | M180: 5 | O180: 0.04286610281 | P180: -0.04381198384 | Q180: 0 | R180: 1
B181: 1 | C181: 1 | D181: 7 | E181: 7 | F181: 7 | G181: 6 | H181: 7 | I181: 6 | J181: 1 | K181: 1 | L181: 1 | M181: 7 | O181: 0.6357836 | P181: -0.452897025 | Q181: 1 | R181: 1
B182: 0 | C182: 1 | D182: 7 | E182: 7 | F182: 6 | G182: 6 | H182: 7 | I182: 5 | J182: 3 | K182: 4 | L182: 3 | M182: 5 | O182: 0.2096094379 | P182: -0.2352280732 | Q182: 0 | R182: 1
B183: 0 | C183: 1 | D183: 6 | E183: 6 | F183: 7 | G183: 7 | H183: 7 | I183: 7 | J183: 1 | K183: 1 | L183: 1 | M183: 6 | O183: 0.5123935071 | P183: -0.7182465654 | Q183: 1 | R183: 0
B184: 1 | C184: 1 | D184: 7 | E184: 7 | F184: 7 | G184: 7 | H184: 7 | I184: 6 | J184: 3 | K184: 3 | L184: 2 | M184: 6 | O184: 0.3949629937 | P184: -0.9289632054 | Q184: 0 | R184: 0
B185: 0 | C185: 1 | D185: 5 | E185: 5 | F185: 5 | G185: 7 | H185: 6 | I185: 7 | J185: 1 | K185: 1 | L185: 1 | M185: 7 | O185: 0.5082922611 | P185: -0.7098707656 | Q185: 1 | R185: 0
B186: 1 | C186: 1 | D186: 6 | E186: 6 | F186: 6 | G186: 7 | H186: 7 | I186: 7 | J186: 1 | K186: 1 | L186: 1 | M186: 7 | O186: 0.6033171078 | P186: -0.5053123368 | Q186: 1 | R186: 1
B187: 0 | C187: 1 | D187: 6 | E187: 6 | F187: 7 | G187: 7 | H187: 6 | I187: 7 | J187: 1 | K187: 2 | L187: 2 | M187: 7 | O187: 0.4646903816 | P187: -0.6249099735 | Q187: 0 | R187: 1
B188: 0 | C188: 1 | D188: 5 | E188: 5 | F188: 4 | G188: 6 | H188: 6 | I188: 7 | J188: 4 | K188: 3 | L188: 4 | M188: 5 | O188: 0.1762687796 | P188: -0.1939109911 | Q188: 0 | R188: 1
B189: 0 | C189: 1 | D189: 4 | E189: 5 | F189: 6 | G189: 6 | H189: 7 | I189: 7 | J189: 3 | K189: 3 | L189: 3 | M189: 6 | O189: 0.1562618413 | P189: -0.169913071 | Q189: 0 | R189: 1
B190: 0 | C190: 1 | D190: 5 | E190: 4 | F190: 4 | G190: 7 | H190: 7 | I190: 6 | J190: 2 | K190: 2 | L190: 2 | M190: 4 | O190: 0.1622281379 | P190: -0.1770094565 | Q190: 0 | R190: 1
B191: 0 | C191: 1 | D191: 7 | E191: 6 | F191: 6 | G191: 3 | H191: 5 | I191: 4 | J191: 4 | K191: 2 | L191: 3 | M191: 7 | O191: 0.2826677602 | P191: -0.3322161708 | Q191: 0 | R191: 1
B192: 1 | C192: 1 | D192: 7 | E192: 7 | F192: 7 | G192: 4 | H192: 4 | I192: 5 | J192: 1 | K192: 1 | L192: 1 | M192: 7 | O192: 0.5623230851 | P192: -0.5756787098 | Q192: 1 | R192: 1
B193: 0 | C193: 1 | D193: 6 | E193: 6 | F193: 6 | G193: 4 | H193: 6 | I193: 5 | J193: 5 | K193: 4 | L193: 4 | M193: 4 | O193: 0.07731588646 | P193: -0.0804683419 | Q193: 0 | R193: 1
B194: 1 | C194: 1 | D194: 7 | E194: 7 | F194: 7 | G194: 6 | H194: 6 | I194: 5 | J194: 1 | K194: 1 | L194: 1 | M194: 7 | O194: 0.6141825335 | P194: -0.4874631092 | Q194: 1 | R194: 1
B195: 1 | C195: 1 | D195: 7 | E195: 7 | F195: 7 | G195: 5 | H195: 6 | I195: 5 | J195: 1 | K195: 1 | L195: 1 | M195: 7 | O195: 0.5765876206 | P195: -0.5506279636 | Q195: 1 | R195: 1
B196: 1 | C196: 1 | D196: 7 | E196: 7 | F196: 7 | G196: 7 | H196: 7 | I196: 6 | J196: 1 | K196: 1 | L196: 1 | M196: 7 | O196: 0.6711204678 | P196: -0.3988066235 | Q196: 1 | R196: 1
B197: 1 | C197: 1 | D197: 6 | E197: 6 | F197: 6 | G197: 6 | H197: 6 | I197: 7 | J197: 1 | K197: 1 | L197: 1 | M197: 7 | O197: 0.5774074336 | P197: -0.5492071375 | Q197: 1 | R197: 1
B198: 0 | C198: 1 | D198: 3 | E198: 4 | F198: 3 | G198: 7 | H198: 7 | I198: 7 | J198: 1 | K198: 2 | L198: 2 | M198: 6 | O198: 0.2270681031 | P198: -0.2575643366 | Q198: 0 | R198: 1
B199: 0 | C199: 1 | D199: 5 | E199: 4 | F199: 6 | G199: 6 | H199: 7 | I199: 6 | J199: 3 | K199: 3 | L199: 3 | M199: 4 | O199: 0.07339948317 | P199: -0.07623274823 | Q199: 0 | R199: 1
B200: 1 | C200: 1 | D200: 7 | E200: 7 | F200: 7 | G200: 4 | H200: 5 | I200: 4 | J200: 1 | K200: 1 | L200: 1 | M200: 7 | O200: 0.5151082445 | P200: -0.6633782168 | Q200: 1 | R200: 1
B201: 1 | C201: 1 | D201: 7 | E201: 7 | F201: 7 | G201: 7 | H201: 7 | I201: 7 | J201: 1 | K201: 1 | L201: 1 | M201: 7 | O201: 0.7014935909 | P201: -0.3545435158 | Q201: 1 | R201: 1
... 1315 more rows

Sheet OLS_Full
A1: Logistic Regression via OLS Regression Using the Log of Odds-Ratio after 'Nudging' - (NOTE: This worksheet is not discussed in the article)
I2: Coeff | J2: Std Error | K2: t Stat | L2: P-value | O2: Regression Statistics
A3: Y = 1 if recommended the resataurant, else 0 | H3: Intercept | I3: -11.9289715 | J3: 1.733302102 | K3: -6.882222951 | L3: 1.04487774e-11 | O3: Multiple R | P3: 0.4395386965
A4: X1 = the side dishes and salads are delicious | H4: X1 | I4: 0.3461920108 | J4: 0.3137696735 | K4: 1.103331648 | L4: 0.2701515566 | O4: R Square | P4: 0.1931942658
A5: X2 = the entrées are delicious | H5: X2 | I5: 0.9432455007 | J5: 0.3011029165 | K5: 3.132634886 | L5: 0.001783399642 | O5: Adj. R Square | P5: 0.1850364727 | Q5: % Correctly Classified (Training) = | U5: =SUM(T17:T1016)/1000 -> 0.775
A6: X3 = the desserts are delicious | H6: X3 | I6: -0.3656031735 | J6: 0.3085336495 | K6: -1.184970178 | L6: 0.2363138988 | O6: Stand Error | P6: 6.107031449 | Q6: % Correctly Classified (Holdout) = | U6: =SUM(T1017:T1516)/500 -> 0.752
A7: X4 = parking at the restaurant is ample | H7: X4 | I7: 0.3572192344 | J7: 0.2067480865 | K7: 1.727799471 | L7: 0.08433634921 | O7: Observations | P7: 1000
A8: X5 = the lighting in the restaurant is appropriate | H8: X5 | I8: -0.1353918914 | J8: 0.2054857738 | K8: -0.658886934 | L8: 0.5101217444
A9: X6 = the noise level in the restaurant is not distracting to me | H9: X6 | I9: 0.4137443847 | J9: 0.2023887242 | K9: 2.044305513 | L9: 0.04118776722 | O9: ANOVA
A10: X7 = the wait for beverage service is excessive | H10: X7 | I10: 0.01693088856 | J10: 0.3032206869 | K10: 0.0558368518 | L10: 0.955483055 | P10: df | Q10: SS | R10: MS | S10: F | T10: Significance F
A11: X8 = the wait for food service is excessive | H11: X8 | I11: -0.9728583562 | J11: 0.2933625693 | K11: -3.316232055 | L11: 0.0009455935475 | O11: Regression | P11: 10 | Q11: 8832.46368 | R11: 883.246368 | S11: 23.68217289 | T11: 2.892069052e-40
A12: X9 = the wait for the check is excessive | H12: X9 | I12: -0.1133119052 | J12: 0.2986875097 | K12: -0.379366065 | L12: 0.7044974841 | O12: Residual | P12: 989 | Q12: 36885.57896 | R12: 37.29583312
A13: X10 = restaurant service personnel are courteous and friendly | H13: X10 | I13: 0.5812037156 | J13: 0.187196978 | K13: 3.104770823 | L13: 0.00195844364 | O13: Total | P13: 999 | Q13: 45718.04264
P14: Log of
O15: Y | P15: Odds | Q15: Prob
A16: Customer | B16: Y | C16: X0 | D16: X1 | E16: X2 | F16: X3 | G16: X4 | H16: X5 | I16: X6 | J16: X7 | K16: X8 | L16: X9 | M16: X10 | O16: Nudged | P16: Nudged | Q16: Y = 1 | R16: LL | S16: PRED | T16: Correct?
A17: 1 | B17: 0 | C17: 1 | D17: 7 | E17: 7 | F17: 7 | G17: 6 | H17: 6 | I17: 6 | J17: 5 | K17: 4 | L17: 6 | M17: 5 | O17: =IF(B17=0,0.001,0.999) -> 0.001 | P17: =LN(O17/(1-O17)) -> -6.906754779 | Q17: =1/(1+EXP(-(I$3+I$4*D17+I$5*E17+I$6*F17+I$7*G17+I$8*H17+I$9*I17+I$10*J17+I$11*K17+I$12*L17+I$13*M17))) -> 0.03807668401 | R17: =B17*LN(Q17)+(1-B17)*LN(1-Q17) -> -0.03882054461 | S17: =IF(Q17>0.5,1,0) -> 0 | T17: =IF(B17=S17,1,0) -> 1
A18: 2 | B18: 0 | C18: 1 | D18: 7 | E18: 7 | F18: 7 | G18: 7 | H18: 7 | I18: 7 | J18: 2 | K18: 3 | L18: 2 | M18: 6 | O18: 0.001 | P18: =LN(O18/(1-O18)) -> -6.906754779 | Q18: 0.3458698356 | R18: -0.4244489193 | S18: =IF(Q18>0.5,1,0) -> 0 | T18: 1
A19: 3 | B19: 0 | C19: 1 | D19: 7 | E19: 7 | F19: 7 | G19: 5 | H19: 4 | I19: 7 | J19: 2 | K19: 3 | L19: 2 | M19: 7 | O19: 0.001 | P19: -6.906754779 | Q19: 0.409918348 | R19: -0.5274943584 | S19: 0 | T19: 1
A20: 4 | B20: 1 | C20: 1 | D20: 7 | E20: 6 | F20: 6 | G20: 4 | H20: 5 | I20: 6 | J20: 3 | K20: 3 | L20: 2 | M20: 4 | O20: 0.999 | P20: 6.906754779 | Q20: 0.02725245371 | R20: -3.602611718 | S20: 0 | T20: 0
A21: 5 | B21: 1 | C21: 1 | D21: 6 | E21: 7 | F21: 7 | G21: 7 | H21: 7 | I21: 7 | J21: 6 | K21: 5 | L21: 5 | M21: 6 | O21: 0.999 | P21: 6.906754779 | Q21: 0.03911439759 | R21: -3.241264655 | S21: 0 | T21: 0
A22: 6 | B22: 1 | C22: 1 | D22: 7 | E22: 7 | F22: 7 | G22: 6 | H22: 5 | I22: 5 | J22: 1 | K22: 1 | L22: 2 | M22: 7 | O22: 0.999 | P22: 6.906754779 | Q22: 0.7228857808 | R22: -0.3245040488 | S22: 1 | T22: 1
A23: 7 | B23: 1 | C23: 1 | D23: 4 | E23: 5 | F23: 4 | G23: 7 | H23: 7 | I23: 7 | J23: 3 | K23: 3 | L23: 3 | M23: 2 | O23: 0.999 | P23: 6.906754779 | Q23: 0.007489784757 | R23: -4.894215219 | S23: 0 | T23: 0
A24: 8 | B24: 0 | C24: 1 | D24: 7 | E24: 7 | F24: 7 | G24: 6 | H24: 7 | I24: 7 | J24: 1 | K24: 1 | L24: 1 | M24: 7 | O24: 0.001 | P24: -6.906754779 | Q24: 0.8360104432 | R24: -1.807952531 | S24: 1 | T24: 0
A25: 9 | B25: 1 | C25: 1 | D25: 7 | E25: 7 | F25: 7 | G25: 7 | H25: 7 | I25: 7 | J25: 1 | K25: 1 | L25: 1 | M25: 7 | O25: 0.999 | P25: 6.906754779 | Q25: 0.879325425 | R25: -0.1286002279 | S25: 1 | T25: 1
A26: 10 | B26: 0 | C26: 1 | D26: 7 | E26: 7 | F26: 7 | G26: 4 | H26: 7 | I26: 2 | J26: 1 | K26: 1 | L26: 1 | M26: 7 | O26: 0.001 | P26: -6.906754779 | Q26: 0.2397005313 | R26: -0.2740428856 | S26: 0 | T26: 1
A27: 11 | B27: 0 | C27: 1 | D27: 7 | E27: 6 | F27: 7 | G27: 7 | H27: 7 | I27: 7 | J27: 2 | K27: 3 | L27: 3 | M27: 4 | O27: 0.001 | P27: -6.906754779 | Q27: 0.05436126805 | R27: -0.05589467299 | S27: 0 | T27: 1
A28: 12 | B28: 1 | C28: 1 | D28: 7 | E28: 7 | F28: 7 | G28: 3 | H28: 3 | I28: 3 | J28: 1 | K28: 1 | L28: 1 | M28: 7 | O28: 0.999 | P28: 6.906754779 | Q28: 0.3644203706 | R28: -1.009447213 | S28: 0 | T28: 0
A29: 13 | B29: 1 | C29: 1 | D29: 7 | E29: 7 | F29: 6 | G29: 7 | H29: 6 | I29: 4 | J29: 4 | K29: 4 | L29: 3 | M29: 5 | O29: 0.999 | P29: 6.906754779 | Q29: 0.04693165858 | R29: -3.059062808 | S29: 0 | T29: 0
A30: 14 | B30: 0 | C30: 1 | D30: 7 | E30: 7 | F30: 7 | G30: 6 | H30: 6 | I30: 6 | J30: 3 | K30: 2 | L30: 2 | M30: 4 | O30: 0.001 | P30: -6.906754779 | Q30: 0.1907053086 | R30: -0.2115921621 | S30: 0 | T30: 1
A31: 15 | B31: 1 | C31: 1 | D31: 7 | E31: 7 | F31: 7 | G31: 4 | H31: 3 | I31: 4 | J31: 1 | K31: 1 | L31: 1 | M31: 6 | O31: 0.999 | P31: 6.906754779 | Q31: 0.4093944099 | R31: -0.8930762602 | S31: 0 | T31: 0
A32: 16 | B32: 1 | C32: 1 | D32: 7 | E32: 7 | F32: 7 | G32: 5 | H32: 6 | I32: 6 | J32: 1 | K32: 1 | L32: 1 | M32: 7 | O32: 0.999 | P32: 6.906754779 | Q32: 0.7297326598 | R32: -0.3150770314 | S32: 1 | T32: 1
A33: 17 | B33: 1 | C33: 1 | D33: 5 | E33: 6 | F33: 6 | G33: 7 | H33: 7 | I33: 7 | J33: 1 | K33: 1 | L33: 1 | M33: 7 | O33: 0.999 | P33: 6.906754779 | Q33: 0.6717324717 | R33: -0.3978951253 | S33: 1 | T33: 1
A34: 18 | B34: 1 | C34: 1 | D34: 2 | E34: 2 | F34: 2 | G34: 7 | H34: 7 | I34: 3 | J34: 5 | K34: 4 | L34: 5 | M34: 5 | O34: 0.999 | P34: 6.906754779 | Q34: 0.0001577094841 | R34: -8.754755926 | S34: 0 | T34: 0
A35: 19 | B35: 1 | C35: 1 | D35: 2 | E35: 3 | F35: 4 | G35: 7 | H35: 6 | I35: 6 | J35: 4 | K35: 4 | L35: 4 | M35: 5 | O35: 0.999 | P35: 6.906754779 | Q35: 0.0008498903307 | R35: -7.07040324 | S35: 0 | T35: 0
A36: 20 | B36: 0 | C36: 1 | D36: 7 | E36: 7 | F36: 7 | G36: 5 | H36: 6 | I36: 4 | J36: 1 | K36: 3 | L36: 3 | M36: 4 | O36: 0.001 | P36: -6.906754779 | Q36: 0.02297346831 | R36: -0.02324147103 | S36: 0 | T36: 1
A37: 21 | B37: 0 | C37: 1 | D37: 7 | E37: 7 | F37: 7 | G37: 7 | H37: 5 | I37: 6 | J37: 5 | K37: 6 | L37: 5 | M37: 5 | O37: 0.001 | P37: -6.906754779 | Q37: 0.01026064133 | R37: -0.01031364458 | S37: 0 | T37: 1
A38: 22 | B38: 0 | C38: 1 | D38: 7 | E38: 7 | F38: 7 | G38: 7 | H38: 7 | I38: 7 | J38: 2 | K38: 2 | L38: 2 | M38: 5 | O38: 0.001 | P38: -6.906754779 | Q38: 0.4389094404 | R38: -0.5778729611 | S38: 0 | T38: 1
A39: 23 | B39: 0 | C39: 1 | D39: 6 | E39: 7 | F39: 6 | G39: 6 | H39: 3 | I39: 6 | J39: 3 | K39: 2 | L39: 3 | M39: 7 | O39: 0.001 | P39: -6.906754779 | Q39: 0.6480439735 | R39: -1.044249036 | S39: 1 | T39: 0
A40: 24 | B40: 1 | C40: 1 | D40: 7 | E40: 7 | F40: 7 | G40: 5 | H40: 6 | I40: 5 | J40: 1 | K40: 1 | L40: 1 | M40: 7 | O40: 0.999 | P40: 6.906754779 | Q40: 0.6409574675 | R40: -0.4447921777 | S40: 1 | T40: 1
A41: 25 | B41: 1 | C41: 1 | D41: 7 | E41: 7 | F41: 7 | G41: 7 | H41: 7 | I41: 7 | J41: 1 | K41: 1 | L41: 2 | M41: 7 | O41: 0.999 | P41: 6.906754779 | Q41: 0.8667756567 | R41: -0.1429750938 | S41: 1 | T41: 1
A42: 26 | B42: 0 | C42: 1 | D42: 7 | E42: 6 | F42: 5 | G42: 6 | H42: 7 | I42: 7 | J42: 1 | K42: 1 | L42: 1 | M42: 6 | O42: 0.001 | P42: -6.906754779 | Q42: 0.6975367648 | R42: -1.195795545 | S42: 1 | T42: 0
A43: 27 | B43: 1 | C43: 1 | D43: 7 | E43: 7 | F43: 7 | G43: 7 | H43: 7 | I43: 7 | J43: 1 | K43: 1 | L43: 1 | M43: 7 | O43: 0.999 | P43: 6.906754779 | Q43: 0.879325425 | R43: -0.1286002279 | S43: 1 | T43: 1
A44: 28 | B44: 1 | C44: 1 | D44: 7 | E44: 7 | F44: 7 | G44: 7 | H44: 6 | I44: 5 | J44: 1 | K44: 1 | L44: 1 | M44: 7 | O44: 0.999 | P44: 6.906754779 | Q44: 0.7848168266 | R44: -0.2423049304 | S44: 1 | T44: 1
A45: 29 | B45: 0 | C45: 1 | D45: 2 | E45: 2 | F45: 2 | G45: 7 | H45: 7 | I45: 7 | J45: 1 | K45: 1 | L45: 1 | M45: 3 | O45: 0.001 | P45: -6.906754779 | Q45: 0.006978426272 | R45: -0.007002889364 | S45: 0 | T45: 1
A46: 30 | B46: 1 | C46: 1 | D46: 7 | E46: 6 | F46: 7 | G46: 7 | H46: 7 | I46: 7 | J46: 1 | K46: 1 | L46: 1 | M46: 7 | O46: 0.999 | P46: 6.906754779 | Q46: 0.7393922364 | R46: -0.3019267324 | S46: 1 | T46: 1
A47: 31 | B47: 1 | C47: 1 | D47: 6 | E47: 6 | F47: 5 | G47: 7 | H47: 7 | I47: 7 | J47: 4 | K47: 4 | L47: 4 | M47: 4 | O47: 0.999 | P47: 6.906754779 | Q47: 0.02865085089 | R47: -3.552572137 | S47: 0 | T47: 0
A48: 32 | B48: 0 | C48: 1 | D48: 4 | E48: 5 | F48: 5 | G48: 7 | H48: 5 | I48: 7 | J48: 1 | K48: 1 | L48: 1 | M48: 7 | O48: 0.001 | P48: -6.906754779 | Q48: 0.5157399695 | R48: -0.7251332634 | S48: 1 | T48: 0
A49: 33 | B49: 0 | C49: 1 | D49: 7 | E49: 7 | F49: 7 | G49: 7 | H49: 7 | I49: 7 | J49: 4 | K49: 5 | L49: 5 | M49: 7 | O49: 0.001 | P49: -6.906754779 | Q49: 0.0904764917 | R49: -0.09483443386 | S49: 0 | T49: 1
A50: 34 | B50: 1 | C50: 1 | D50: 6 | E50: 5 | F50: 7 | G50: 5 | H50: 7 | I50: 5 | J50: 3 | K50: 4 | L50: 3 | M50: 6 | O50: 0.999 | P50: 6.906754779 | Q50: 0.00414749973 | R50: -5.485249601 | S50: 0 | T50: 0
A51: 35 | B51: 0 | C51: 1 | D51: 5 | E51: 7 | F51: 7 | G51: 4 | H51: 1 | I51: 3 | J51: 1 | K51: 1 | L51: 1 | M51: 7 | O51: 0.001 | P51: -6.906754779 | Q51: 0.3496426556 | R51: -0.4302333065 | S51: 0 | T51: 1
A52: 36 | B52: 0 | C52: 1 | D52: 6 | E52: 5 | F52: 5 | G52: 7 | H52: 7 | I52: 6 | J52: 2 | K52: 1 | L52: 1 | M52: 5 | O52: 0.001 | P52: -6.906754779 | Q52: 0.2545216862 | R52: -0.2937292347 | S52: 0 | T52: 1
A53: 37 | B53: 0 | C53: 1 | D53: 6 | E53: 7 | F53: 7 | G53: 3 | H53: 2 | I53: 3 | J53: 3 | K53: 4 | L53: 4 | M53: 5 | O53: 0.001 | P53: -6.906754779 | Q53: 0.005742589611 | R53: -0.005759141677 | S53: 0 | T53: 1
A54: 38 | B54: 1 | C54: 1 | D54: 7 | E54: 7 | F54: 7 | G54: 4 | H54: 4 | I54: 3 | J54: 1 | K54: 1 | L54: 1 | M54: 7 | O54: 0.999 | P54: 6.906754779 | Q54: 0.4171699416 | R54: -0.8742616064 | S54: 0 | T54: 0
A55: 39 | B55: 0 | C55: 1 | D55: 5 | E55: 6 | F55: 6 | G55: 6 | H55: 6 | I55: 5 | J55: 3 | K55: 3 | L55: 4 | M55: 6 | O55: 0.001 | P55: -6.906754779 | Q55: 0.04045460143 | R55: -0.04129564983 | S55: 0 | T55: 1
A56: 40 | B56: 1 | C56: 1 | D56: 7 | E56: 7 | F56: 7 | G56: 4 | H56: 3 | I56: 2 | J56: 1 | K56: 1 | L56: 1 | M56: 7 | O56: 0.999 | P56: 6.906754779 | Q56: 0.3514311225 | R56: -1.04574154 | S56: 0 | T56: 0
A57: 41 | B57: 1 | C57: 1 | D57: 7 | E57: 7 | F57: 7 | G57: 6 | H57: 7 | I57: 6 | J57: 1 | K57: 1 | L57: 1 | M57: 7 | O57: 0.999 | P57: 6.906754779 | Q57: 0.7711990275 | R57: -0.2598087967 | S57: 1 | T57: 1
A58: 42 | B58: 0 | C58: 1 | D58: 5 | E58: 5 | F58: 5 | G58: 7 | H58: 7 | I58: 7 | J58: 5 | K58: 3 | L58: 4 | M58: 5 | O58: 0.001 | P58: -6.906754779 | Q58: 0.03761732709 | R58: -0.03834311852 | S58: 0 | T58: 1
A59: 43 | B59: 0 | C59: 1 | D59: 3 | E59: 4 | F59: 4 | G59: 4 | H59: 7 | I59: 6 | J59: 3 | K59: 3 | L59: 4 | M59: 2 | O59: 0.001 | P59: -6.906754779 | Q59: 0.0004199945459 | R59: -0.0004200827683 | S59: 0 | T59: 1
A60: 44 | B60: 0 | C60: 1 | D60: 7 | E60: 7 | F60: 7 | G60: 2 | H60: 5 | I60: 5 | J60: 4 | K60: 4 | L60: 4 | M60: 6 | O60: 0.001 | P60: -6.906754779 | Q60: 0.01558612372 | R60: -0.01570886438 | S60: 0 | T60: 1
A61: 45 | B61: 0 | C61: 1 | D61: 7 | E61: 5 | F61: 7 | G61: 7 | H61: 6 | I61: 7 | J61: 2 | K61: 1 | L61: 1 | M61: 7 | O61: 0.001 | P61: -6.906754779 | Q61: 0.5626414845 | R61: -0.8270020187 | S61: 1 | T61: 0
A62: 46 | B62: 0 | C62: 1 | D62: 6 | E62: 4 | F62: 6 | G62: 7 | H62: 7 | I62: 7 | J62: 1 | K62: 2 | L62: 1 | M62: 7 | O62: 0.001 | P62: -6.906754779 | Q62: 0.1422012626 | R62: -0.1533857788 | S62: 0 | T62: 1
A63: 47 | B63: 0 | C63: 1 | D63: 4 | E63: 5 | F63: 5 | G63: 4 | H63: 5 | I63: 4 | J63: 3 | K63: 3 | L63: 3 | M63: 4 | O63: 0.001 | P63: -6.906754779 | Q63: 0.00216752365 | R63: -0.002169876129 | S63: 0 | T63: 1
A64: 48 | B64: 0 | C64: 1 | D64: 5 | E64: 5 | F64: 3 | G64: 6 | H64: 6 | I64: 6 | J64: 3 | K64: 2 | L64: 2 | M64: 6 | O64: 0.001 | P64: -6.906754779 | Q64: 0.1978972651 | R64: -0.2205185809 | S64: 0 | T64: 1
A65: 49 | B65: 0 | C65: 1 | D65: 6 | E65: 6 | F65: 6 | G65: 7 | H65: 7 | I65: 7 | J65: 5 | K65: 4 | L65: 3 | M65: 5 | O65: 0.001 | P65: -6.906754779 | Q65: 0.04001514494 | R65: -0.04083777063 | S65: 0 | T65: 1
A66: 50 | B66: 1 | C66: 1 | D66: 7 | E66: 7 | F66: 7 | G66: 4 | H66: 6 | I66: 7 | J66: 1 | K66: 1 | L66: 1 | M66: 7 | O66: 0.999 | P66: 6.906754779 | Q66: 0.7407349132 | R66: -0.3001124597 | S66: 1 | T66: 1
A67: 51 | B67: 0 | C67: 1 | D67: 5 | E67: 6 | F67: 5 | G67: 7 | H67: 7 | I67: 7 | J67: 2 | K67: 2 | L67: 2 | M67: 6 | O67: 0.001 | P67: -6.906754779 | Q67: 0.361511763 | R67: -0.4486520265 | S67: 0 | T67: 1
A68: 52 | B68: 0 | C68: 1 | D68: 7 | E68: 6 | F68: 6 | G68: 7 | H68: 7 | I68: 7 | J68: 1 | K68: 1 | L68: 1 | M68: 7 | O68: 0.001 | P68: -6.906754779 | Q68: 0.8035158689 | R68: -1.627173609 | S68: 1 | T68: 0
A69: 53 | B69: 0 | C69: 1 | D69: 4 | E69: 5 | F69: 5 | G69: 7 | H69: 7 | I69: 5 | J69: 5 | K69: 4 | L69: 5 | M69: 5 | O69: 0.001 | P69: -6.906754779 | Q69: 0.004062854145 | R69: -0.00407112996 | S69: 0 | T69: 1
A70: 54 | B70: 0 | C70: 1 | D70: 7 | E70: 7 | F70: 7 | G70: 7 | H70: 7 | I70: 7 | J70: 2 | K70: 3 | L70: 2 | M70: 7 | O70: 0.001 | P70: -6.906754779 | Q70: 0.485993631 | R70: -0.6655196226 | S70: 0 | T70: 1
A71: 55 | B71: 0 | C71: 1 | D71: 6 | E71: 7 | F71: 6 | G71: 5 | H71: 5 | I71: 4 | J71: 4 | K71: 4 | L71: 3 | M71: 6 | O71: 0.001 | P71: -6.906754779 | Q71: 0.03373086808 | R71: -0.03431287911 | S71: 0 | T71: 1
A72: 56 | B72: 0 | C72: 1 | D72: 4 | E72: 4 | F72: 5 | G72: 7 | H72: 7 | I72: 7 | J72: 2 | K72: 2 | L72: 1 | M72: 6 | O72: 0.001 | P72: -6.906754779 | Q72: 0.06367445379 | R72: -0.06579205719 | S72: 0 | T72: 1
A73: 57 | B73: 0 | C73: 1 | D73: 7 | E73: 7 | F73: 7 | G73: 6 | H73: 5 | I73: 4 | J73: 2 | K73: 3 | L73: 1 | M73: 2 | O73: 0.001 | P73: -6.906754779 | Q73: 0.01512128101 | R73: -0.01523677332 | S73: 0 | T73: 1
A74: 58 | B74: 0 | C74: 1 | D74: 7 | E74: 7 | F74: 7 | G74: 5 | H74: 6 | I74: 4 | J74: 4 | K74: 2 | L74: 4 | M74: 5 | O74: 0.001 | P74: -6.906754779 | Q74: 0.09460757024 | R74: -0.09938680522 | S74: 0 | T74: 1
A75: 59 | B75: 1 | C75: 1 | D75: 7 | E75: 7 | F75: 7 | G75: 7 | H75: 7 | I75: 7 | J75: 1 | K75: 1 | L75: 1 | M75: 6 | O75: 0.999 | P75: 6.906754779 | Q75: 0.8029529958 | R75: -0.2194591025 | S75: 1 | T75: 1
A76: 60 | B76: 1 | C76: 1 | D76: 7 | E76: 6 | F76: 6 | G76: 6 | H76: 6 | I76: 7 | J76: 3 | K76: 1 | L76: 3 | M76: 4 | O76: 0.999 | P76: 6.906754779 | Q76: 0.3208680937 | R76: -1.136725163 | S76: 0 | T76: 0
B77: 0 | C77: 1 | D77: 7 | E77: 7 | F77: 6 | G77: 7 | H77: 7 | I77: 7 | J77: 1 | K77: 1 | L77: 1 | M77: 7 | O77: 0.001 | P77: -6.906754779 | Q77: 0.9130661435 | R77: -2.44260772 | S77: 1 | T77: 0
B78: 1 | C78: 1 | D78: 6 | E78: 7 | F78: 7 | G78: 5 | H78: 5 | I78: 6 | J78: 1 | K78: 2 | L78: 2 | M78: 7 | O78: 0.999 | P78: 6.906754779 | Q78: 0.424652321 | R78: -0.8564845131 | S78: 0 | T78: 0
B79: 1 | C79: 1 | D79: 7 | E79: 7 | F79: 7 | G79: 7 | H79: 7 | I79: 6 | J79: 1 | K79: 1 | L79: 1 | M79: 7 | O79: 0.999 | P79: 6.906754779 | Q79: 0.8281131242 | R79: -0.1886055105 | S79: 1 | T79: 1
B80: 1 | C80: 1 | D80: 6 | E80: 6 | F80: 6 | G80: 5 | H80: 7 | I80: 6 | J80: 1 | K80: 1 | L80: 1 | M80: 7 | O80: 0.999 | P80: 6.906754779 | Q80: 0.4835160759 | R80: -0.7266707156 | S80: 0 | T80: 0
B81: 1 | C81: 1 | D81: 7 | E81: 6 | F81: 7 | G81: 6 | H81: 7 | I81: 7 | J81: 1 | K81: 1 | L81: 1 | M81: 7 | O81: =IF(B81=0,0.001,0.999) -> 0.999 | P81: 6.906754779 | Q81: =1/(1+EXP(-(I$3+I$4*D81+I$5*E81+I$6*F81+I$7*G81+I$8*H81+I$9*I81+I$10*J81+I$11*K81+I$12*L81+I$13*M81))) -> 0.6649858197 | R81: =B81*LN(Q81)+(1-B81)*LN(1-Q81) -> -0.4079895623 | S81: 1 | T81: =IF(B81=S81,1,0) -> 1
B82: 0 | C82: 1 | D82: 7 | E82: 7 | F82: 7 | G82: 7 | H82: 7 | I82: 7 | J82: 1 | K82: 2 | L82: 1 | M82: 7 | O82: 0.001 | P82: =LN(O82/(1-O82)) -> -6.906754779 | Q82: 0.7336457778 | R82: -1.322928194 | S82: =IF(Q82>0.5,1,0) -> 1 | T82: 0
B83: 1 | C83: 1 | D83: 7 | E83: 7 | F83: 7 | G83: 7 | H83: 7 | I83: 7 | J83: 1 | K83: 1 | L83: 1 | M83: 7 | O83: 0.999 | P83: 6.906754779 | Q83: 0.879325425 | R83: -0.1286002279 | S83: 1 | T83: 1
B84: 1 | C84: 1 | D84: 7 | E84: 7 | F84: 7 | G84: 4 | H84: 4 | I84: 7 | J84: 3 | K84: 3 | L84: 2 | M84: 6 | O84: 0.999 | P84: 6.906754779 | Q84: 0.2165654022 | R84: -1.529862688 | S84: 0 | T84: 0
B85: 0 | C85: 1 | D85: 1 | E85: 2 | F85: 1 | G85: 5 | H85: 5 | I85: 4 | J85: 6 | K85: 5 | L85: 4 | M85: 4 | O85: 0.001 | P85: -6.906754779 | Q85: 3.758317037e-05 | R85: -3.758387663e-05 | S85: 0 | T85: 1
B86: 1 | C86: 1 | D86: 1 | E86: 1 | F86: 1 | G86: 2 | H86: 1 | I86: 3 | J86: 3 | K86: 4 | L86: 4 | M86: 3 | O86: 0.999 | P86: 6.906754779 | Q86: 8.007414156e-06 | R86: -11.73514268 | S86: 0 | T86: 0
B87: 0 | C87: 1 | D87: 4 | E87: 6 | F87: 5 | G87: 6 | H87: 5 | I87: 5 | J87: 3 | K87: 5 | L87: 4 | M87: 2 | O87: 0.001 | P87: -6.906754779 | Q87: 0.0006873304868 | R87: -0.0006875668066 | S87: 0 | T87: 1
B88: 0 | C88: 1 | D88: 5 | E88: 5 | F88: 4 | G88: 7 | H88: 7 | I88: 7 | J88: 2 | K88: 3 | L88: 3 | M88: 6 | O88: 0.001 | P88: -6.906754779 | Q88: 0.09685909744 | R88: -0.1018766995 | S88: 0 | T88: 1
B89: 0 | C89: 1 | D89: 7 | E89: 7 | F89: 7 | G89: 4 | H89: 4 | I89: 5 | J89: 3 | K89: 2 | L89: 1 | M89: 7 | O89: 0.001 | P89: -6.906754779 | Q89: 0.39033369 | R89: -0.4948435043 | S89: 0 | T89: 1
B90: 0 | C90: 1 | D90: 7 | E90: 7 | F90: 7 | G90: 7 | H90: 4 | I90: 7 | J90: 3 | K90: 3 | L90: 3 | M90: 7 | O90: 0.001 | P90: -6.906754779 | Q90: 0.5631003995 | R90: -0.8280518575 | S90: 1 | T90: 0
B91: 1 | C91: 1 | D91: 7 | E91: 7 | F91: 7 | G91: 5 | H91: 4 | I91: 4 | J91: 1 | K91: 1 | L91: 1 | M91: 7 | O91: 0.999 | P91: 6.906754779 | Q91: 0.6074394348 | R91: -0.4985028045 | S91: 1 | T91: 1
B92: 0 | C92: 1 | D92: 5 | E92: 5 | F92: 5 | G92: 7 | H92: 7 | I92: 6 | J92: 1 | K92: 1 | L92: 1 | M92: 7 | O92: 0.001 | P92: -6.906754779 | Q92: 0.4315928106 | R92: -0.5649172343 | S92: 0 | T92: 1
B93: 0 | C93: 1 | D93: 6 | E93: 6 | F93: 6 | G93: 5 | H93: 7 | I93: 6 | J93: 1 | K93: 1 | L93: 1 | M93: 7 | O93: 0.001 | P93: -6.906754779 | Q93: 0.4835160759 | R93: -0.6607111156 | S93: 0 | T93: 1
B94: 0 | C94: 1 | D94: 6 | E94: 7 | F94: 7 | G94: 5 | H94: 6 | I94: 6 | J94: 3 | K94: 4 | L94: 3 | M94: 6 | O94: 0.001 | P94: -6.906754779 | Q94: 0.0454136147 | R94: -0.04647713672 | S94: 0 | T94: 1
B95: 0 | C95: 1 | D95: 7 | E95: 7 | F95: 7 | G95: 5 | H95: 5 | I95: 5 | J95: 1 | K95: 1 | L95: 1 | M95: 5 | O95: 0.001 | P95: -6.906754779 | Q95: 0.3899569227 | R95: -0.4942257057 | S95: 0 | T95: 1
B96: 0 | C96: 1 | D96: 7 | E96: 7 | F96: 7 | G96: 6 | H96: 7 | I96: 7 | J96: 1 | K96: 1 | L96: 1 | M96: 6 | O96: 0.001 | P96: -6.906754779 | Q96: 0.7403204268 | R96: -1.348306819 | S96: 1 | T96: 0
B97: 1 | C97: 1 | D97: 6 | E97: 7 | F97: 5 | G97: 7 | H97: 5 | I97: 6 | J97: 1 | K97: 1 | L97: 1 | M97: 7 | O97: 0.999 | P97: 6.906754779 | Q97: 0.9027456672 | R97: -0.1023144184 | S97: 1 | T97: 1
B98: 0 | C98: 1 | D98: 4 | E98: 6 | F98: 5 | G98: 6 | H98: 4 | I98: 5 | J98: 1 | K98: 1 | L98: 1 | M98: 7 | O98: 0.001 | P98: -6.906754779 | Q98: 0.4892291855 | R98: -0.6718342933 | S98: 0 | T98: 1
B99: 0 | C99: 1 | D99: 6 | E99: 5 | F99: 6 | G99: 6 | H99: 6 | I99: 5 | J99: 3 | K99: 2 | L99: 3 | M99: 7 | O99: 0.001 | P99: -6.906754779 | Q99: 0.1094902303 | R99: -0.1159612053 | S99: 0 | T99: 1
B100: 0 | C100: 1 | D100: 6 | E100: 6 | F100: 5 | G100: 7 | H100: 7 | I100: 7 | J100: 3 | K100: 2 | L100: 2 | M100: 4 | O100: 0.001 | P100: -6.906754779 | Q100: 0.2029280927 | R100: -0.2268103818 | S100: 0 | T100: 1
B101: 0 | C101: 1 | D101: 5 | E101: 6 | F101: 5 | G101: 5 | H101: 4 | I101: 5 | J101: 3 | K101: 3 | L101: 3 | M101: 5 | O101: 0.001 | P101: -6.906754779 | Q101: 0.03373170542 | R101: -0.03431374567 | S101: 0 | T101: 1
B102: 0 | C102: 1 | D102: 5 | E102: 4 | F102: 5 | G102: 7 | H102: 7 | I102: 7 | J102: 2 | K102: 2 | L102: 1 | M102: 6 | O102: 0.001 | P102: -6.906754779 | Q102: 0.08770473788 | R102: -0.09179158898 | S102: 0 | T102: 1
B103: 1 | C103: 1 | D103: 7 | E103: 7 | F103: 7 | G103: 7 | H103: 7 | I103: 7 | J103: 2 | K103: 1 | L103: 1 | M103: 7 | O103: 0.999 | P103: 6.906754779 | Q103: 0.8811104923 | R103: -0.126572244 | S103: 1 | T103: 1
B104: 1 | C104: 1 | D104: 6 | E104: 7 | F104: 6 | G104: 6 | H104: 7 | I104: 7 | J104: 1 | K104: 2 | L104: 1 | M104: 7 | O104: 0.999 | P104: 6.906754779 | Q104: 0.6627092779 | R104: -0.4114188799 | S104: 1 | T104: 1
B105: 1 | C105: 1 | D105: 7 | E105: 7 | F105: 7 | G105: 6 | H105: 6 | I105: 6 | J105: 1 | K105: 2 | L105: 2 | M105: 7 | O105: 0.999 | P105: 6.906754779 | Q105: 0.565696865 | R105: -0.5696969184 | S105: 1 | T105: 1
B106: 0 | C106: 1 | D106: 7 | E106: 7 | F106: 7 | G106: 7 | H106: 5 | I106: 6 | J106: 1 | K106: 1 | L106: 1 | M106: 7 | O106: 0.001 | P106: -6.906754779 | Q106: 0.8633145714 | R106: -1.990073135 | S106: 1 | T106: 0
B107: 1 | C107: 1 | D107: 7 | E107: 7 | F107: 7 | G107: 4 | H107: 7 | I107: 7 | J107: 1 | K107: 1 | L107: 2 | M107: 7 | O107: 0.999 | P107: 6.906754779 | Q107: 0.6902071632 | R107: -0.37076349 | S107: 1 | T107: 1
B108: 0 | C108: 1 | D108: 7 | E108: 7 | F108: 7 | G108: 4 | H108: 3 | I108: 3 | J108: 1 | K108: 3 | L108: 1 | M108: 7 | O108: 0.001 | P108: -6.906754779 | Q108: 0.1048250131 | R108: -0.1107360637 | S108: 0 | T108: 1
B109: 0 | C109: 1 | D109: 5 | E109: 5 | F109: 4 | G109: 2 | H109: 6 | I109: 4 | J109: 1 | K109: 1 | L109: 1 | M109: 7 | O109: 0.001 | P109: -6.906754779 | Q109: 0.08409655506 | R109: -0.08784432932 | S109: 0 | T109: 1
B110: 0 | C110: 1 | D110: 7 | E110: 7 | F110: 5 | G110: 6 | H110: 7 | I110: 7 | J110: 3 | K110: 3 | L110: 2 | M110: 6 | O110: 0.001 | P110: -6.906754779 | Q110: 0.4387280378 | R110: -0.5775497098 | S110: 0 | T110: 1
B111: 0 | C111: 1 | D111: 6 | E111: 7 | F111: 7 | G111: 5 | H111: 5 | I111: 6 | J111: 2 | K111: 2 | L111: 2 | M111: 5 | O111: 0.001 | P111: -6.906754779 | Q111: 0.1901277517 | R111: -0.2108787618 | S111: 0 | T111: 1
B112: 0 | C112: 1 | D112: 7 | E112: 7 | F112: 7 | G112: 7 | H112: 6 | I112: 6 | J112: 5 | K112: 4 | L112: 5 | M112: 6 | O112: 0.001 | P112: -6.906754779 | Q112: 0.101780334 | R112: -0.1073406237 | S112: 0 | T112: 1
B113: 1 | C113: 1 | D113: 7 | E113: 7 | F113: 7 | G113: 7 | H113: 7 | I113: 7 | J113: 1 | K113: 1 | L113: 1 | M113: 7 | O113: 0.999 | P113: 6.906754779 | Q113: 0.879325425 | R113: -0.1286002279 | S113: 1 | T113: 1
B114: 0 | C114: 1 | D114: 6 | E114: 5 | F114: 6 | G114: 7 | H114: 7 | I114: 7 | J114: 2 | K114: 2 | L114: 1 | M114: 7 | O114: 0.001 | P114: -6.906754779 | Q114: 0.302177598 | R114: -0.359790647 | S114: 0 | T114: 1
B115: 1 | C115: 1 | D115: 7 | E115: 7 | F115: 7 | G115: 7 | H115: 7 | I115: 7 | J115: 1 | K115: 1 | L115: 1 | M115: 7 | O115: 0.999 | P115: 6.906754779 | Q115: 0.879325425 | R115: -0.1286002279 | S115: 1 | T115: 1
B116: 0 | C116: 1 | D116: 4 | E116: 5 | F116: 4 | G116: 4 | H116: 7 | I116: 7 | J116: 1 | K116: 2 | L116: 1 | M116: 5 | O116: 0.001 | P116: -6.906754779 | Q116: 0.04525533336 | R116: -0.04631133903 | S116: 0 | T116: 1
B117: 0 | C117: 1 | D117: 3 | E117: 4 | F117: 4 | G117: 7 | H117: 6 | I117: 7 | J117: 1 | K117: 1 | L117: 1 | M117: 7 | O117: 0.001 | P117: -6.906754779 | Q117: 0.2696802327 | R117: -0.3142728034 | S117: 0 | T117: 1
B118: 0 | C118: 1 | D118: 7 | E118: 7 | F118: 7 | G118: 7 | H118: 7 | I118: 5 | J118: 2 | K118: 1 | L118: 3 | M118: 5 | O118: 0.001 | P118: -6.906754779 | Q118: 0.4468190326 | R118: -0.5920700843 | S118: 0 | T118: 1
B119: 0 | C119: 1 | D119: 4 | E119: 4 | F119: 3 | G119: 7 | H119: 7 | I119: 7 | J119: 5 | K119: 4 | L119: 5 | M119: 6 | O119: 0.001 | P119: -6.906754779 | Q119: 0.01331913271 | R119: -0.01340862791 | S119: 0 | T119: 1
B120: 0 | C120: 1 | D120: 5 | E120: 5 | F120: 5 | G120: 7 | H120: 4 | I120: 7 | J120: 3 | K120: 4 | L120: 3 | M120: 5 | O120: 0.001 | P120: -6.906754779 | Q120: 0.02344943928 | R120: -0.02372875251 | S120: 0 | T120: 1
B121: 0 | C121: 1 | D121: 7 | E121: 7 | F121: 7 | G121: 5 | H121: 5 | I121: 2 | J121: 3 | K121: 1 | L121: 2 | M121: 7 | O121: 0.001 | P121: -6.906754779 | Q121: 0.3530249159 | R121: -0.4354474951 | S121: 0 | T121: 1
B122: 0 | C122: 1 | D122: 7 | E122: 6 | F122: 7 | G122: 6 | H122: 6 | I122: 6 | J122: 1 | K122: 1 | L122: 1 | M122: 5 | O122: 0.001 | P122: -6.906754779 | Q122: 0.3196964665 | R122: -0.3852162076 | S122: 0 | T122: 1
B123: 0 | C123: 1 | D123: 6 | E123: 5 | F123: 5 | G123: 5 | H123: 4 | I123: 4 | J123: 3 | K123: 3 | L123: 4 | M123: 6 | O123: 0.001 | P123: -6.906754779 | Q123: 0.01988100199 | R123: -0.02008128815 | S123: 0 | T123: 1
B124: 0 | C124: 1 | D124: 5 | E124: 6 | F124: 6 | G124: 6 | H124: 5 | I124: 4 | J124: 2 | K124: 2 | L124: 2 | M124: 2 | O124: 0.001 | P124: -6.906754779 | Q124: 0.01008175191 | R124: -0.01013291695 | S124: 0 | T124: 1
B125: 1 | C125: 1 | D125: 5 | E125: 6 | F125: 5 | G125: 4 | H125: 7 | I125: 7 | J125: 1 | K125: 1 | L125: 1 | M125: 7 | O125: 0.999 | P125: 6.906754779 | Q125: 0.5024941576 | R125: -0.6881712658 | S125: 1 | T125: 1
B126: 0 | C126: 1 | D126: 5 | E126: 5 | F126: 4 | G126: 7 | H126: 7 | I126: 6 | J126: 3 | K126: 5 | L126: 4 | M126: 6 | O126: 0.001 | P126: -6.906754779 | Q126: 0.009116930326 | R126: -0.009158743871 | S126: 0 | T126: 1
B127: 1 | C127: 1 | D127: 5 | E127: 4 | F127: 5 | G127: 7 | H127: 7 | I127: 6 | J127: 2 | K127: 1 | L127: 2 | M127: 3 | O127: 0.999 | P127: 6.906754779 | Q127: 0.02558585263 | R127: -3.665715712 | S127: 0 | T127: 0
B128: 1 | C128: 1 | D128: 7 | E128: 7 | F128: 7 | G128: 7 | H128: 7 | I128: 7 | J128: 1 | K128: 1 | L128: 1 | M128: 7 | O128: 0.999 | P128: 6.906754779 | Q128: 0.879325425 | R128: -0.1286002279 | S128: 1 | T128: 1
B129: 1 | C129: 1 | D129: 6 | E129: 7 | F129: 7 | G129: 6 | H129: 5 | I129: 6 | J129: 5 | K129: 4 | L129: 5 | M129: 5 | O129: 0.999 | P129: 6.906754779 | Q129: 0.03466245143 | R129: -3.362098269 | S129: 0 | T129: 0
B130: 1 | C130: 1 | D130: 7 | E130: 7 | F130: 7 | G130: 5 | H130: 5 | I130: 5 | J130: 1 | K130: 1 | L130: 1 | M130: 7 | O130: 0.999 | P130: 6.906754779 | Q130: 0.6714860936 | R130: -0.3982619727 | S130: 1 | T130: 1
B131: 1 | C131: 1 | D131: 7 | E131: 7 | F131: 7 | G131: 7 | H131: 7 | I131: 7 | J131: 1 | K131: 1 | L131: 1 | M131: 7 | O131: 0.999 | P131: 6.906754779 | Q131: 0.879325425 | R131: -0.1286002279 | S131: 1 | T131: 1
B132: 0 | C132: 1 | D132: 4 | E132: 3 | F132: 3 | G132: 7 | H132: 7 | I132: 7 | J132: 2 | K132: 1 | L132: 3 | M132: 7 | O132: 0.001 | P132: -6.906754779 | Q132: 0.1718203463 | R132: -0.188525175 | S132: 0 | T132: 1
B133: 0 | C133: 1 | D133: 7 | E133: 7 | F133: 7 | G133: 7 | H133: 6 | I133: 7 | J133: 1 | K133: 1 | L133: 1 | M133: 7 | O133: 0.001 | P133: -6.906754779 | Q133: 0.8929705416 | R133: -2.23465117 | S133: 1 | T133: 0
B134: 0 | C134: 1 | D134: 6 | E134: 7 | F134: 7 | G134: 5 | H134: 4 | I134: 5 | J134: 1 | K134: 1 | L134: 2 | M134: 6 | O134: 0.001 | P134: -6.906754779 | Q134: 0.4525428835 | R134: -0.6024711463 | S134: 0 | T134: 1
B135: 0 | C135: 1 | D135: 3 | E135: 4 | F135: 5 | G135: 6 | H135: 6 | I135: 7 | J135: 2 | K135: 3 | L135: 1 | M135: 4 | O135: 0.001 | P135: -6.906754779 | Q135: 0.004534638683 | R135: -0.004544951345 | S135: 0 | T135: 1
B136: 0 | C136: 1 | D136: 7 | E136: 7 | F136: 7 | G136: 5 | H136: 5 | I136: 5 | J136: 1 | K136: 1 | L136: 1 | M136: 6 | O136: 0.001 | P136: -6.906754779 | Q136: 0.5333778912 | R136: -0.7622355377 | S136: 1 | T136: 0
B137: 0 | C137: 1 | D137: 7 | E137: 7 | F137: 7 | G137: 7 | H137: 7 | I137: 7 | J137: 1 | K137: 1 | L137: 1 | M137: 7 | O137: 0.001 | P137: -6.906754779 | Q137: 0.879325425 | R137: -2.11465782 | S137: 1 | T137: 0
B138: 0 | C138: 1 | D138: 7 | E138: 6 | F138: 7 | G138: 6 | H138: 6 | I138: 4 | J138: 1 | K138: 1 | L138: 1 | M138: 5 | O138: 0.001 | P138: -6.906754779 | Q138: 0.1704196795 | R138: -0.186835344 | S138: 0 | T138: 1
B139: 0 | C139: 1 | D139: 6 | E139: 6 | F139: 6 | G139: 6 | H139: 6 | I139: 7 | J139: 2 | K139: 1 | L139: 1 | M139: 3 | O139: 0.001 | P139: -6.906754779 | Q139: 0.1873247163 | R139: -0.2074236543 | S139: 0 | T139: 1
B140: 1 | C140: 1 | D140: 7 | E140: 7 | F140: 7 | G140: 7 | H140: 7 | I140: 7 | J140: 1 | K140: 1 | L140: 1 | M140: 7 | O140: 0.999 | P140: 6.906754779 | Q140: 0.879325425 | R140: -0.1286002279 | S140: 1 | T140: 1
B141: 1 | C141: 1 | D141: 7 | E141: 7 | F141: 7 | G141: 6 | H141: 5 | I141: 5 | J141: 4 | K141: 5 | L141: 5 | M141: 4 | O141: 0.999 | P141: 6.906754779 | Q141: 0.006927077051 | R141: -4.972317337 | S141: 0 | T141: 0
B142: 0 | C142: 1 | D142: 7 | E142: 7 | F142: 7 | G142: 4 | H142: 5 | I142: 4 | J142: 6 | K142: 7 | L142: 6 | M142: 6 | O142: 0.001 | P142: -6.906754779 | Q142: 0.0009517001203 | R142: -0.0009521532744 | S142: 0 | T142: 1
B143: 1 | C143: 1 | D143: 7 | E143: 7 | F143: 6 | G143: 7 | H143: 7 | I143: 7 | J143: 1 | K143: 2 | L143: 1 | M143: 6 | O143: 0.999 | P143: 6.906754779 | Q143: 0.6894605842 | R143: -0.3718457492 | S143: 1 | T143: 1
B144: 1 | C144: 1 | D144: 7 | E144: 7 | F144: 7 | G144: 7 | H144: 7 | I144: 7 | J144: 1 | K144: 1 | L144: 1 | M144: 7 | O144: 0.999 | P144: 6.906754779 | Q144: 0.879325425 | R144: -0.1286002279 | S144: 1 | T144: 1
B145: 1 | C145: 1 | D145: 7 | E145: 7 | F145: 7 | G145: 7 | H145: 7 | I145: 7 | J145: 1 | K145: 1 | L145: 1 | M145: 7 | O145: =IF(B145=0,0.001,0.999) -> 0.999 | P145: 6.906754779 | Q145: =1/(1+EXP(-(I$3+I$4*D145+I$5*E145+I$6*F145+I$7*G145+I$8*H145+I$9*I145+I$10*J145+I$11*K145+I$12*L145+I$13*M145))) -> 0.879325425 | R145: =B145*LN(Q145)+(1-B145)*LN(1-Q145) -> -0.1286002279 | S145: 1 | T145: =IF(B145=S145,1,0) -> 1
B146: 1 | C146: 1 | D146: 7 | E146: 7 | F146: 7 | G146: 4 | H146: 5 | I146: 4 | J146: 1 | K146: 1 | L146: 1 | M146: 7 | O146: 0.999 | P146: =LN(O146/(1-O146)) -> 6.906754779 | Q146: 0.4859912965 | R146: -0.7215645637 | S146: =IF(Q146>0.5,1,0) -> 0 | T146: 0
B147: 1 | C147: 1 | D147: 7 | E147: 7 | F147: 7 | G147: 7 | H147: 7 | I147: 7 | J147: 1 | K147: 1 | L147: 1 | M147: 7 | O147: 0.999 | P147: 6.906754779 | Q147: 0.879325425 | R147: -0.1286002279 | S147: 1 | T147: 1
B148: 1 | C148: 1 | D148: 5 | E148: 6 | F148: 7 | G148: 5 | H148: 6 | I148: 5 | J148: 2 | K148: 3 | L148: 4 | M148: 3 | O148: 0.999 | P148: 6.906754779 | Q148: 0.003506432033 | R148: -5.653156273 | S148: 0 | T148: 0
B149: 1 | C149: 1 | D149: 7 | E149: 7 | F149: 7 | G149: 7 | H149: 7 | I149: 7 | J149: 1 | K149: 1 | L149: 1 | M149: 7 | O149: 0.999 | P149: 6.906754779 | Q149: 0.879325425 | R149: -0.1286002279 | S149: 1 | T149: 1
B150: 1 | C150: 1 | D150: 6 | E150: 7 | F150: 6 | G150: 7 | H150: 7 | I150: 7 | J150: 1 | K150: 1 | L150: 1 | M150: 7 | O150: 0.999 | P150: 6.906754779 | Q150: 0.8813700674 | R150: -0.1262776874 | S150: 1 | T150: 1
B151: 0 | C151: 1 | D151: 5 | E151: 4 | F151: 5 | G151: 4 | H151: 5 | I151: 5 | J151: 5 | K151: 4 | L151: 6 | M151: 3 | O151: 0.001 | P151: -6.906754779 | Q151: 0.0002814019118 | R151: -0.0002814415128 | S151: 0 | T151: 1
B152: 0 | C152: 1 | D152: 7 | E152: 7 | F152: 7 | G152: 6 | H152: 6 | I152: 7 | J152: 2 | K152: 1 | L152: 2 | M152: 7 | O152: 0.001 | P152: -6.906754779 | Q152: 0.8412888572 | R152: -1.840669441 | S152: 1 | T152: 0
B153: 1 | C153: 1 | D153: 7 | E153: 7 | F153: 6 | G153: 6 | H153: 5 | I153: 4 | J153: 1 | K153: 1 | L153: 1 | M153: 7 | O153: 0.999 | P153: 6.906754779 | Q153: 0.7357494939 | R153: -0.3068655797 | S153: 1 | T153: 1
B154: 1 | C154: 1 | D154: 6 | E154: 7 | F154: 7 | G154: 5 | H154: 5 | I154: 6 | J154: 1 | K154: 1 | L154: 1 | M154: 6 | O154: 0.999 | P154: 6.906754779 | Q154: 0.5501465402 | R154: -0.5975705995 | S154: 1 | T154: 1
B155: 1 | C155: 1 | D155: 7 | E155: 7 | F155: 6 | G155: 6 | H155: 6 | I155: 5 | J155: 1 | K155: 1 | L155: 1 | M155: 7 | O155: 0.999 | P155: 6.906754779 | Q155: 0.7862293198 | R155: -0.2405067736 | S155: 1 | T155: 1
B156: 1 | C156: 1 | D156: 7 | E156: 7 | F156: 6 | G156: 6 | H156: 6 | I156: 5 | J156: 2 | K156: 1 | L156: 2 | M156: 7 | O156: 0.999 | P156: 6.906754779 | Q156: 0.7695839819 | R156: -0.2619051934 | S156: 1 | T156: 1
B157: 0 | C157: 1 | D157: 6 | E157: 6 | F157: 5 | G157: 7 | H157: 7 | I157: 5 | J157: 1 | K157: 1 | L157: 2 | M157: 3 | O157: 0.001 | P157: -6.906754779 | Q157: 0.1373129805 | R157: -0.1477033194 | S157: 0 | T157: 1
B158: 1 | C158: 1 | D158: 7 | E158: 7 | F158: 7 | G158: 7 | H158: 7 | I158: 7 | J158: 1 | K158: 1 | L158: 2 | M158: 7 | O158: 0.999 | P158: 6.906754779 | Q158: 0.8667756567 | R158: -0.1429750938 | S158: 1 | T158: 1
B159: 0 | C159: 1 | D159: 5 | E159: 4 | F159: 4 | G159: 7 | H159: 7 | I159: 5 | J159: 3 | K159: 1 | L159: 1 | M159: 4 | O159: 0.001 | P159: -6.906754779 | Q159: 0.04849927724 | R159: -0.04971483265 | S159: 0 | T159: 1
B160: 0 | C160: 1 | D160: 4 | E160: 4 | F160: 5 | G160: 7 | H160: 6 | I160: 7 | J160: 2 | K160: 2 | L160: 2 | M160: 4 | O160: 0.001 | P160: -6.906754779 | Q160: 0.02127938992 | R160: -0.02150906014 | S160: 0 | T160: 1
B161: 1 | C161: 1 | D161: 6 | E161: 7 | F161: 7 | G161: 7 | H161: 7 | I161: 7 | J161: 1 | K161: 1 | L161: 1 | M161: 6 | O161: 0.999 | P161: 6.906754779 | Q161: 0.742434743 | R161: -0.2978203004 | S161: 1 | T161: 1
B162: 0 | C162: 1 | D162: 6 | E162: 6 | F162: 6 | G162: 6 | H162: 7 | I162: 7 | J162: 1 | K162: 1 | L162: 1 | M162: 6 | O162: 0.001 | P162: -6.906754779 | Q162: 0.5309106067 | R162: -0.7569619246 | S162: 1 | T162: 0
B163: 0 | C163: 1 | D163: 7 | E163: 7 | F163: 7 | G163: 4 | H163: 3 | I163: 4 | J163: 1 | K163: 2 | L163: 2 | M163: 5 | O163: 0.001 | P163: -6.906754779 | Q163: 0.1156951243 | R163: -0.1229533938 | S163: 0 | T163: 1
B164: 1 | C164: 1 | D164: 6 | E164: 5 | F164: 5 | G164: 6 | H164: 7 | I164: 7 | J164: 2 | K164: 2 | L164: 2 | M164: 7 | O164: 0.999 | P164: 6.906754779 | Q164: 0.2805212159 | R164: -1.271105921 | S164: 0 | T164: 0
B165: 0 | C165: 1 | D165: 7 | E165: 7 | F165: 7 | G165: 6 | H165: 4 | I165: 5 | J165: 1 | K165: 1 | L165: 1 | M165: 6 | O165: 0.001 | P165: -6.906754779 | Q165: 0.6516549169 | R165: -1.054561672 | S165: 1 | T165: 0
B166: 0 | C166: 1 | D166: 3 | E166: 2 | F166: 3 | G166: 5 | H166: 6 | I166: 6 | J166: 6 | K166: 4 | L166: 4 | M166: 6 | O166: 0.001 | P166: -6.906754779 | Q166: 0.000610649681 | R166: -0.0006108362035 | S166: 0 | T166: 1
B167: 0 | C167: 1 | D167: 5 | E167: 4 | F167: 6 | G167: 4 | H167: 5 | I167: 5 | J167: 3 | K167: 3 | L167: 3 | M167: 7 | O167: 0.001 | P167: -6.906754779 | Q167: 0.007122834582 | R167: -0.007148323074 | S167: 0 | T167: 1
B168: 1 | C168: 1 | D168: 6 | E168: 7 | F168: 6 | G168: 5 | H168: 4 | I168: 7 | J168: 1 | K168: 1 | L168: 1 | M168: 7 | O168: 0.999 | P168: 6.906754779 | Q168: 0.8451694648 | R168: -0.1682181217 | S168: 1 | T168: 1
B169: 0 | C169: 1 | D169: 7 | E169: 7 | F169: 7 | G169: 7 | H169: 7 | I169: 7 | J169: 1 | K169: 1 | L169: 1 | M169: 7 | O169: 0.001 | P169: -6.906754779 | Q169: 0.879325425 | R169: -2.11465782 | S169: 1 | T169: 0
B170: 1 | C170: 1 | D170: 7 | E170: 7 | F170: 7 | G170: 7 | H170: 7 | I170: 7 | J170: 1 | K170: 1 | L170: 1 | M170: 7 | O170: 0.999 | P170: 6.906754779 | Q170: 0.879325425 | R170: -0.1286002279 | S170: 1 | T170: 1
B171: 0 | C171: 1 | D171: 7 | E171: 7 | F171: 7 | G171: 6 | H171: 5 | I171: 5 | J171: 2 | K171: 3 | L171: 3 | M171: 6 | O171: 0.001 | P171: -6.906754779 | Q171: 0.1591615293 | R171: -0.1733557056 | S171: 0 | T171: 1
B172: 1 | C172: 1 | D172: 6 | E172: 6 | F172: 6 | G172: 7 | H172: 7 | I172: 7 | J172: 1 | K172: 1 | L172: 1 | M172: 7 | O172: 0.999 | P172: 6.906754779 | Q172: 0.7431151827 | R172: -0.2969042225 | S172: 1 | T172: 1
B173: 0 | C173: 1 | D173: 2 | E173: 1 | F173: 1 | G173: 5 | H173: 6 | I173: 7 | J173: 7 | K173: 6 | L173: 6 | M173: 4 | O173: 0.001 | P173: -6.906754779 | Q173: 1.915974134e-05 | R173: -1.915992489e-05 | S173: 0 | T173: 1
B174: 0 | C174: 1 | D174: 5 | E174: 6 | F174: 6 | G174: 4 | H174: 4 | I174: 4 | J174: 2 | K174: 2 | L174: 1 | M174: 7 | O174: 0.001 | P174: -6.906754779 | Q174: 0.104648299 | R174: -0.1105386759 | S174: 0 | T174: 1
B175: 1 | C175: 1 | D175: 6 | E175: 6 | F175: 6 | G175: 7 | H175: 7 | I175: 7 | J175: 1 | K175: 1 | L175: 1 | M175: 7 | O175: 0.999 | P175: 6.906754779 | Q175: 0.7431151827 | R175: -0.2969042225 | S175: 1 | T175: 1
B176: 1 | C176: 1 | D176: 7 | E176: 7 | F176: 7 | G176: 6 | H176: 6 | I176: 6 | J176: 1 | K176: 1 | L176: 1 | M176: 7 | O176: 0.999 | P176: 6.906754779 | Q176: 0.7942090497 | R176: -0.2304085657 | S176: 1 | T176: 1
B177: 0 | C177: 1 | D177: 6 | E177: 6 | F177: 7 | G177: 6 | H177: 7 | I177: 4 | J177: 1 | K177: 1 | L177: 1 | M177: 7 | O177: 0.001 | P177: -6.906754779 | Q177: 0.288674103 | R177: -0.3406245899 | S177: 0 | T177: 1
B178: 1 | C178: 1 | D178: 5 | E178: 4 | F178: 5 | G178: 5 | H178: 5 | I178: 4 | J178: 5 | K178: 4 | L178: 4 | M178: 4 | O178: 0.999 | P178: 6.906754779 | Q178: 0.0005963163183 | R178: -7.424739296 | S178: 0 | T178: 0
B179: 0 | C179: 1 | D179: 7 | E179: 7 | F179: 7 | G179: 7 | H179: 7 | I179: 7 | J179: 1 | K179: 1 | L179: 1 | M179: 7 | O179: 0.001 | P179: -6.906754779 | Q179: 0.879325425 | R179: -2.11465782 | S179: 1 | T179: 0
B180: 0 | C180: 1 | D180: 3 | E180: 3 | F180: 2 | G180: 2 | H180: 3 | I180: 2 | J180: 2 | K180: 2 | L180: 3 | M180: 5 | O180: 0.001 | P180: -6.906754779 | Q180: 0.0009093362899 | R180: -0.0009097499869 | S180: 0 | T180: 1
B181: 1 | C181: 1 | D181: 7 | E181: 7 | F181: 7 | G181: 6 | H181: 7 | I181: 6 | J181: 1 | K181: 1 | L181: 1 | M181: 7 | O181: 0.999 | P181: 6.906754779 | Q181: 0.7711990275 | R181: -0.2598087967 | S181: 1 | T181: 1
B182: 0 | C182: 1 | D182: 7 | E182: 7 | F182: 6 | G182: 6 | H182: 7 | I182: 5 | J182: 3 | K182: 4 | L182: 3 | M182: 5 | O182: 0.001 | P182: -6.906754779 | Q182: 0.04282796874 | R182: -0.0437721427 | S182: 0 | T182: 1
B183: 0 | C183: 1 | D183: 6 | E183: 6 | F183: 7 | G183: 7 | H183: 7 | I183: 7 | J183: 1 | K183: 1 | L183: 1 | M183: 6 | O183: 0.001 | P183: -6.906754779 | Q183: 0.5288221035 | R183: -0.7525195566 | S183: 1 | T183: 0
B184: 1 | C184: 1 | D184: 7 | E184: 7 | F184: 7 | G184: 7 | H184: 7 | I184: 6 | J184: 3 | K184: 3 | L184: 2 | M184: 6 | O184: 0.999 | P184: 6.906754779 | Q184: 0.2622982589 | R184: -1.33827303 | S184: 0 | T184: 0
B185: 0 | C185: 1 | D185: 5 | E185: 5 | F185: 5 | G185: 7 | H185: 6 | I185: 7 | J185: 1 | K185: 1 | L185: 1 | M185: 7 | O185: 0.001 | P185: -6.906754779 | Q185: 0.5680208511 | R185: -0.8393779583 | S185: 1 | T185: 0
B186: 1 | C186: 1 | D186: 6 | E186: 6 | F186: 6 | G186: 7 | H186: 7 | I186: 7 | J186: 1 | K186: 1 | L186: 1 | M186: 7 | O186: 0.999 | P186: 6.906754779 | Q186: 0.7431151827 | R186: -0.2969042225 | S186: 1 | T186: 1
B187: 0 | C187: 1 | D187: 6 | E187: 6 | F187: 7 | G187: 7 | H187: 6 | I187: 7 | J187: 1 | K187: 2 | L187: 2 | M187: 7 | O187: 0.001 | P187: -6.906754779 | Q187: 0.4368002683 | R187: -0.5741209505 | S187: 0 | T187: 1
B188: 0 | C188: 1 | D188: 5 | E188: 5 | F188: 4 | G188: 6 | H188: 6 | I188: 7 | J188: 4 | K188: 3 | L188: 4 | M188: 5 | O188: 0.001 | P188: -6.906754779 | Q188: 0.04248857457 | R188: -0.04341762543 | S188: 0 | T188: 1
B189: 0 | C189: 1 | D189: 4 | E189: 5 | F189: 6 | G189: 6 | H189: 7 | I189: 7 | J189: 3 | K189: 3 | L189: 3 | M189: 6 | O189: 0.001 | P189: -6.906754779 | Q189: 0.0253251004 | R189: -0.0256512999 | S189: 0 | T189: 1
B190: 0 | C190: 1 | D190: 5 | E190: 4 | F190: 4 | G190: 7 | H190: 7 | I190: 6 | J190: 2 | K190: 2 | L190: 2 | M190: 4 | O190: 0.001 | P190: -6.906754779 | Q190: 0.02494432292 | R190: -0.02526070492 | S190: 0 | T190: 1
B191: 0 | C191: 1 | D191: 7 | E191: 6 | F191: 6 | G191: 3 | H191: 5 | I191: 4 | J191: 4 | K191: 2 | L191: 3 | M191: 7 | O191: 0.001 | P191: -6.906754779 | Q191: 0.1053070192 | R191: -0.1112746577 | S191: 0 | T191: 1
B192: 1 | C192: 1 | D192: 7 | E192: 7 | F192: 7 | G192: 4 | H192: 4 | I192: 5 | J192: 1 | K192: 1 | L192: 1 | M192: 7 | O192: 0.999 | P192: 6.906754779 | Q192: 0.6208333319 | R192: -0.4766926197 | S192: 1 | T192: 1
B193: 0 | C193: 1 | D193: 6 | E193: 6 | F193: 6 | G193: 4 | H193: 6 | I193: 5 | J193: 5 | K193: 4 | L193: 4 | M193: 4 | O193: 0.001 | P193: -6.906754779 | Q193: 0.003554678287 | R193: -0.003561011168 | S193: 0 | T193: 1
B194: 1 | C194: 1 | D194: 7 | E194: 7 | F194: 7 | G194: 6 | H194: 6 | I194: 5 | J194: 1 | K194: 1 | L194: 1 | M194: 7 | O194: 0.999 | P194: 6.906754779 | Q194: 0.7184409817 | R194: -0.3306717178 | S194: 1 | T194: 1
B195: 1 | C195: 1 | D195: 7 | E195: 7 | F195: 7 | G195: 5 | H195: 6 | I195: 5 | J195: 1 | K195: 1 | L195: 1 | M195: 7 | O195: 0.999 | P195: 6.906754779 | Q195: 0.6409574675 | R195: -0.4447921777 | S195: 1 | T195: 1
B196: 1 | C196: 1 | D196: 7 | E196: 7 | F196: 7 | G196: 7 | H196: 7 | I196: 6 | J196: 1 | K196: 1 | L196: 1 | M196: 7 | O196: 0.999 | P196: 6.906754779 | Q196: 0.8281131242 | R196: -0.1886055105 | S196: 1 | T196: 1
B197: 1 | C197: 1 | D197: 6 | E197: 6 | F197: 6 | G197: 6 | H197: 6 | I197: 7 | J197: 1 | K197: 1 | L197: 1 | M197: 7 | O197: 0.999 | P197: 6.906754779 | Q197: 0.6985485928 | R197: -0.3587505353 | S197: 1 | T197: 1
B198: 0 | C198: 1 | D198: 3 | E198: 4 | F198: 3 | G198: 7 | H198: 7 | I198: 7 | J198: 1 | K198: 2 | L198: 2 | M198: 6 | O198: 0.001 | P198: -6.906754779 | Q198: 0.08066037041 | R198: -0.0840996606 | S198: 0 | T198: 1
B199: 0 | C199: 1 | D199: 5 | E199: 4 | F199: 6 | G199: 6 | H199: 7 | I199: 6 | J199: 3 | K199: 3 | L199: 3 | M199: 4 | O199: 0.001 | P199: -6.906754779 | Q199: 0.002948478207 | R199: -0.002952833532 | S199: 0 | T199: 1
B200: 1 | C200: 1 | D200: 7 | E200: 7 | F200: 7 | G200: 4 | H200: 5 | I200: 4 | J200: 1 | K200: 1 | L200: 1 | M200: 7 | O200: 0.999 | P200: 6.906754779 | Q200: 0.4859912965 | R200: -0.7215645637 | S200: 0 | T200: 0
... 1316 more rows

Sheet Lasso
A1: L1-regularized Logistic Regression via Excel Solver | K1: Tuning parameter, l = | P1: 0.8
A2: Y = 1 if recommended the resataurant, else 0 | I2: b-hat | J2: exp(b-hat)
A3: Intercept Term | I3: -2.896207054 | K3: Deviance (-2LL) | P3: =-2*SUM(P17:P1016) -> 1142.835201
A4: X1 = the side dishes and salads are delicious | I4: 0.04264970135 | J4: =EXP(I4) -> 1.043572269 | K4: Absolute sum of coefficients = | P4: =SUM(ABS(I4:I13)) -> 0.8000007999
A5: X2 = the entrées are delicious | I5: 0.2303790453 | J5: =EXP(I5) -> 1.259077167
A6: X3 = the desserts are delicious | I6: -1.030154993e-07 | J6: 0.999999897
A7: X4 = parking at the restaurant is ample | I7: 0.03102448132 | J7: 1.031510756
A8: X5 = the lighting in the restaurant is appropriate | I8: 0.0001565624619 | J8: 1.000156575 | K8: % Correctly Classified (Training) = | P8: =SUM(S17:S1016)/1000 -> 0.806
A9: X6 = the noise level in the restaurant is not distracting to me | I9: 0.0339236869 | J9: 1.034505657 | K9: % Correctly Classified (Holdout) = | P9: =SUM(S1017:S1516)/500 -> 0.774
A10: X7 = the wait for beverage service is excessive | I10: -0.002484330241 | J10: 0.9975187532
A11: X8 = the wait for food service is excessive | I11: -0.2791876696 | J11: 0.756397937
A12: X9 = the wait for the check is excessive | I12: -0.01329990111 | J12: 0.9867881518
A13: X10 = restaurant service personnel are courteous and friendly | I13: 0.1668953186 | J13: 1.181630564
O15: Prob
A16: Customer | B16: Y | C16: X0 | D16: X1 | E16: X2 | F16: X3 | G16: X4 | H16: X5 | I16: X6 | J16: X7 | K16: X8 | L16: X9 | M16: X10 | O16: Y = 1 | P16: LL | R16: PRED | S16: Correct?
A17: 1 | B17: 0 | C17: 1 | D17: 7 | E17: 7 | F17: 7 | G17: 6 | H17: 6 | I17: 6 | J17: 5 | K17: 4 | L17: 6 | M17: 5 | O17: =1/(1+EXP(-(I$3*C17+I$4*D17+I$5*E17+I$6*F17+I$7*G17+I$8*H17+I$9*I17+I$10*J17+I$11*K17+I$12*L17+I$13*M17))) -> 0.275105133 | P17: =B17*LN(O17)+(1-B17)*LN(1-O17) -> -0.3217286456 | R17: =IF(O17>0.5,1,0) -> 0 | S17: =IF(B17=R17,1,0) -> 1
A18: 2 | B18: 0 | C18: 1 | D18: 7 | E18: 7 | F18: 7 | G18: 7 | H18: 7 | I18: 7 | J18: 2 | K18: 3 | L18: 2 | M18: 6 | O18: =1/(1+EXP(-(I$3*C18+I$4*D18+I$5*E18+I$6*F18+I$7*G18+I$8*H18+I$9*I18+I$10*J18+I$11*K18+I$12*L18+I$13*M18))) -> 0.4020254035 | P18: -0.5142070066 | R18: =IF(O18>0.5,1,0) -> 0 | S18: 1
A19: 3 | B19: 0 | C19: 1 | D19: 7 | E19: 7 | F19: 7 | G19: 5 | H19: 4 | I19: 7 | J19: 2 | K19: 3 | L19: 2 | M19: 7 | O19: 0.4273536796 | P19: -0.5574869947 | R19: 0 | S19: 1
A20: 4 | B20: 1 | C20: 1 | D20: 7 | E20: 6 | F20: 6 | G20: 4 | H20: 5 | I20: 6 | J20: 3 | K20: 3 | L20: 2 | M20: 4 | O20: 0.2514305534 | P20: -1.380588457 | R20: 0 | S20: 0
A21: 5 | B21: 1 | C21: 1 | D21: 6 | E21: 7 | F21: 7 | G21: 7 | H21: 7 | I21: 7 | J21: 6 | K21: 5 | L21: 5 | M21: 6 | O21: 0.2596295123 | P21: -1.348499617 | R21: 0 | S21: 0
A22: 6 | B22: 1 | C22: 1 | D22: 7 | E22: 7 | F22: 7 | G22: 6 | H22: 5 | I22: 5 | J22: 1 | K22: 1 | L22: 2 | M22: 7 | O22: 0.5576270376 | P22: -0.5840649315 | R22: 1 | S22: 1
A23: 7 | B23: 1 | C23: 1 | D23: 4 | E23: 5 | F23: 4 | G23: 7 | H23: 7 | I23: 7 | J23: 3 | K23: 3 | L23: 3 | M23: 2 | O23: 0.1585434907 | P23: -1.841726334 | R23: 0 | S23: 0
A24: 8 | B24: 0 | C24: 1 | D24: 7 | E24: 7 | F24: 7 | G24: 6 | H24: 7 | I24: 7 | J24: 1 | K24: 1 | L24: 1 | M24: 7 | O24: 0.5776167269 | P24: -0.8618421472 | R24: 1 | S24: 0
A25: 9 | B25: 1 | C25: 1 | D25: 7 | E25: 7 | F25: 7 | G25: 7 | H25: 7 | I25: 7 | J25: 1 | K25: 1 | L25: 1 | M25: 7 | O25: 0.5851671576 | P25: -0.5358577331 | R25: 1 | S25: 1
A26: 10 | B26: 0 | C26: 1 | D26: 7 | E26: 7 | F26: 7 | G26: 4 | H26: 7 | I26: 2 | J26: 1 | K26: 1 | L26: 1 | M26: 7 | O26: 0.5203213042 | P26: -0.734638783 | R26: 1 | S26: 0
A27: 11 | B27: 0 | C27: 1 | D27: 7 | E27: 6 | F27: 7 | G27: 7 | H27: 7 | I27: 7 | J27: 2 | K27: 3 | L27: 3 | M27: 4 | O27: 0.2739839534 | P27: -0.3201831617 | R27: 0 | S27: 1
A28: 12 | B28: 1 | C28: 1 | D28: 7 | E28: 7 | F28: 7 | G28: 3 | H28: 3 | I28: 3 | J28: 1 | K28: 1 | L28: 1 | M28: 7 | O28: 0.5208885781 | P28: -0.6522191217 | R28: 1 | S28: 1
A29: 13 | B29: 1 | C29: 1 | D29: 7 | E29: 7 | F29: 6 | G29: 7 | H29: 6 | I29: 4 | J29: 4 | K29: 4 | L29: 3 | M29: 5 | O29: 0.276215555 | P29: -1.286573722 | R29: 0 | S29: 0
A30: 14 | B30: 0 | C30: 1 | D30: 7 | E30: 7 | F30: 7 | G30: 6 | H30: 6 | I30: 6 | J30: 3 | K30: 2 | L30: 2 | M30: 4 | O30: 0.3730334674 | P30: -0.4668621168 | R30: 0 | S30: 1
A31: 15 | B31: 1 | C31: 1 | D31: 7 | E31: 7 | F31: 7 | G31: 4 | H31: 3 | I31: 4 | J31: 1 | K31: 1 | L31: 1 | M31: 6 | O31: 0.4954140843 | P31: -0.7023613321 | R31: 0 | S31: 0
A32: 16 | B32: 1 | C32: 1 | D32: 7 | E32: 7 | F32: 7 | G32: 5 | H32: 6 | I32: 6 | J32: 1 | K32: 1 | L32: 1 | M32: 7 | O32: 0.5616577508 | P32: -0.5768625989 | R32: 1 | S32: 1
A33: 17 | B33: 1 | C33: 1 | D33: 5 | E33: 6 | F33: 6 | G33: 7 | H33: 7 | I33: 7 | J33: 1 | K33: 1 | L33: 1 | M33: 7 | O33: 0.5070854134 | P33: -0.6790758213 | R33: 1 | S33: 1
A34: 18 | B34: 1 | C34: 1 | D34: 2 | E34: 2 | F34: 2 | G34: 7 | H34: 7 | I34: 3 | J34: 5 | K34: 4 | L34: 5 | M34: 5 | O34: 0.08383801524 | P34: -2.478868732 | R34: 0 | S34: 0
A35: 19 | B35: 1 | C35: 1 | D35: 2 | E35: 3 | F35: 4 | G35: 7 | H35: 6 | I35: 6 | J35: 4 | K35: 4 | L35: 4 | M35: 5 | O35: 0.1147078673 | P35: -2.165366667 | R35: 0 | S35: 0
A36: 20 | B36: 0 | C36: 1 | D36: 7 | E36: 7 | F36: 7 | G36: 5 | H36: 6 | I36: 4 | J36: 1 | K36: 3 | L36: 3 | M36: 4 | O36: 0.28789782 | P36: -0.3395338666 | R36: 0 | S36: 1
A37: 21 | B37: 0 | C37: 1 | D37: 7 | E37: 7 | F37: 7 | G37: 7 | H37: 5 | I37: 6 | J37: 5 | K37: 6 | L37: 5 | M37: 5 | O37: 0.1849625296 | P37: -0.2045211908 | R37: 0 | S37: 1
A38: 22 | B38: 0 | C38: 1 | D38: 7 | E38: 7 | F38: 7 | G38: 7 | H38: 7 | I38: 7 | J38: 2 | K38: 2 | L38: 2 | M38: 5 | O38: 0.4292919297 | P38: -0.5608774605 | R38: 0 | S38: 1
A39: 23 | B39: 0 | C39: 1 | D39: 6 | E39: 7 | F39: 6 | G39: 6 | H39: 3 | I39: 6 | J39: 3 | K39: 2 | L39: 3 | M39: 7 | O39: 0.4812692063 | P39: -0.6563702323 | R39: 0 | S39: 1
A40: 24 | B40: 1 | C40: 1 | D40: 7 | E40: 7 | F40: 7 | G40: 5 | H40: 6 | I40: 5 | J40: 1 | K40: 1 | L40: 1 | M40: 7 | O40: 0.5532890942 | P40: -0.5918746397 | R40: 1 | S40: 1
A41: 25 | B41: 1 | C41: 1 | D41: 7 | E41: 7 | F41: 7 | G41: 7 | H41: 7 | I41: 7 | J41: 1 | K41: 1 | L41: 2 | M41: 7 | O41: 0.581935039 | P41: -0.5413964544 | R41: 1 | S41: 1
A42: 26 | B42: 0 | C42: 1 | D42: 7 | E42: 6 | F42: 5 | G42: 6 | H42: 7 | I42: 7 | J42: 1 | K42: 1 | L42: 1 | M42: 6 | O42: 0.4789432758 | P42: -0.6518963675 | R42: 0 | S42: 1
A43: 27 | B43: 1 | C43: 1 | D43: 7 | E43: 7 | F43: 7 | G43: 7 | H43: 7 | I43: 7 | J43: 1 | K43: 1 | L43: 1 | M43: 7 | O43: 0.5851671576 | P43: -0.5358577331 | R43: 1 | S43: 1
A44: 28 | B44: 1 | C44: 1 | D44: 7 | E44: 7 | F44: 7 | G44: 7 | H44: 6 | I44: 5 | J44: 1 | K44: 1 | L44: 1 | M44: 7 | O44: 0.5685697046 | P44: -0.5646313619 | R44: 1 | S44: 1
A45: 29 | B45: 0 | C45: 1 | D45: 2 | E45: 2 | F45: 2 | G45: 7 | H45: 7 | I45: 7 | J45: 1 | K45: 1 | L45: 1 | M45: 3 | O45: 0.1559465375 | P45: -0.1695394422 | R45: 0 | S45: 1
A46: 30 | B46: 1 | C46: 1 | D46: 7 | E46: 6 | F46: 7 | G46: 7 | H46: 7 | I46: 7 | J46: 1 | K46: 1 | L46: 1 | M46: 7 | O46: 0.5283801758 | P46: -0.6379392244 | R46: 1 | S46: 1
A47: 31 | B47: 1 | C47: 1 | D47: 6 | E47: 6 | F47: 5 | G47: 7 | H47: 7 | I47: 7 | J47: 4 | K47: 4 | L47: 4 | M47: 4 | O47: 0.21171673 | P47: -1.552506077 | R47: 0 | S47: 0
A48: 32 | B48: 0 | C48: 1 | D48: 4 | E48: 5 | F48: 5 | G48: 7 | H48: 5 | I48: 7 | J48: 1 | K48: 1 | L48: 1 | M48: 7 | O48: 0.4390549887 | P48: -0.5781323973 | R48: 0 | S48: 1
A49: 33 | B49: 0 | C49: 1 | D49: 7 | E49: 7 | F49: 7 | G49: 7 | H49: 7 | I49: 7 | J49: 4 | K49: 5 | L49: 5 | M49: 7 | O49: 0.3029305708 | P49: -0.3608702617 | R49: 0 | S49: 1
A50: 34 | B50: 1 | C50: 1 | D50: 6 | E50: 5 | F50: 7 | G50: 5 | H50: 7 | I50: 5 | J50: 3 | K50: 4 | L50: 3 | M50: 6 | O50: 0.2099363666 | P50: -1.560950811 | R50: 0 | S50: 0
A51: 35 | B51: 0 | C51: 1 | D51: 5 | E51: 7 | F51: 7 | G51: 4 | H51: 1 | I51: 3 | J51: 1 | K51: 1 | L51: 1 | M51: 7 | O51: 0.5072532229 | P51: -0.7077598736 | R51: 1 | S51: 0
A52: 36 | B52: 0 | C52: 1 | D52: 6 | E52: 5 | F52: 5 | G52: 7 | H52: 7 | I52: 6 | J52: 2 | K52: 1 | L52: 1 | M52: 5 | O52: 0.3706138383 | P52: -0.4630102811 | R52: 0 | S52: 1
A53: 37 | B53: 0 | C53: 1 | D53: 6 | E53: 7 | F53: 7 | G53: 3 | H53: 2 | I53: 3 | J53: 3 | K53: 4 | L53: 4 | M53: 5 | O53: 0.2358757362 | P53: -0.269024854 | R53: 0 | S53: 1
A54: 38 | B54: 1 | C54: 1 | D54: 7 | E54: 7 | F54: 7 | G54: 4 | H54: 4 | I54: 3 | J54: 1 | K54: 1 | L54: 1 | M54: 7 | O54: 0.528664539 | P54: -0.63740119 | R54: 1 | S54: 1
A55: 39 | B55: 0 | C55: 1 | D55: 5 | E55: 6 | F55: 6 | G55: 6 | H55: 6 | I55: 5 | J55: 3 | K55: 3 | L55: 4 | M55: 6 | O55: 0.301361292 | P55: -0.3586215402 | R55: 0 | S55: 1
A56: 40 | B56: 1 | C56: 1 | D56: 7 | E56: 7 | F56: 7 | G56: 4 | H56: 3 | I56: 2 | J56: 1 | K56: 1 | L56: 1 | M56: 7 | O56: 0.5201649984 | P56: -0.6536092131 | R56: 1 | S56: 1
A57: 41 | B57: 1 | C57: 1 | D57: 7 | E57: 7 | F57: 7 | G57: 6 | H57: 7 | I57: 6 | J57: 1 | K57: 1 | L57: 1 | M57: 7 | O57: 0.5693191214 | P57: -0.5633141561 | R57: 1 | S57: 1
A58: 42 | B58: 0 | C58: 1 | D58: 5 | E58: 5 | F58: 5 | G58: 7 | H58: 7 | I58: 7 | J58: 5 | K58: 3 | L58: 4 | M58: 5 | O58: 0.2415796791 | P58: -0.276517534 | R58: 0 | S58: 1
A59: 43 | B59: 0 | C59: 1 | D59: 3 | E59: 4 | F59: 4 | G59: 4 | H59: 7 | I59: 6 | J59: 3 | K59: 3 | L59: 4 | M59: 2 | O59: 0.1108161829 | P59: -0.1174512965 | R59: 0 | S59: 1
A60: 44 | B60: 0 | C60: 1 | D60: 7 | E60: 7 | F60: 7 | G60: 2 | H60: 5 | I60: 5 | J60: 4 | K60: 4 | L60: 4 | M60: 6 | O60: 0.2827072733 | P60: -0.3322712558 | R60: 0 | S60: 1
A61: 45 | B61: 0 | C61: 1 | D61: 7 | E61: 5 | F61: 7 | G61: 7 | H61: 6 | I61: 7 | J61: 2 | K61: 1 | L61: 1 | M61: 7 | O61: 0.47019112 | P61: -0.6352389413 | R61: 0 | S61: 1
A62: 46 | B62: 0 | C62: 1 | D62: 6 | E62: 4 | F62: 6 | G62: 7 | H62: 7 | I62: 7 | J62: 1 | K62: 2 | L62: 1 | M62: 7 | O62: 0.3387314315 | P62: -0.4135952153 | R62: 0 | S62: 1
A63: 47 | B63: 0 | C63: 1 | D63: 4 | E63: 5 | F63: 5 | G63: 4 | H63: 5 | I63: 4 | J63: 3 | K63: 3 | L63: 3 | M63: 4 | O63: 0.1779245668 | P63: -0.1959231203 | R63: 0 | S63: 1
A64: 48 | B64: 0 | C64: 1 | D64: 5 | E64: 5 | F64: 3 | G64: 6 | H64: 6 | I64: 6 | J64: 3 | K64: 2 | L64: 2 | M64: 6 | O64: 0.3248675209 | P64: -0.392846342 | R64: 0 | S64: 1
A65: 49 | B65: 0 | C65: 1 | D65: 6 | E65: 6 | F65: 6 | G65: 7 | H65: 7 | I65: 7 | J65: 5 | K65: 4 | L65: 3 | M65: 5 | O65: 0.2428904359 | P65: -0.2782473015 | R65: 0 | S65: 1
A66: 50 | B66: 1 | C66: 1 | D66: 7 | E66: 7 | F66: 7 | G66: 4 | H66: 6 | I66: 7 | J66: 1 | K66: 1 | L66: 1 | M66: 7 | O66: 0.5623714023 | P66: -0.5755927892 | R66: 1 | S66: 1
A67: 51 | B67: 0 | C67: 1 | D67: 5 | E67: 6 | F67: 5 | G67: 7 | H67: 7 | I67: 7 | J67: 2 | K67: 2 | L67: 2 | M67: 6 | O67: 0.3932852513 | P67: -0.4996965346 | R67: 0 | S67: 1
A68: 52 | B68: 0 | C68: 1 | D68: 7 | E68: 6 | F68: 6 | G68: 7 | H68: 7 | I68: 7 | J68: 1 | K68: 1 | L68: 1 | M68: 7 | O68: 0.5283802015 | P68: -0.7515821296 | R68: 1 | S68: 0
A69: 53 | B69: 0 | C69: 1 | D69: 4 | E69: 5 | F69: 5 | G69: 7 | H69: 7 | I69: 5 | J69: 5 | K69: 4 | L69: 5 | M69: 5 | O69: 0.17551665 | P69: -0.1929983312 | R69: 0 | S69: 1
A70: 54 | B70: 0 | C70: 1 | D70: 7 | E70: 7 | F70: 7 | G70: 7 | H70: 7 | I70: 7 | J70: 2 | K70: 3 | L70: 2 | M70: 7 | O70: 0.4427181783 | P70: -0.5846842034 | R70: 0 | S70: 1
A71: 55 | B71: 0 | C71: 1 | D71: 6 | E71: 7 | F71: 6 | G71: 5 | H71: 5 | I71: 4 | J71: 4 | K71: 4 | L71: 3 | M71: 6 | O71: 0.2887891771 | P71: -0.3407863771 | R71: 0 | S71: 1
A72: 56 | B72: 0 | C72: 1 | D72: 4 | E72: 4 | F72: 5 | G72: 7 | H72: 7 | I72: 7 | J72: 2 | K72: 2 | L72: 1 | M72: 6 | O72: 0.2842185382 | P72: -0.3343803796 | R72: 0 | S72: 1
A73: 57 | B73: 0 | C73: 1 | D73: 7 | E73: 7 | F73: 7 | G73: 6 | H73: 5 | I73: 4 | J73: 2 | K73: 3 | L73: 1 | M73: 2 | O73: 0.2342578552 | P73: -0.2669097915 | R73: 0 | S73: 1
A74: 58 | B74: 0 | C74: 1 | D74: 7 | E74: 7 | F74: 7 | G74: 5 | H74: 6 | I74: 4 | J74: 4 | K74: 2 | L74: 4 | M74: 5 | O74: 0.3821846658 | P74: -0.4815656782 | R74: 0 | S74: 1
A75: 59 | B75: 1 | C75: 1 | D75: 7 | E75: 7 | F75: 7 | G75: 7 | H75: 7 | I75: 7 | J75: 1 | K75: 1 | L75: 1 | M75: 6 | O75: 0.5441662327 | P75: -0.608500504 | R75: 1 | S75: 1
A76: 60 | B76: 1 | C76: 1 | D76: 7 | E76: 6 | F76: 6 | G76: 6 | H76: 6 | I76: 7 | J76: 3 | K76: 1 | L76: 3 | M76: 4 | O76: 0.3894101001 | P76: -0.9431222488 | R76: 0 | S76: 0
B77: 0 | C77: 1 | D77: 7 | E77: 7 | F77: 6 | G77: 7 | H77: 7 | I77: 7 | J77: 1 | K77: 1 | L77: 1 | M77: 7 | O77: 0.5851671826 | P77: -0.8798796895 | R77: 1 | S77: 0
B78: 1 | C78: 1 | D78: 6 | E78: 7 | F78: 7 | G78: 5 | H78: 5 | I78: 6 | J78: 1 | K78: 2 | L78: 2 | M78: 7 | O78: 0.4781636112 | P78: -0.7378023221 | R78: 0 | S78: 0
B79: 1 | C79: 1 | D79: 7 | E79: 7 | F79: 7 | G79: 7 | H79: 7 | I79: 6 | J79: 1 | K79: 1 | L79: 1 | M79: 7 | O79: 0.5769092327 | P79: -0.5500703339 | R79: 1 | S79: 1
B80: 1 | C80: 1 | D80: 6 | E80: 6 | F80: 6 | G80: 5 | H80: 7 | I80: 6 | J80: 1 | K80: 1 | L80: 1 | M80: 7 | O80: 0.4937554754 | P80: -0.7057148734 | R80: 0 | S80: 0
B81: 1 | C81: 1 | D81: 7 | E81: 6 | F81: 7 | G81: 6 | H81: 7 | I81: 7 | J81: 1 | K81: 1 | L81: 1 | M81: 7 | O81: 0.5206428517 | P81: =B81*LN(O81)+(1-B81)*LN(1-O81) -> -0.6526909777 | R81: 1 | S81: =IF(B81=R81,1,0) -> 1
B82: 0 | C82: 1 | D82: 7 | E82: 7 | F82: 7 | G82: 7 | H82: 7 | I82: 7 | J82: 1 | K82: 2 | L82: 1 | M82: 7 | O82: =1/(1+EXP(-(I$3*C82+I$4*D82+I$5*E82+I$6*F82+I$7*G82+I$8*H82+I$9*I82+I$10*J82+I$11*K82+I$12*L82+I$13*M82))) -> 0.5162028813 | P82: -0.7260896364 | R82: =IF(O82>0.5,1,0) -> 1 | S82: 0
B83: 1 | C83: 1 | D83: 7 | E83: 7 | F83: 7 | G83: 7 | H83: 7 | I83: 7 | J83: 1 | K83: 1 | L83: 1 | M83: 7 | O83: 0.5851671576 | P83: -0.5358577331 | R83: 1 | S83: 1
B84: 1 | C84: 1 | D84: 7 | E84: 7 | F84: 7 | G84: 4 | H84: 4 | I84: 7 | J84: 3 | K84: 3 | L84: 2 | M84: 6 | O84: 0.3791728682 | P84: -0.9697630612 | R84: 0 | S84: 0
B85: 0 | C85: 1 | D85: 1 | E85: 2 | F85: 1 | G85: 5 | H85: 5 | I85: 4 | J85: 6 | K85: 5 | L85: 4 | M85: 4 | O85: 0.052269257 | P85: -0.05368484344 | R85: 0 | S85: 1
B86: 1 | C86: 1 | D86: 1 | E86: 1 | F86: 1 | G86: 2 | H86: 1 | I86: 3 | J86: 3 | K86: 4 | L86: 4 | M86: 3 | O86: 0.04164970244 | P86: -3.178461055 | R86: 0 | S86: 0
B87: 0 | C87: 1 | D87: 4 | E87: 6 | F87: 5 | G87: 6 | H87: 5 | I87: 5 | J87: 3 | K87: 5 | L87: 4 | M87: 2 | O87: 0.1081685342 | P87: -0.1144781039 | R87: 0 | S87: 1
B88: 0 | C88: 1 | D88: 5 | E88: 5 | F88: 4 | G88: 7 | H88: 7 | I88: 7 | J88: 2 | K88: 3 | L88: 3 | M88: 6 | O88: 0.2776015431 | P88: -0.325178413 | R88: 0 | S88: 1
B89: 0 | C89: 1 | D89: 7 | E89: 7 | F89: 7 | G89: 4 | H89: 4 | I89: 5 | J89: 3 | K89: 2 | L89: 1 | M89: 7 | O89: 0.4746405438 | P89: -0.6436725722 | R89: 0 | S89: 1
B90: 0 | C90: 1 | D90: 7 | E90: 7 | F90: 7 | G90: 7 | H90: 4 | I90: 7 | J90: 3 | K90: 3 | L90: 3 | M90: 7 | O90: 0.4387118494 | P90: -0.5775208678 | R90: 0 | S90: 1
B91: 1 | C91: 1 | D91: 7 | E91: 7 | F91: 7 | G91: 5 | H91: 4 | I91: 4 | J91: 1 | K91: 1 | L91: 1 | M91: 7 | O91: 0.5448124773 | P91: -0.6073136218 | R91: 1 | S91: 1
B92: 0 | C92: 1 | D92: 5 | E92: 5 | F92: 5 | G92: 7 | H92: 7 | I92: 6 | J92: 1 | K92: 1 | L92: 1 | M92: 7 | O92: 0.4412824114 | P92: -0.5821111417 | R92: 0 | S92: 1
B93: 0 | C93: 1 | D93: 6 | E93: 6 | F93: 6 | G93: 5 | H93: 7 | I93: 6 | J93: 1 | K93: 1 | L93: 1 | M93: 7 | O93: 0.4937554754 | P93: -0.6807354762 | R93: 0 | S93: 1
B94: 0 | C94: 1 | D94: 6 | E94: 7 | F94: 7 | G94: 5 | H94: 6 | I94: 6 | J94: 3 | K94: 4 | L94: 3 | M94: 6 | O94: 0.3034793637 | P94: -0.3616578577 | R94: 0 | S94: 1
B95: 0 | C95: 1 | D95: 7 | E95: 7 | F95: 7 | G95: 5 | H95: 5 | I95: 5 | J95: 1 | K95: 1 | L95: 1 | M95: 5 | O95: 0.470041378 | P95: -0.6349563472 | R95: 0 | S95: 1
B96: 0 | C96: 1 | D96: 7 | E96: 7 | F96: 7 | G96: 6 | H96: 7 | I96: 7 | J96: 1 | K96: 1 | L96: 1 | M96: 6 | O96: 0.5364606901 | P96: -0.7688640866 | R96: 1 | S96: 0
B97: 1 | C97: 1 | D97: 6 | E97: 7 | F97: 5 | G97: 7 | H97: 5 | I97: 6 | J97: 1 | K97: 1 | L97: 1 | M97: 7 | O97: 0.5663895615 | P97: -0.5684731663 | R97: 1 | S97: 1
B98: 0 | C98: 1 | D98: 4 | E98: 6 | F98: 5 | G98: 6 | H98: 4 | I98: 5 | J98: 1 | K98: 1 | L98: 1 | M98: 7 | O98: 0.4716186432 | P98: -0.6379369894 | R98: 0 | S98: 1
B99: 0 | C99: 1 | D99: 6 | E99: 5 | F99: 6 | G99: 6 | H99: 6 | I99: 5 | J99: 3 | K99: 2 | L99: 3 | M99: 7 | O99: 0.361428286 | P99: -0.4485212934 | R99: 0 | S99: 1
B100: 0 | C100: 1 | D100: 6 | E100: 6 | F100: 5 | G100: 7 | H100: 7 | I100: 7 | J100: 3 | K100: 2 | L100: 2 | M100: 4 | O100: 0.3258207082 | P100: -0.3942591919 | R100: 0 | S100: 1
B101: 0 | C101: 1 | D101: 5 | E101: 6 | F101: 5 | G101: 5 | H101: 4 | I101: 5 | J101: 3 | K101: 3 | L101: 3 | M101: 5 | O101: 0.2639075618 | P101: -0.3063995728 | R101: 0 | S101: 1
B102: 0 | C102: 1 | D102: 5 | E102: 4 | F102: 5 | G102: 7 | H102: 7 | I102: 7 | J102: 2 | K102: 2 | L102: 1 | M102: 6 | O102: 0.2929743765 | P102: -0.3466883711 | R102: 0 | S102: 1
B103: 1 | C103: 1 | D103: 7 | E103: 7 | F103: 7 | G103: 7 | H103: 7 | I103: 7 | J103: 2 | K103: 1 | L103: 1 | M103: 7 | O103: 0.5845639676 | P103: -0.5368890641 | R103: 1 | S103: 1
B104: 1 | C104: 1 | D104: 6 | E104: 7 | F104: 6 | G104: 6 | H104: 7 | I104: 7 | J104: 1 | K104: 2 | L104: 1 | M104: 7 | O104: 0.4977900511 | P104: -0.697576875 | R104: 0 | S104: 0
B105: 1 | C105: 1 | D105: 7 | E105: 7 | F105: 7 | G105: 6 | H105: 6 | I105: 6 | J105: 1 | K105: 2 | L105: 2 | M105: 7 | O105: 0.4966074507 | P105: -0.6999554025 | R105: 0 | S105: 0
B106: 0 | C106: 1 | D106: 7 | E106: 7 | F106: 7 | G106: 7 | H106: 5 | I106: 6 | J106: 1 | K106: 1 | L106: 1 | M106: 7 | O106: 0.5768328018 | P106: -0.8599879103 | R106: 1 | S106: 0
B107: 1 | C107: 1 | D107: 7 | E107: 7 | F107: 7 | G107: 4 | H107: 7 | I107: 7 | J107: 1 | K107: 1 | L107: 2 | M107: 7 | O107: 0.5591340905 | P107: -0.5813659589 | R107: 1 | S107: 1
B108: 0 | C108: 1 | D108: 7 | E108: 7 | F108: 7 | G108: 4 | H108: 3 | I108: 3 | J108: 1 | K108: 3 | L108: 1 | M108: 7 | O108: 0.3908482867 | P108: -0.4956879235 | R108: 0 | S108: 1
B109: 0 | C109: 1 | D109: 5 | E109: 5 | F109: 4 | G109: 2 | H109: 6 | I109: 4 | J109: 1 | K109: 1 | L109: 1 | M109: 7 | O109: 0.3872028343 | P109: -0.4897212857 | R109: 0 | S109: 1
B110: 0 | C110: 1 | D110: 7 | E110: 7 | F110: 5 | G110: 6 | H110: 7 | I110: 7 | J110: 3 | K110: 3 | L110: 2 | M110: 6 | O110: 0.3939970102 | P110: -0.5008703593 | R110: 0 | S110: 1
B111: 0 | C111: 1 | D111: 6 | E111: 7 | F111: 7 | G111: 5 | H111: 5 | I111: 6 | J111: 2 | K111: 2 | L111: 2 | M111: 5 | O111: 0.3956374229 | P111: -0.5035809679 | R111: 0 | S111: 1
B112: 0 | C112: 1 | D112: 7 | E112: 7 | F112: 7 | G112: 7 | H112: 6 | I112: 6 | J112: 5 | K112: 4 | L112: 5 | M112: 6 | O112: 0.3191559104 | P112: -0.3844219423 | R112: 0 | S112: 1
B113: 1 | C113: 1 | D113: 7 | E113: 7 | F113: 7 | G113: 7 | H113: 7 | I113: 7 | J113: 1 | K113: 1 | L113: 1 | M113: 7 | O113: 0.5851671576 | P113: -0.5358577331 | R113: 1 | S113: 1
B114: 0 | C114: 1 | D114: 6 | E114: 5 | F114: 6 | G114: 7 | H114: 7 | I114: 7 | J114: 2 | K114: 2 | L114: 1 | M114: 7 | O114: 0.3914889473 | P114: -0.4967402029 | R114: 0 | S114: 1
B115: 1 | C115: 1 | D115: 7 | E115: 7 | F115: 7 | G115: 7 | H115: 7 | I115: 7 | J115: 1 | K115: 1 | L115: 1 | M115: 7 | O115: 0.5851671576 | P115: -0.5358577331 | R115: 1 | S115: 1
B116: 0 | C116: 1 | D116: 4 | E116: 5 | F116: 4 | G116: 4 | H116: 7 | I116: 7 | J116: 1 | K116: 2 | L116: 1 | M116: 5 | O116: 0.2787366817 | P116: -0.3267509957 | R116: 0 | S116: 1
B117: 0 | C117: 1 | D117: 3 | E117: 4 | F117: 4 | G117: 7 | H117: 6 | I117: 7 | J117: 1 | K117: 1 | L117: 1 | M117: 7 | O117: 0.3733503638 | P117: -0.4673676884 | R117: 0 | S117: 1
B118: 0 | C118: 1 | D118: 7 | E118: 7 | F118: 7 | G118: 7 | H118: 7 | I118: 5 | J118: 2 | K118: 1 | L118: 3 | M118: 5 | O118: 0.4783385054 | P118: -0.6507363793 | R118: 0 | S118: 1
B119: 0 | C119: 1 | D119: 4 | E119: 4 | F119: 3 | G119: 7 | H119: 7 | I119: 7 | J119: 5 | K119: 4 | L119: 5 | M119: 6 | O119: 0.17614904 | P119: -0.1937656393 | R119: 0 | S119: 1
B120: 0 | C120: 1 | D120: 5 | E120: 5 | F120: 5 | G120: 7 | H120: 4 | I120: 7 | J120: 3 | K120: 4 | L120: 3 | M120: 5 | O120: 0.196956311 | P120: -0.2193461592 | R120: 0 | S120: 1
B121: 0 | C121: 1 | D121: 7 | E121: 7 | F121: 7 | G121: 5 | H121: 5 | I121: 2 | J121: 3 | K121: 1 | L121: 2 | M121: 7 | O121: 0.5234260395 | P121: -0.7411323518 | R121: 1 | S121: 0
B122: 0 | C122: 1 | D122: 7 | E122: 6 | F122: 7 | G122: 6 | H122: 6 | I122: 6 | J122: 1 | K122: 1 | L122: 1 | M122: 5 | O122: 0.4291665247 | P122: -0.5606577487 | R122: 0 | S122: 1
B123: 0 | C123: 1 | D123: 6 | E123: 5 | F123: 5 | G123: 5 | H123: 4 | I123: 4 | J123: 3 | K123: 3 | L123: 4 | M123: 6 | O123: 0.2509006786 | P123: -0.2888836989 | R123: 0 | S123: 1
B124: 0 | C124: 1 | D124: 5 | E124: 6 | F124: 6 | G124: 6 | H124: 5 | I124: 4 | J124: 2 | K124: 2 | L124: 2 | M124: 2 | O124: 0.2254447964 | P124: -0.2554663452 | R124: 0 | S124: 1
B125: 1 | C125: 1 | D125: 5 | E125: 6 | F125: 5 | G125: 4 | H125: 7 | I125: 7 | J125: 1 | K125: 1 | L125: 1 | M125: 7 | O125: 0.4838232005 | P125: -0.7260357273 | R125: 0 | S125: 0
B126: 0 | C126: 1 | D126: 5 | E126: 5 | F126: 4 | G126: 7 | H126: 7 | I126: 6 | J126: 3 | K126: 5 | L126: 4 | M126: 6 | O126: 0.1730056892 | P126: -0.1899574634 | R126: 0 | S126: 1
B127: 1 | C127: 1 | D127: 5 | E127: 4 | F127: 5 | G127: 7 | H127: 7 | I127: 6 | J127: 2 | K127: 1 | L127: 2 | M127: 3 | O127: 0.2405432205 | P127: -1.424855495 | R127: 0 | S127: 0
B128: 1 | C128: 1 | D128: 7 | E128: 7 | F128: 7 | G128: 7 | H128: 7 | I128: 7 | J128: 1 | K128: 1 | L128: 1 | M128: 7 | O128: 0.5851671576 | P128: -0.5358577331 | R128: 1 | S128: 1
B129: 1 | C129: 1 | D129: 6 | E129: 7 | F129: 7 | G129: 6 | H129: 5 | I129: 6 | J129: 5 | K129: 4 | L129: 5 | M129: 5 | O129: 0.2692601169 | P129: -1.312077389 | R129: 0 | S129: 0
B130: 1 | C130: 1 | D130: 7 | E130: 7 | F130: 7 | G130: 5 | H130: 5 | I130: 5 | J130: 1 | K130: 1 | L130: 1 | M130: 7 | O130: 0.5532503979 | P130: -0.5919445809 | R130: 1 | S130: 1
B131: 1 | C131: 1 | D131: 7 | E131: 7 | F131: 7 | G131: 7 | H131: 7 | I131: 7 | J131: 1 | K131: 1 | L131: 1 | M131: 7 | O131: 0.5851671576 | P131: -0.5358577331 | R131: 1 | S131: 1
B132: 0 | C132: 1 | D132: 4 | E132: 3 | F132: 3 | G132: 7 | H132: 7 | I132: 7 | J132: 2 | K132: 1 | L132: 3 | M132: 7 | O132: 0.3242020716 | P132: -0.3918611701 | R132: 0 | S132: 1
B133: 0 | C133: 1 | D133: 7 | E133: 7 | F133: 7 | G133: 7 | H133: 6 | I133: 7 | J133: 1 | K133: 1 | L133: 1 | M133: 7 | O133: 0.5851291521 | P133: -0.879788017 | R133: 1 | S133: 0
B134: 0 | C134: 1 | D134: 6 | E134: 7 | F134: 7 | G134: 5 | H134: 4 | I134: 5 | J134: 1 | K134: 1 | L134: 2 | M134: 6 | O134: 0.4977027539 | P134: -0.6885632109 | R134: 0 | S134: 1
B135: 0 | C135: 1 | D135: 3 | E135: 4 | F135: 5 | G135: 6 | H135: 6 | I135: 7 | J135: 2 | K135: 3 | L135: 1 | M135: 4 | O135: 0.1665274638 | P135: -0.1821545273 | R135: 0 | S135: 1
B136: 0 | C136: 1 | D136: 7 | E136: 7 | F136: 7 | G136: 5 | H136: 5 | I136: 5 | J136: 1 | K136: 1 | L136: 1 | M136: 6 | O136: 0.5117271279 | P136: -0.7168808653 | R136: 1 | S136: 0
B137: 0 | C137: 1 | D137: 7 | E137: 7 | F137: 7 | G137: 7 | H137: 7 | I137: 7 | J137: 1 | K137: 1 | L137: 1 | M137: 7 | O137: 0.5851671576 | P137: -0.8798796292 | R137: 1 | S137: 0
B138: 0 | C138: 1 | D138: 7 | E138: 6 | F138: 7 | G138: 6 | H138: 6 | I138: 4 | J138: 1 | K138: 1 | L138: 1 | M138: 5 | O138: 0.412630908 | P138: -0.5321018799 | R138: 0 | S138: 1
B139: 0 | C139: 1 | D139: 6 | E139: 6 | F139: 6 | G139: 6 | H139: 6 | I139: 7 | J139: 2 | K139: 1 | L139: 1 | M139: 3 | O139: 0.3474530832 | P139: -0.4268722392 | R139: 0 | S139: 1
B140: 1 | C140: 1 | D140: 7 | E140: 7 | F140: 7 | G140: 7 | H140: 7 | I140: 7 | J140: 1 | K140: 1 | L140: 1 | M140: 7 | O140: 0.5851671576 | P140: -0.5358577331 | R140: 1 | S140: 1
B141: 1 | C141: 1 | D141: 7 | E141: 7 | F141: 7 | G141: 6 | H141: 5 | I141: 5 | J141: 4 | K141: 5 | L141: 5 | M141: 4 | O141: 0.1925924419 | P141: -1.647179023 | R141: 0 | S141: 0
B142: 0 | C142: 1 | D142: 7 | E142: 7 | F142: 7 | G142: 4 | H142: 5 | I142: 4 | J142: 6 | K142: 7 | L142: 6 | M142: 6 | O142: 0.1452840716 | P142: -0.1569861127 | R142: 0 | S142: 1
B143: 1 | C143: 1 | D143: 7 | E143: 7 | F143: 6 | G143: 7 | H143: 7 | I143: 7 | J143: 1 | K143: 2 | L143: 1 | M143: 6 | O143: 0.4745068778 | P143: -0.7454791661 | R143: 0 | S143: 0
B144: 1 | C144: 1 | D144: 7 | E144: 7 | F144: 7 | G144: 7 | H144: 7 | I144: 7 | J144: 1 | K144: 1 | L144: 1 | M144: 7 | O144: 0.5851671576 | P144: -0.5358577331 | R144: 1 | S144: 1
B145: 1 | C145: 1 | D145: 7 | E145: 7 | F145: 7 | G145: 7 | H145: 7 | I145: 7 | J145: 1 | K145: 1 | L145: 1 | M145: 7 | O145: 0.5851671576 | P145: =B145*LN(O145)+(1-B145)*LN(1-O145) -> -0.5358577331 | R145: 1 | S145: =IF(B145=R145,1,0) -> 1
B146: 1 | C146: 1 | D146: 7 | E146: 7 | F146: 7 | G146: 4 | H146: 5 | I146: 4 | J146: 1 | K146: 1 | L146: 1 | M146: 7 | O146: =1/(1+EXP(-(I$3*C146+I$4*D146+I$5*E146+I$6*F146+I$7*G146+I$8*H146+I$9*I146+I$10*J146+I$11*K146+I$12*L146+I$13*M146))) -> 0.5371474911 | P146: -0.6214825646 | R146: =IF(O146>0.5,1,0) -> 1 | S146: 1
B147: 1 | C147: 1 | D147: 7 | E147: 7 | F147: 7 | G147: 7 | H147: 7 | I147: 7 | J147: 1 | K147: 1 | L147: 1 | M147: 7 | O147: 0.5851671576 | P147: -0.5358577331 | R147: 1 | S147: 1
B148: 1 | C148: 1 | D148: 5 | E148: 6 | F148: 7 | G148: 5 | H148: 6 | I148: 5 | J148: 2 | K148: 3 | L148: 4 | M148: 3 | O148: 0.2026117524 | P148: -1.596463681 | R148: 0 | S148: 0
B149: 1 | C149: 1 | D149: 7 | E149: 7 | F149: 7 | G149: 7 | H149: 7 | I149: 7 | J149: 1 | K149: 1 | L149: 1 | M149: 7 | O149: 0.5851671576 | P149: -0.5358577331 | R149: 1 | S149: 1
B150: 1 | C150: 1 | D150: 6 | E150: 7 | F150: 6 | G150: 7 | H150: 7 | I150: 7 | J150: 1 | K150: 1 | L150: 1 | M150: 7 | O150: 0.5747779521 | P150: -0.5537714831 | R150: 1 | S150: 1
B151: 0 | C151: 1 | D151: 5 | E151: 4 | F151: 5 | G151: 4 | H151: 5 | I151: 5 | J151: 5 | K151: 4 | L151: 6 | M151: 3 | O151: 0.1019970475 | P151: -0.1075819229 | R151: 0 | S151: 1
B152: 0 | C152: 1 | D152: 7 | E152: 7 | F152: 7 | G152: 6 | H152: 6 | I152: 7 | J152: 2 | K152: 1 | L152: 2 | M152: 7 | O152: 0.5737228262 | P152: -0.8526655015 | R152: 1 | S152: 0
B153: 1 | C153: 1 | D153: 7 | E153: 7 | F153: 6 | G153: 6 | H153: 5 | I153: 4 | J153: 1 | K153: 1 | L153: 1 | M153: 7 | O153: 0.5525337328 | P153: -0.5932407926 | R153: 1 | S153: 1
B154: 1 | C154: 1 | D154: 6 | E154: 7 | F154: 7 | G154: 5 | H154: 5 | I154: 6 | J154: 1 | K154: 1 | L154: 1 | M154: 6 | O154: 0.5095466151 | P154: -0.6742339387 | R154: 1 | S154: 1
B155: 1 | C155: 1 | D155: 7 | E155: 7 | F155: 6 | G155: 6 | H155: 6 | I155: 5 | J155: 1 | K155: 1 | L155: 1 | M155: 7 | O155: 0.5609438695 | P155: -0.5781344328 | R155: 1 | S155: 1
B156: 1 | C156: 1 | D156: 7 | E156: 7 | F156: 6 | G156: 6 | H156: 6 | I156: 5 | J156: 2 | K156: 1 | L156: 2 | M156: 7 | O156: 0.5570527745 | P156: -0.5850952957 | R156: 1 | S156: 1
B157: 0 | C157: 1 | D157: 6 | E157: 6 | F157: 5 | G157: 7 | H157: 7 | I157: 5 | J157: 1 | K157: 1 | L157: 2 | M157: 3 | O157: 0.3367669711 | P157: -0.4106288741 | R157: 0 | S157: 1
B158: 1 | C158: 1 | D158: 7 | E158: 7 | F158: 7 | G158: 7 | H158: 7 | I158: 7 | J158: 1 | K158: 1 | L158: 2 | M158: 7 | O158: 0.581935039 | P158: -0.5413964544 | R158: 1 | S158: 1
B159: 0 | C159: 1 | D159: 5 | E159: 4 | F159: 4 | G159: 7 | H159: 7 | I159: 5 | J159: 3 | K159: 1 | L159: 1 | M159: 4 | O159: 0.2677797929 | P159: -0.3116739808 | R159: 0 | S159: 1
B160: 0 | C160: 1 | D160: 4 | E160: 4 | F160: 5 | G160: 7 | H160: 6 | I160: 7 | J160: 2 | K160: 2 | L160: 2 | M160: 4 | O160: 0.2191068947 | P160: -0.2473170075 | R160: 0 | S160: 1
B161: 1 | C161: 1 | D161: 6 | E161: 7 | F161: 7 | G161: 7 | H161: 7 | I161: 7 | J161: 1 | K161: 1 | L161: 1 | M161: 6 | O161: 0.5335686462 | P161: -0.6281675451 | R161: 1 | S161: 1
B162: 0 | C162: 1 | D162: 6 | E162: 6 | F162: 6 | G162: 6 | H162: 7 | I162: 7 | J162: 1 | K162: 1 | L162: 1 | M162: 6 | O162: 0.4683108952 | P162: -0.63169635 | R162: 0 | S162: 1
B163: 0 | C163: 1 | D163: 7 | E163: 7 | F163: 7 | G163: 4 | H163: 3 | I163: 4 | J163: 1 | K163: 2 | L163: 2 | M163: 5 | O163: 0.3827889888 | P163: -0.4825443182 | R163: 0 | S163: 1
B164: 1 | C164: 1 | D164: 6 | E164: 5 | F164: 5 | G164: 6 | H164: 7 | I164: 7 | J164: 2 | K164: 2 | L164: 2 | M164: 7 | O164: 0.3809820352 | P164: -0.9650030566 | R164: 0 | S164: 0
B165: 0 | C165: 1 | D165: 7 | E165: 7 | F165: 7 | G165: 6 | H165: 4 | I165: 5 | J165: 1 | K165: 1 | L165: 1 | M165: 6 | O165: 0.5194364597 | P165: -0.7327958214 | R165: 1 | S165: 0
B166: 0 | C166: 1 | D166: 3 | E166: 2 | F166: 3 | G166: 5 | H166: 6 | I166: 6 | J166: 6 | K166: 4 | L166: 4 | M166: 6 | O166: 0.1060839962 | P166: -0.1121434637 | R166: 0 | S166: 1
B167: 0 | C167: 1 | D167: 5 | E167: 4 | F167: 6 | G167: 4 | H167: 5 | I167: 5 | J167: 3 | K167: 3 | L167: 3 | M167: 7 | O167: 0.2344069088 | P167: -0.267104463 | R167: 0 | S167: 1
B168: 1 | C168: 1 | D168: 6 | E168: 7 | F168: 6 | G168: 5 | H168: 4 | I168: 7 | J168: 1 | K168: 1 | L168: 1 | M168: 7 | O168: 0.5594311295 | P168: -0.5808348518 | R168: 1 | S168: 1
B169: 0 | C169: 1 | D169: 7 | E169: 7 | F169: 7 | G169: 7 | H169: 7 | I169: 7 | J169: 1 | K169: 1 | L169: 1 | M169: 7 | O169: 0.5851671576 | P169: -0.8798796292 | R169: 1 | S169: 0
B170: 1 | C170: 1 | D170: 7 | E170: 7 | F170: 7 | G170: 7 | H170: 7 | I170: 7 | J170: 1 | K170: 1 | L170: 1 | M170: 7 | O170: 0.5851671576 | P170: -0.5358577331 | R170: 1 | S170: 1
B171: 0 | C171: 1 | D171: 7 | E171: 7 | F171: 7 | G171: 6 | H171: 5 | I171: 5 | J171: 2 | K171: 3 | L171: 3 | M171: 6 | O171: 0.3753065539 | P171: -0.4704942358 | R171: 0 | S171: 1
B172: 1 | C172: 1 | D172: 6 | E172: 6 | F172: 6 | G172: 7 | H172: 7 | I172: 7 | J172: 1 | K172: 1 | L172: 1 | M172: 7 | O172: 0.5177408625 | P172: -0.6582804273 | R172: 1 | S172: 1
B173: 0 | C173: 1 | D173: 2 | E173: 1 | F173: 1 | G173: 5 | H173: 6 | I173: 7 | J173: 7 | K173: 6 | L173: 6 | M173: 4 | O173: 0.03585579823 | P173: -0.03651440866 | R173: 0 | S173: 1
B174: 0 | C174: 1 | D174: 5 | E174: 6 | F174: 6 | G174: 4 | H174: 4 | I174: 4 | J174: 2 | K174: 2 | L174: 1 | M174: 7 | O174: 0.3896835388 | P174: -0.4937776675 | R174: 0 | S174: 1
B175: 1 | C175: 1 | D175: 6 | E175: 6 | F175: 6 | G175: 7 | H175: 7 | I175: 7 | J175: 1 | K175: 1 | L175: 1 | M175: 7 | O175: 0.5177408625 | P175: -0.6582804273 | R175: 1 | S175: 1
B176: 1 | C176: 1 | D176: 7 | E176: 7 | F176: 7 | G176: 6 | H176: 6 | I176: 6 | J176: 1 | K176: 1 | L176: 1 | M176: 7 | O176: 0.5692807326 | P176: -0.5633815876 | R176: 1 | S176: 1
B177: 0 | C177: 1 | D177: 6 | E177: 6 | F177: 7 | G177: 6 | H177: 7 | I177: 4 | J177: 1 | K177: 1 | L177: 1 | M177: 7 | O177: 0.4845543178 | P177: -0.6627233502 | R177: 0 | S177: 1
B178: 1 | C178: 1 | D178: 5 | E178: 4 | F178: 5 | G178: 5 | H178: 5 | I178: 4 | J178: 5 | K178: 4 | L178: 4 | M178: 4 | O178: 0.1208257623 | P178: -2.113405752 | R178: 0 | S178: 0
B179: 0 | C179: 1 | D179: 7 | E179: 7 | F179: 7 | G179: 7 | H179: 7 | I179: 7 | J179: 1 | K179: 1 | L179: 1 | M179: 7 | O179: 0.5851671576 | P179: -0.8798796292 | R179: 1 | S179: 0
B180: 0 | C180: 1 | D180: 3 | E180: 3 | F180: 2 | G180: 2 | H180: 3 | I180: 2 | J180: 2 | K180: 2 | L180: 3 | M180: 5 | O180: 0.1524488443 | P180: -0.1654040808 | R180: 0 | S180: 1
B181: 1 | C181: 1 | D181: 7 | E181: 7 | F181: 7 | G181: 6 | H181: 7 | I181: 6 | J181: 1 | K181: 1 | L181: 1 | M181: 7 | O181: 0.5693191214 | P181: -0.5633141561 | R181: 1 | S181: 1
B182: 0 | C182: 1 | D182: 7 | E182: 7 | F182: 6 | G182: 6 | H182: 7 | I182: 5 | J182: 3 | K182: 4 | L182: 3 | M182: 5 | O182: 0.2773245063 | P182: -0.3247949907 | R182: 0 | S182: 1
B183: 0 | C183: 1 | D183: 6 | E183: 6 | F183: 7 | G183: 7 | H183: 7 | I183: 7 | J183: 1 | K183: 1 | L183: 1 | M183: 6 | O183: 0.4760428165 | P183: -0.6463453089 | R183: 0 | S183: 1
B184: 1 | C184: 1 | D184: 7 | E184: 7 | F184: 7 | G184: 7 | H184: 7 | I184: 6 | J184: 3 | K184: 3 | L184: 2 | M184: 6 | O184: 0.3933049502 | P184: -0.9331700134 | R184: 0 | S184: 0
B185: 0 | C185: 1 | D185: 5 | E185: 5 | F185: 5 | G185: 7 | H185: 6 | I185: 7 | J185: 1 | K185: 1 | L185: 1 | M185: 7 | O185: 0.4496235173 | P185: -0.5971527209 | R185: 0 | S185: 1
B186: 1 | C186: 1 | D186: 6 | E186: 6 | F186: 6 | G186: 7 | H186: 7 | I186: 7 | J186: 1 | K186: 1 | L186: 1 | M186: 7 | O186: 0.5177408625 | P186: -0.6582804273 | R186: 1 | S186: 1
B187: 0 | C187: 1 | D187: 6 | E187: 6 | F187: 7 | G187: 7 | H187: 6 | I187: 7 | J187: 1 | K187: 2 | L187: 2 | M187: 7 | O187: 0.4448130101 | P187: -0.5884503033 | R187: 0 | S187: 1
B188: 0 | C188: 1 | D188: 5 | E188: 5 | F188: 4 | G188: 6 | H188: 6 | I188: 7 | J188: 4 | K188: 3 | L188: 4 | M188: 5 | O188: 0.2363609756 | P188: -0.2696600826 | R188: 0 | S188: 1
B189: 0 | C189: 1 | D189: 4 | E189: 5 | F189: 6 | G189: 6 | H189: 7 | I189: 7 | J189: 3 | K189: 3 | L189: 3 | M189: 6 | O189: 0.2625902651 | P189: -0.3046115916 | R189: 0 | S189: 1
B190: 0 | C190: 1 | D190: 5 | E190: 4 | F190: 4 | G190: 7 | H190: 7 | I190: 6 | J190: 2 | K190: 2 | L190: 2 | M190: 4 | O190: 0.2206305044 | P190: -0.2492700252 | R190: 0 | S190: 1
B191: 0 | C191: 1 | D191: 7 | E191: 6 | F191: 6 | G191: 3 | H191: 5 | I191: 4 | J191: 4 | K191: 2 | L191: 3 | M191: 7 | O191: 0.3951345684 | P191: -0.5027492729 | R191: 0 | S191: 1
B192: 1 | C192: 1 | D192: 7 | E192: 7 | F192: 7 | G192: 4 | H192: 4 | I192: 5 | J192: 1 | K192: 1 | L192: 1 | M192: 7 | O192: 0.5455313627 | P192: -0.6059949818 | R192: 1 | S192: 1
B193: 0 | C193: 1 | D193: 6 | E193: 6 | F193: 6 | G193: 4 | H193: 6 | I193: 5 | J193: 5 | K193: 4 | L193: 4 | M193: 4 | O193: 0.1857039715 | P193: -0.2054313077 | R193: 0 | S193: 1
B194: 1 | C194: 1 | D194: 7 | E194: 7 | F194: 7 | G194: 6 | H194: 6 | I194: 5 | J194: 1 | K194: 1 | L194: 1 | M194: 7 | O194: 0.5609438442 | P194: -0.578134478 | R194: 1 | S194: 1
B195: 1 | C195: 1 | D195: 7 | E195: 7 | F195: 7 | G195: 5 | H195: 6 | I195: 5 | J195: 1 | K195: 1 | L195: 1 | M195: 7 | O195: 0.5532890942 | P195: -0.5918746397 | R195: 1 | S195: 1
B196: 1 | C196: 1 | D196: 7 | E196: 7 | F196: 7 | G196: 7 | H196: 7 | I196: 6 | J196: 1 | K196: 1 | L196: 1 | M196: 7 | O196: 0.5769092327 | P196: -0.5500703339 | R196: 1 | S196: 1
B197: 1 | C197: 1 | D197: 6 | E197: 6 | F197: 6 | G197: 6 | H197: 6 | I197: 7 | J197: 1 | K197: 1 | L197: 1 | M197: 7 | O197: 0.5099517377 | P197: -0.6734391897 | R197: 1 | S197: 1
B198: 0 | C198: 1 | D198: 3 | E198: 4 | F198: 3 | G198: 7 | H198: 7 | I198: 7 | J198: 1 | K198: 2 | L198: 2 | M198: 6 | O198: 0.2734682768 | P198: -0.3194731311 | R198: 0 | S198: 1
B199: 0 | C199: 1 | D199: 5 | E199: 4 | F199: 6 | G199: 6 | H199: 7 | I199: 6 | J199: 3 | K199: 3 | L199: 3 | M199: 4 | O199: 0.1696665304 | P199: -0.1859278883 | R199: 0 | S199: 1
B200: 1 | C200: 1 | D200: 7 | E200: 7 | F200: 7 | G200: 4 | H200: 5 | I200: 4 | J200: 1 | K200: 1 | L200: 1 | M200: 7 | O200: 0.5371474911 | P200: -0.6214825646 | R200: 1 | S200: 1
B201: 1 | C201: 1 | D201: 7 | E201: 7 | F201: 7 | G201: 7 | H201: 7 | I201: 7 | J201: 1 | K201: 1 | L201: 1 | M201: 7 | O201: 0.5851671576 | P201: -0.5358577331 | R201: 1 | S201: 1
... 1315 more rows

Sheet APS
A1: Number of Candidate Predictors | E1: 10
A2: Sample Size | E2: 1000
X7: Subset | Z7: Mallows
A8: Predictor | B8: sum = | C8: =SUM(B9:V9) -> 0.1931942658 | X8: Size | Y8: R2 | Z8: Cp | AA8: 1 | AB8: 2 | AC8: 3 | AD8: 4 | AE8: 5 | AF8: 6 | AG8: 7 | AH8: 8 | AI8: 9 | AJ8: 10 | AK8: 11 | AL8: 12 | AM8: 13 | AN8: 14 | AO8: 15 | AP8: 16 | AQ8: 17 | AR8: 18 | AS8: 19 | AT8: 20
A9: Importance | B9: 0.02253061792 | C9: 0.02996272543 | D9: 0.01691288222 | E9: 0.008393856519 | F9: 0.003100829548 | G9: 0.008867907559 | H9: 0.0194429332 | I9: 0.03277062753 | J9: 0.02123156946 | K9: 0.02998031638 | X9: 1 | Y9: 0.1157157158 | Z9: 87.97489005 | AA9: 0 | AB9: 0 | AC9: 0 | AD9: 0 | AE9: 0 | AF9: 0 | AG9: 0 | AH9: 1 | AI9: 0 | AJ9: 0
X10: 2 | Y10: 0.1689330622 | Z10: 24.73991045 | AA10: 0 | AB10: 1 | AC10: 0 | AD10: 0 | AE10: 0 | AF10: 0 | AG10: 0 | AH10: 1 | AI10: 0 | AJ10: 0
X11: 3 | Y11: 0.1806885121 | Z11: 12.32982455 | AA11: 0 | AB11: 1 | AC11: 0 | AD11: 0 | AE11: 0 | AF11: 1 | AG11: 0 | AH11: 1 | AI11: 0 | AJ11: 0
B12: X1 | C12: X2 | D12: X3 | E12: X4 | F12: X5 | G12: X6 | H12: X7 | I12: X8 | J12: X9 | K12: X10 | L12: X11 | M12: X12 | N12: X13 | O12: X14 | P12: X15 | Q12: X16 | R12: X17 | S12: X18 | T12: X19 | U12: X20 | V12: Y | X12: 4 | Y12: 0.1892046247 | Z12: 3.890588722 | AA12: 0 | AB12: 1 | AC12: 0 | AD12: 0 | AE12: 0 | AF12: 1 | AG12: 0 | AH12: 1 | AI12: 0 | AJ12: 1
X13: 5 | Y13: 0.1912731429 | Z13: 3.354954181 | AA13: 0 | AB13: 1 | AC13: 0 | AD13: 1 | AE13: 0 | AF13: 1 | AG13: 0 | AH13: 1 | AI13: 0 | AJ13: 1
X14: 6 | Y14: 0.1917945052 | Z14: 4.715856907 | AA14: 0 | AB14: 1 | AC14: 1 | AD14: 1 | AE14: 0 | AF14: 1 | AG14: 0 | AH14: 1 | AI14: 0 | AJ14: 1
A15: Case 1 | B15: 7 | C15: 7 | D15: 7 | E15: 6 | F15: 6 | G15: 6 | H15: 5 | I15: 4 | J15: 6 | K15: 5 | V15: -6.906754779 | X15: 7 | Y15: 0.192713896 | Z15: 5.588847696 | AA15: 1 | AB15: 1 | AC15: 1 | AD15: 1 | AE15: 0 | AF15: 1 | AG15: 0 | AH15: 1 | AI15: 0 | AJ15: 1
A16: Case 2 | B16: 7 | C16: 7 | D16: 7 | E16: 7 | F16: 7 | G16: 7 | H16: 2 | I16: 3 | J16: 2 | K16: 6 | V16: -6.906754779 | X16: 8 | Y16: 0.1930609927 | Z16: 7.163369015 | AA16: 1 | AB16: 1 | AC16: 1 | AD16: 1 | AE16: 1 | AF16: 1 | AG16: 0 | AH16: 1 | AI16: 0 | AJ16: 1
A17: Case 3 | B17: 7 | C17: 7 | D17: 7 | E17: 5 | F17: 4 | G17: 7 | H17: 2 | I17: 3 | J17: 2 | K17: 7 | V17: -6.906754779 | X17: 9 | Y17: 0.1931917224 | Z17: 9.003117754 | AA17: 1 | AB17: 1 | AC17: 1 | AD17: 1 | AE17: 1 | AF17: 1 | AG17: 0 | AH17: 1 | AI17: 1 | AJ17: 1
A18: Case 4 | B18: 7 | C18: 6 | D18: 6 | E18: 4 | F18: 5 | G18: 6 | H18: 3 | I18: 3 | J18: 2 | K18: 4 | V18: 6.906754779 | X18: 10 | Y18: 0.1931942658 | Z18: 11 | AA18: 1 | AB18: 1 | AC18: 1 | AD18: 1 | AE18: 1 | AF18: 1 | AG18: 1 | AH18: 1 | AI18: 1 | AJ18: 1
A19: Case 5 | B19: 6 | C19: 7 | D19: 7 | E19: 7 | F19: 7 | G19: 7 | H19: 6 | I19: 5 | J19: 5 | K19: 6 | V19: 6.906754779 | X19: 11
A20: Case 6 | B20: 7 | C20: 7 | D20: 7 | E20: 6 | F20: 5 | G20: 5 | H20: 1 | I20: 1 | J20: 2 | K20: 7 | V20: 6.906754779 | X20: 12
A21: Case 7 | B21: 4 | C21: 5 | D21: 4 | E21: 7 | F21: 7 | G21: 7 | H21: 3 | I21: 3 | J21: 3 | K21: 2 | V21: 6.906754779 | X21: 13
A22: Case 8 | B22: 7 | C22: 7 | D22: 7 | E22: 6 | F22: 7 | G22: 7 | H22: 1 | I22: 1 | J22: 1 | K22: 7 | V22: -6.906754779 | X22: 14
A23: Case 9 | B23: 7 | C23: 7 | D23: 7 | E23: 7 | F23: 7 | G23: 7 | H23: 1 | I23: 1 | J23: 1 | K23: 7 | V23: 6.906754779 | X23: 15
A24: Case 10 | B24: 7 | C24: 7 | D24: 7 | E24: 4 | F24: 7 | G24: 2 | H24: 1 | I24: 1 | J24: 1 | K24: 7 | V24: -6.906754779 | X24: 16
A25: Case 11 | B25: 7 | C25: 6 | D25: 7 | E25: 7 | F25: 7 | G25: 7 | H25: 2 | I25: 3 | J25: 3 | K25: 4 | V25: -6.906754779 | X25: 17
A26: Case 12 | B26: 7 | C26: 7 | D26: 7 | E26: 3 | F26: 3 | G26: 3 | H26: 1 | I26: 1 | J26: 1 | K26: 7 | V26: 6.906754779 | X26: 18
A27: Case 13 | B27: 7 | C27: 7 | D27: 6 | E27: 7 | F27: 6 | G27: 4 | H27: 4 | I27: 4 | J27: 3 | K27: 5 | V27: 6.906754779 | X27: 19
A28: Case 14 | B28: 7 | C28: 7 | D28: 7 | E28: 6 | F28: 6 | G28: 6 | H28: 3 | I28: 2 | J28: 2 | K28: 4 | V28: -6.906754779 | X28: 20
A29: Case 15 | B29: 7 | C29: 7 | D29: 7 | E29: 4 | F29: 3 | G29: 4 | H29: 1 | I29: 1 | J29: 1 | K29: 6 | V29: 6.906754779
A30: Case 16 | B30: 7 | C30: 7 | D30: 7 | E30: 5 | F30: 6 | G30: 6 | H30: 1 | I30: 1 | J30: 1 | K30: 7 | V30: 6.906754779
A31: Case 17 | B31: 5 | C31: 6 | D31: 6 | E31: 7 | F31: 7 | G31: 7 | H31: 1 | I31: 1 | J31: 1 | K31: 7 | V31: 6.906754779
A32: Case 18 | B32: 2 | C32: 2 | D32: 2 | E32: 7 | F32: 7 | G32: 3 | H32: 5 | I32: 4 | J32: 5 | K32: 5 | V32: 6.906754779
A33: Case 19 | B33: 2 | C33: 3 | D33: 4 | E33: 7 | F33: 6 | G33: 6 | H33: 4 | I33: 4 | J33: 4 | K33: 5 | V33: 6.906754779
A34: Case 20 | B34: 7 | C34: 7 | D34: 7 | E34: 5 | F34: 6 | G34: 4 | H34: 1 | I34: 3 | J34: 3 | K34: 4 | V34: -6.906754779
A35: Case 21 | B35: 7 | C35: 7 | D35: 7 | E35: 7 | F35: 5 | G35: 6 | H35: 5 | I35: 6 | J35: 5 | K35: 5 | V35: -6.906754779
A36: Case 22 | B36: 7 | C36: 7 | D36: 7 | E36: 7 | F36: 7 | G36: 7 | H36: 2 | I36: 2 | J36: 2 | K36: 5 | V36: -6.906754779
A37: Case 23 | B37: 6 | C37: 7 | D37: 6 | E37: 6 | F37: 3 | G37: 6 | H37: 3 | I37: 2 | J37: 3 | K37: 7 | V37: -6.906754779
A38: Case 24 | B38: 7 | C38: 7 | D38: 7 | E38: 5 | F38: 6 | G38: 5 | H38: 1 | I38: 1 | J38: 1 | K38: 7 | V38: 6.906754779
A39: Case 25 | B39: 7 | C39: 7 | D39: 7 | E39: 7 | F39: 7 | G39: 7 | H39: 1 | I39: 1 | J39: 2 | K39: 7 | V39: 6.906754779
A40: Case 26 | B40: 7 | C40: 6 | D40: 5 | E40: 6 | F40: 7 | G40: 7 | H40: 1 | I40: 1 | J40: 1 | K40: 6 | V40: -6.906754779
A41: Case 27 | B41: 7 | C41: 7 | D41: 7 | E41: 7 | F41: 7 | G41: 7 | H41: 1 | I41: 1 | J41: 1 | K41: 7 | V41: 6.906754779
A42: Case 28 | B42: 7 | C42: 7 | D42: 7 | E42: 7 | F42: 6 | G42: 5 | H42: 1 | I42: 1 | J42: 1 | K42: 7 | V42: 6.906754779
A43: Case 29 | B43: 2 | C43: 2 | D43: 2 | E43: 7 | F43: 7 | G43: 7 | H43: 1 | I43: 1 | J43: 1 | K43: 3 | V43: -6.906754779
A44: Case 30 | B44: 7 | C44: 6 | D44: 7 | E44: 7 | F44: 7 | G44: 7 | H44: 1 | I44: 1 | J44: 1 | K44: 7 | V44: 6.906754779
A45: Case 31 | B45: 6 | C45: 6 | D45: 5 | E45: 7 | F45: 7 | G45: 7 | H45: 4 | I45: 4 | J45: 4 | K45: 4 | V45: 6.906754779
A46: Case 32 | B46: 4 | C46: 5 | D46: 5 | E46: 7 | F46: 5 | G46: 7 | H46: 1 | I46: 1 | J46: 1 | K46: 7 | V46: -6.906754779
A47: Case 33 | B47: 7 | C47: 7 | D47: 7 | E47: 7 | F47: 7 | G47: 7 | H47: 4 | I47: 5 | J47: 5 | K47: 7 | V47: -6.906754779
A48: Case 34 | B48: 6 | C48: 5 | D48: 7 | E48: 5 | F48: 7 | G48: 5 | H48: 3 | I48: 4 | J48: 3 | K48: 6 | V48: 6.906754779
A49: Case 35 | B49: 5 | C49: 7 | D49: 7 | E49: 4 | F49: 1 | G49: 3 | H49: 1 | I49: 1 | J49: 1 | K49: 7 | V49: -6.906754779
A50: Case 36 | B50: 6 | C50: 5 | D50: 5 | E50: 7 | F50: 7 | G50: 6 | H50: 2 | I50: 1 | J50: 1 | K50: 5 | V50: -6.906754779
A51: Case 37 | B51: 6 | C51: 7 | D51: 7 | E51: 3 | F51: 2 | G51: 3 | H51: 3 | I51: 4 | J51: 4 | K51: 5 | V51: -6.906754779
A52: Case 38 | B52: 7 | C52: 7 | D52: 7 | E52: 4 | F52: 4 | G52: 3 | H52: 1 | I52: 1 | J52: 1 | K52: 7 | V52: 6.906754779
A53: Case 39 | B53: 5 | C53: 6 | D53: 6 | E53: 6 | F53: 6 | G53: 5 | H53: 3 | I53: 3 | J53: 4 | K53: 6 | V53: -6.906754779
A54: Case 40 | B54: 7 | C54: 7 | D54: 7 | E54: 4 | F54: 3 | G54: 2 | H54: 1 | I54: 1 | J54: 1 | K54: 7 | V54: 6.906754779
A55: Case 41 | B55: 7 | C55: 7 | D55: 7 | E55: 6 | F55: 7 | G55: 6 | H55: 1 | I55: 1 | J55: 1 | K55: 7 | V55: 6.906754779
A56: Case 42 | B56: 5 | C56: 5 | D56: 5 | E56: 7 | F56: 7 | G56: 7 | H56: 5 | I56: 3 | J56: 4 | K56: 5 | V56: -6.906754779
A57: Case 43 | B57: 3 | C57: 4 | D57: 4 | E57: 4 | F57: 7 | G57: 6 | H57: 3 | I57: 3 | J57: 4 | K57: 2 | V57: -6.906754779
A58: Case 44 | B58: 7 | C58: 7 | D58: 7 | E58: 2 | F58: 5 | G58: 5 | H58: 4 | I58: 4 | J58: 4 | K58: 6 | V58: -6.906754779
A59: Case 45 | B59: 7 | C59: 5 | D59: 7 | E59: 7 | F59: 6 | G59: 7 | H59: 2 | I59: 1 | J59: 1 | K59: 7 | V59: -6.906754779
A60: Case 46 | B60: 6 | C60: 4 | D60: 6 | E60: 7 | F60: 7 | G60: 7 | H60: 1 | I60: 2 | J60: 1 | K60: 7 | V60: -6.906754779
A61: Case 47 | B61: 4 | C61: 5 | D61: 5 | E61: 4 | F61: 5 | G61: 4 | H61: 3 | I61: 3 | J61: 3 | K61: 4 | V61: -6.906754779
A62: Case 48 | B62: 5 | C62: 5 | D62: 3 | E62: 6 | F62: 6 | G62: 6 | H62: 3 | I62: 2 | J62: 2 | K62: 6 | V62: -6.906754779
A63: Case 49 | B63: 6 | C63: 6 | D63: 6 | E63: 7 | F63: 7 | G63: 7 | H63: 5 | I63: 4 | J63: 3 | K63: 5 | V63: -6.906754779
A64: Case 50 | B64: 7 | C64: 7 | D64: 7 | E64: 4 | F64: 6 | G64: 7 | H64: 1 | I64: 1 | J64: 1 | K64: 7 | V64: 6.906754779
A65: Case 51 | B65: 5 | C65: 6 | D65: 5 | E65: 7 | F65: 7 | G65: 7 | H65: 2 | I65: 2 | J65: 2 | K65: 6 | V65: -6.906754779
A66: Case 52 | B66: 7 | C66: 6 | D66: 6 | E66: 7 | F66: 7 | G66: 7 | H66: 1 | I66: 1 | J66: 1 | K66: 7 | V66: -6.906754779
A67: Case 53 | B67: 4 | C67: 5 | D67: 5 | E67: 7 | F67: 7 | G67: 5 | H67: 5 | I67: 4 | J67: 5 | K67: 5 | V67: -6.906754779
A68: Case 54 | B68: 7 | C68: 7 | D68: 7 | E68: 7 | F68: 7 | G68: 7 | H68: 2 | I68: 3 | J68: 2 | K68: 7 | V68: -6.906754779
A69: Case 55 | B69: 6 | C69: 7 | D69: 6 | E69: 5 | F69: 5 | G69: 4 | H69: 4 | I69: 4 | J69: 3 | K69: 6 | V69: -6.906754779
A70: Case 56 | B70: 4 | C70: 4 | D70: 5 | E70: 7 | F70: 7 | G70: 7 | H70: 2 | I70: 2 | J70: 1 | K70: 6 | V70: -6.906754779
A71: Case 57 | B71: 7 | C71: 7 | D71: 7 | E71: 6 | F71: 5 | G71: 4 | H71: 2 | I71: 3 | J71: 1 | K71: 2 | V71: -6.906754779
A72: Case 58 | B72: 7 | C72: 7 | D72: 7 | E72: 5 | F72: 6 | G72: 4 | H72: 4 | I72: 2 | J72: 4 | K72: 5 | V72: -6.906754779
A73: Case 59 | B73: 7 | C73: 7 | D73: 7 | E73: 7 | F73: 7 | G73: 7 | H73: 1 | I73: 1 | J73: 1 | K73: 6 | V73: 6.906754779
A74: Case 60 | B74: 7 | C74: 6 | D74: 6 | E74: 6 | F74: 6 | G74: 7 | H74: 3 | I74: 1 | J74: 3 | K74: 4 | V74: 6.906754779
A75: Case 61 | B75: 7 | C75: 7 | D75: 6 | E75: 7 | F75: 7 | G75: 7 | H75: 1 | I75: 1 | J75: 1 | K75: 7 | V75: -6.906754779
A76: Case 62 | B76: 6 | C76: 7 | D76: 7 | E76: 5 | F76: 5 | G76: 6 | H76: 1 | I76: 2 | J76: 2 | K76: 7 | V76: 6.906754779
A77: Case 63 | B77: 7 | C77: 7 | D77: 7 | E77: 7 | F77: 7 | G77: 6 | H77: 1 | I77: 1 | J77: 1 | K77: 7 | V77: 6.906754779
A78: Case 64 | B78: 6 | C78: 6 | D78: 6 | E78: 5 | F78: 7 | G78: 6 | H78: 1 | I78: 1 | J78: 1 | K78: 7 | V78: 6.906754779
A79: Case 65 | B79: 7 | C79: 6 | D79: 7 | E79: 6 | F79: 7 | G79: 7 | H79: 1 | I79: 1 | J79: 1 | K79: 7 | V79: 6.906754779
A80: Case 66 | B80: 7 | C80: 7 | D80: 7 | E80: 7 | F80: 7 | G80: 7 | H80: 1 | I80: 2 | J80: 1 | K80: 7 | V80: -6.906754779
A81: Case 67 | B81: 7 | C81: 7 | D81: 7 | E81: 7 | F81: 7 | G81: 7 | H81: 1 | I81: 1 | J81: 1 | K81: 7 | V81: 6.906754779
A82: Case 68 | B82: 7 | C82: 7 | D82: 7 | E82: 4 | F82: 4 | G82: 7 | H82: 3 | I82: 3 | J82: 2 | K82: 6 | V82: 6.906754779
A83: Case 69 | B83: 1 | C83: 2 | D83: 1 | E83: 5 | F83: 5 | G83: 4 | H83: 6 | I83: 5 | J83: 4 | K83: 4 | V83: -6.906754779
A84: Case 70 | B84: 1 | C84: 1 | D84: 1 | E84: 2 | F84: 1 | G84: 3 | H84: 3 | I84: 4 | J84: 4 | K84: 3 | V84: 6.906754779
A85: Case 71 | B85: 4 | C85: 6 | D85: 5 | E85: 6 | F85: 5 | G85: 5 | H85: 3 | I85: 5 | J85: 4 | K85: 2 | V85: -6.906754779
A86: Case 72 | B86: 5 | C86: 5 | D86: 4 | E86: 7 | F86: 7 | G86: 7 | H86: 2 | I86: 3 | J86: 3 | K86: 6 | V86: -6.906754779
A87: Case 73 | B87: 7 | C87: 7 | D87: 7 | E87: 4 | F87: 4 | G87: 5 | H87: 3 | I87: 2 | J87: 1 | K87: 7 | V87: -6.906754779
A88: Case 74 | B88: 7 | C88: 7 | D88: 7 | E88: 7 | F88: 4 | G88: 7 | H88: 3 | I88: 3 | J88: 3 | K88: 7 | V88: -6.906754779
A89: Case 75 | B89: 7 | C89: 7 | D89: 7 | E89: 5 | F89: 4 | G89: 4 | H89: 1 | I89: 1 | J89: 1 | K89: 7 | V89: 6.906754779
A90: Case 76 | B90: 5 | C90: 5 | D90: 5 | E90: 7 | F90: 7 | G90: 6 | H90: 1 | I90: 1 | J90: 1 | K90: 7 | V90: -6.906754779
A91: Case 77 | B91: 6 | C91: 6 | D91: 6 | E91: 5 | F91: 7 | G91: 6 | H91: 1 | I91: 1 | J91: 1 | K91: 7 | V91: -6.906754779
A92: Case 78 | B92: 6 | C92: 7 | D92: 7 | E92: 5 | F92: 6 | G92: 6 | H92: 3 | I92: 4 | J92: 3 | K92: 6 | V92: -6.906754779
A93: Case 79 | B93: 7 | C93: 7 | D93: 7 | E93: 5 | F93: 5 | G93: 5 | H93: 1 | I93: 1 | J93: 1 | K93: 5 | V93: -6.906754779
A94: Case 80 | B94: 7 | C94: 7 | D94: 7 | E94: 6 | F94: 7 | G94: 7 | H94: 1 | I94: 1 | J94: 1 | K94: 6 | V94: -6.906754779
A95: Case 81 | B95: 6 | C95: 7 | D95: 5 | E95: 7 | F95: 5 | G95: 6 | H95: 1 | I95: 1 | J95: 1 | K95: 7 | V95: 6.906754779
A96: Case 82 | B96: 4 | C96: 6 | D96: 5 | E96: 6 | F96: 4 | G96: 5 | H96: 1 | I96: 1 | J96: 1 | K96: 7 | V96: -6.906754779
A97: Case 83 | B97: 6 | C97: 5 | D97: 6 | E97: 6 | F97: 6 | G97: 5 | H97: 3 | I97: 2 | J97: 3 | K97: 7 | V97: -6.906754779
A98: Case 84 | B98: 6 | C98: 6 | D98: 5 | E98: 7 | F98: 7 | G98: 7 | H98: 3 | I98: 2 | J98: 2 | K98: 4 | V98: -6.906754779
A99: Case 85 | B99: 5 | C99: 6 | D99: 5 | E99: 5 | F99: 4 | G99: 5 | H99: 3 | I99: 3 | J99: 3 | K99: 5 | V99: -6.906754779
A100: Case 86 | B100: 5 | C100: 4 | D100: 5 | E100: 7 | F100: 7 | G100: 7 | H100: 2 | I100: 2 | J100: 1 | K100: 6 | V100: -6.906754779
A101: Case 87 | B101: 7 | C101: 7 | D101: 7 | E101: 7 | F101: 7 | G101: 7 | H101: 2 | I101: 1 | J101: 1 | K101: 7 | V101: 6.906754779
A102: Case 88 | B102: 6 | C102: 7 | D102: 6 | E102: 6 | F102: 7 | G102: 7 | H102: 1 | I102: 2 | J102: 1 | K102: 7 | V102: 6.906754779
A103: Case 89 | B103: 7 | C103: 7 | D103: 7 | E103: 6 | F103: 6 | G103: 6 | H103: 1 | I103: 2 | J103: 2 | K103: 7 | V103: 6.906754779
A104: Case 90 | B104: 7 | C104: 7 | D104: 7 | E104: 7 | F104: 5 | G104: 6 | H104: 1 | I104: 1 | J104: 1 | K104: 7 | V104: -6.906754779
A105: Case 91 | B105: 7 | C105: 7 | D105: 7 | E105: 4 | F105: 7 | G105: 7 | H105: 1 | I105: 1 | J105: 2 | K105: 7 | V105: 6.906754779
A106: Case 92 | B106: 7 | C106: 7 | D106: 7 | E106: 4 | F106: 3 | G106: 3 | H106: 1 | I106: 3 | J106: 1 | K106: 7 | V106: -6.906754779
A107: Case 93 | B107: 5 | C107: 5 | D107: 4 | E107: 2 | F107: 6 | G107: 4 | H107: 1 | I107: 1 | J107: 1 | K107: 7 | V107: -6.906754779
A108: Case 94 | B108: 7 | C108: 7 | D108: 5 | E108: 6 | F108: 7 | G108: 7 | H108: 3 | I108: 3 | J108: 2 | K108: 6 | V108: -6.906754779
A109: Case 95 | B109: 6 | C109: 7 | D109: 7 | E109: 5 | F109: 5 | G109: 6 | H109: 2 | I109: 2 | J109: 2 | K109: 5 | V109: -6.906754779
A110: Case 96 | B110: 7 | C110: 7 | D110: 7 | E110: 7 | F110: 6 | G110: 6 | H110: 5 | I110: 4 | J110: 5 | K110: 6 | V110: -6.906754779
A111: Case 97 | B111: 7 | C111: 7 | D111: 7 | E111: 7 | F111: 7 | G111: 7 | H111: 1 | I111: 1 | J111: 1 | K111: 7 | V111: 6.906754779
A112: Case 98 | B112: 6 | C112: 5 | D112: 6 | E112: 7 | F112: 7 | G112: 7 | H112: 2 | I112: 2 | J112: 1 | K112: 7 | V112: -6.906754779
A113: Case 99 | B113: 7 | C113: 7 | D113: 7 | E113: 7 | F113: 7 | G113: 7 | H113: 1 | I113: 1 | J113: 1 | K113: 7 | V113: 6.906754779
A114: Case 100 | B114: 4 | C114: 5 | D114: 4 | E114: 4 | F114: 7 | G114: 7 | H114: 1 | I114: 2 | J114: 1 | K114: 5 | V114: -6.906754779
A115: Case 101 | B115: 3 | C115: 4 | D115: 4 | E115: 7 | F115: 6 | G115: 7 | H115: 1 | I115: 1 | J115: 1 | K115: 7 | V115: -6.906754779
A116: Case 102 | B116: 7 | C116: 7 | D116: 7 | E116: 7 | F116: 7 | G116: 5 | H116: 2 | I116: 1 | J116: 3 | K116: 5 | V116: -6.906754779
A117: Case 103 | B117: 4 | C117: 4 | D117: 3 | E117: 7 | F117: 7 | G117: 7 | H117: 5 | I117: 4 | J117: 5 | K117: 6 | V117: -6.906754779
A118: Case 104 | B118: 5 | C118: 5 | D118: 5 | E118: 7 | F118: 4 | G118: 7 | H118: 3 | I118: 4 | J118: 3 | K118: 5 | V118: -6.906754779
A119: Case 105 | B119: 7 | C119: 7 | D119: 7 | E119: 5 | F119: 5 | G119: 2 | H119: 3 | I119: 1 | J119: 2 | K119: 7 | V119: -6.906754779
A120: Case 106 | B120: 7 | C120: 6 | D120: 7 | E120: 6 | F120: 6 | G120: 6 | H120: 1 | I120: 1 | J120: 1 | K120: 5 | V120: -6.906754779
A121: Case 107 | B121: 6 | C121: 5 | D121: 5 | E121: 5 | F121: 4 | G121: 4 | H121: 3 | I121: 3 | J121: 4 | K121: 6 | V121: -6.906754779
A122: Case 108 | B122: 5 | C122: 6 | D122: 6 | E122: 6 | F122: 5 | G122: 4 | H122: 2 | I122: 2 | J122: 2 | K122: 2 | V122: -6.906754779
A123: Case 109 | B123: 5 | C123: 6 | D123: 5 | E123: 4 | F123: 7 | G123: 7 | H123: 1 | I123: 1 | J123: 1 | K123: 7 | V123: 6.906754779
A124: Case 110 | B124: 5 | C124: 5 | D124: 4 | E124: 7 | F124: 7 | G124: 6 | H124: 3 | I124: 5 | J124: 4 | K124: 6 | V124: -6.906754779
A125: Case 111 | B125: 5 | C125: 4 | D125: 5 | E125: 7 | F125: 7 | G125: 6 | H125: 2 | I125: 1 | J125: 2 | K125: 3 | V125: 6.906754779
A126: Case 112 | B126: 7 | C126: 7 | D126: 7 | E126: 7 | F126: 7 | G126: 7 | H126: 1 | I126: 1 | J126: 1 | K126: 7 | V126: 6.906754779
A127: Case 113 | B127: 6 | C127: 7 | D127: 7 | E127: 6 | F127: 5 | G127: 6 | H127: 5 | I127: 4 | J127: 5 | K127: 5 | V127: 6.906754779
A128: Case 114 | B128: 7 | C128: 7 | D128: 7 | E128: 5 | F128: 5 | G128: 5 | H128: 1 | I128: 1 | J128: 1 | K128: 7 | V128: 6.906754779
A129: Case 115 | B129: 7 | C129: 7 | D129: 7 | E129: 7 | F129: 7 | G129: 7 | H129: 1 | I129: 1 | J129: 1 | K129: 7 | V129: 6.906754779
A130: Case 116 | B130: 4 | C130: 3 | D130: 3 | E130: 7 | F130: 7 | G130: 7 | H130: 2 | I130: 1 | J130: 3 | K130: 7 | V130: -6.906754779
A131: Case 117 | B131: 7 | C131: 7 | D131: 7 | E131: 7 | F131: 6 | G131: 7 | H131: 1 | I131: 1 | J131: 1 | K131: 7 | V131: -6.906754779
A132: Case 118 | B132: 6 | C132: 7 | D132: 7 | E132: 5 | F132: 4 | G132: 5 | H132: 1 | I132: 1 | J132: 2 | K132: 6 | V132: -6.906754779
A133: Case 119 | B133: 3 | C133: 4 | D133: 5 | E133: 6 | F133: 6 | G133: 7 | H133: 2 | I133: 3 | J133: 1 | K133: 4 | V133: -6.906754779
A134: Case 120 | B134: 7 | C134: 7 | D134: 7 | E134: 5 | F134: 5 | G134: 5 | H134: 1 | I134: 1 | J134: 1 | K134: 6 | V134: -6.906754779
A135: Case 121 | B135: 7 | C135: 7 | D135: 7 | E135: 7 | F135: 7 | G135: 7 | H135: 1 | I135: 1 | J135: 1 | K135: 7 | V135: -6.906754779
A136: Case 122 | B136: 7 | C136: 6 | D136: 7 | E136: 6 | F136: 6 | G136: 4 | H136: 1 | I136: 1 | J136: 1 | K136: 5 | V136: -6.906754779
A137: Case 123 | B137: 6 | C137: 6 | D137: 6 | E137: 6 | F137: 6 | G137: 7 | H137: 2 | I137: 1 | J137: 1 | K137: 3 | V137: -6.906754779
A138: Case 124 | B138: 7 | C138: 7 | D138: 7 | E138: 7 | F138: 7 | G138: 7 | H138: 1 | I138: 1 | J138: 1 | K138: 7 | V138: 6.906754779
A139: Case 125 | B139: 7 | C139: 7 | D139: 7 | E139: 6 | F139: 5 | G139: 5 | H139: 4 | I139: 5 | J139: 5 | K139: 4 | V139: 6.906754779
A140: Case 126 | B140: 7 | C140: 7 | D140: 7 | E140: 4 | F140: 5 | G140: 4 | H140: 6 | I140: 7 | J140: 6 | K140: 6 | V140: -6.906754779
A141: Case 127 | B141: 7 | C141: 7 | D141: 6 | E141: 7 | F141: 7 | G141: 7 | H141: 1 | I141: 2 | J141: 1 | K141: 6 | V141: 6.906754779
A142: Case 128 | B142: 7 | C142: 7 | D142: 7 | E142: 7 | F142: 7 | G142: 7 | H142: 1 | I142: 1 | J142: 1 | K142: 7 | V142: 6.906754779
A143: Case 129 | B143: 7 | C143: 7 | D143: 7 | E143: 7 | F143: 7 | G143: 7 | H143: 1 | I143: 1 | J143: 1 | K143: 7 | V143: 6.906754779
A144: Case 130 | B144: 7 | C144: 7 | D144: 7 | E144: 4 | F144: 5 | G144: 4 | H144: 1 | I144: 1 | J144: 1 | K144: 7 | V144: 6.906754779
A145: Case 131 | B145: 7 | C145: 7 | D145: 7 | E145: 7 | F145: 7 | G145: 7 | H145: 1 | I145: 1 | J145: 1 | K145: 7 | V145: 6.906754779
A146: Case 132 | B146: 5 | C146: 6 | D146: 7 | E146: 5 | F146: 6 | G146: 5 | H146: 2 | I146: 3 | J146: 4 | K146: 3 | V146: 6.906754779
A147: Case 133 | B147: 7 | C147: 7 | D147: 7 | E147: 7 | F147: 7 | G147: 7 | H147: 1 | I147: 1 | J147: 1 | K147: 7 | V147: 6.906754779
A148: Case 134 | B148: 6 | C148: 7 | D148: 6 | E148: 7 | F148: 7 | G148: 7 | H148: 1 | I148: 1 | J148: 1 | K148: 7 | V148: 6.906754779
A149: Case 135 | B149: 5 | C149: 4 | D149: 5 | E149: 4 | F149: 5 | G149: 5 | H149: 5 | I149: 4 | J149: 6 | K149: 3 | V149: -6.906754779
A150: Case 136 | B150: 7 | C150: 7 | D150: 7 | E150: 6 | F150: 6 | G150: 7 | H150: 2 | I150: 1 | J150: 2 | K150: 7 | V150: -6.906754779
A151: Case 137 | B151: 7 | C151: 7 | D151: 6 | E151: 6 | F151: 5 | G151: 4 | H151: 1 | I151: 1 | J151: 1 | K151: 7 | V151: 6.906754779
A152: Case 138 | B152: 6 | C152: 7 | D152: 7 | E152: 5 | F152: 5 | G152: 6 | H152: 1 | I152: 1 | J152: 1 | K152: 6 | V152: 6.906754779
A153: Case 139 | B153: 7 | C153: 7 | D153: 6 | E153: 6 | F153: 6 | G153: 5 | H153: 1 | I153: 1 | J153: 1 | K153: 7 | V153: 6.906754779
A154: Case 140 | B154: 7 | C154: 7 | D154: 6 | E154: 6 | F154: 6 | G154: 5 | H154: 2 | I154: 1 | J154: 2 | K154: 7 | V154: 6.906754779
A155: Case 141 | B155: 6 | C155: 6 | D155: 5 | E155: 7 | F155: 7 | G155: 5 | H155: 1 | I155: 1 | J155: 2 | K155: 3 | V155: -6.906754779
A156: Case 142 | B156: 7 | C156: 7 | D156: 7 | E156: 7 | F156: 7 | G156: 7 | H156: 1 | I156: 1 | J156: 2 | K156: 7 | V156: 6.906754779
A157: Case 143 | B157: 5 | C157: 4 | D157: 4 | E157: 7 | F157: 7 | G157: 5 | H157: 3 | I157: 1 | J157: 1 | K157: 4 | V157: -6.906754779
A158: Case 144 | B158: 4 | C158: 4 | D158: 5 | E158: 7 | F158: 6 | G158: 7 | H158: 2 | I158: 2 | J158: 2 | K158: 4 | V158: -6.906754779
A159: Case 145 | B159: 6 | C159: 7 | D159: 7 | E159: 7 | F159: 7 | G159: 7 | H159: 1 | I159: 1 | J159: 1 | K159: 6 | V159: 6.906754779
A160: Case 146 | B160: 6 | C160: 6 | D160: 6 | E160: 6 | F160: 7 | G160: 7 | H160: 1 | I160: 1 | J160: 1 | K160: 6 | V160: -6.906754779
A161: Case 147 | B161: 7 | C161: 7 | D161: 7 | E161: 4 | F161: 3 | G161: 4 | H161: 1 | I161: 2 | J161: 2 | K161: 5 | V161: -6.906754779
A162: Case 148 | B162: 6 | C162: 5 | D162: 5 | E162: 6 | F162: 7 | G162: 7 | H162: 2 | I162: 2 | J162: 2 | K162: 7 | V162: 6.906754779
A163: Case 149 | B163: 7 | C163: 7 | D163: 7 | E163: 6 | F163: 4 | G163: 5 | H163: 1 | I163: 1 | J163: 1 | K163: 6 | V163: -6.906754779
A164: Case 150 | B164: 3 | C164: 2 | D164: 3 | E164: 5 | F164: 6 | G164: 6 | H164: 6 | I164: 4 | J164: 4 | K164: 6 | V164: -6.906754779
A165: Case 151 | B165: 5 | C165: 4 | D165: 6 | E165: 4 | F165: 5 | G165: 5 | H165: 3 | I165: 3 | J165: 3 | K165: 7 | V165: -6.906754779
A166: Case 152 | B166: 6 | C166: 7 | D166: 6 | E166: 5 | F166: 4 | G166: 7 | H166: 1 | I166: 1 | J166: 1 | K166: 7 | V166: 6.906754779
A167: Case 153 | B167: 7 | C167: 7 | D167: 7 | E167: 7 | F167: 7 | G167: 7 | H167: 1 | I167: 1 | J167: 1 | K167: 7 | V167: -6.906754779
A168: Case 154 | B168: 7 | C168: 7 | D168: 7 | E168: 7 | F168: 7 | G168: 7 | H168: 1 | I168: 1 | J168: 1 | K168: 7 | V168: 6.906754779
A169: Case 155 | B169: 7 | C169: 7 | D169: 7 | E169: 6 | F169: 5 | G169: 5 | H169: 2 | I169: 3 | J169: 3 | K169: 6 | V169: -6.906754779
A170: Case 156 | B170: 6 | C170: 6 | D170: 6 | E170: 7 | F170: 7 | G170: 7 | H170: 1 | I170: 1 | J170: 1 | K170: 7 | V170: 6.906754779
A171: Case 157 | B171: 2 | C171: 1 | D171: 1 | E171: 5 | F171: 6 | G171: 7 | H171: 7 | I171: 6 | J171: 6 | K171: 4 | V171: -6.906754779
A172: Case 158 | B172: 5 | C172: 6 | D172: 6 | E172: 4 | F172: 4 | G172: 4 | H172: 2 | I172: 2 | J172: 1 | K172: 7 | V172: -6.906754779
A173: Case 159 | B173: 6 | C173: 6 | D173: 6 | E173: 7 | F173: 7 | G173: 7 | H173: 1 | I173: 1 | J173: 1 | K173: 7 | V173: 6.906754779
A174: Case 160 | B174: 7 | C174: 7 | D174: 7 | E174: 6 | F174: 6 | G174: 6 | H174: 1 | I174: 1 | J174: 1 | K174: 7 | V174: 6.906754779
A175: Case 161 | B175: 6 | C175: 6 | D175: 7 | E175: 6 | F175: 7 | G175: 4 | H175: 1 | I175: 1 | J175: 1 | K175: 7 | V175: -6.906754779
A176: Case 162 | B176: 5 | C176: 4 | D176: 5 | E176: 5 | F176: 5 | G176: 4 | H176: 5 | I176: 4 | J176: 4 | K176: 4 | V176: 6.906754779
A177: Case 163 | B177: 7 | C177: 7 | D177: 7 | E177: 7 | F177: 7 | G177: 7 | H177: 1 | I177: 1 | J177: 1 | K177: 7 | V177: -6.906754779
A178: Case 164 | B178: 3 | C178: 3 | D178: 2 | E178: 2 | F178: 3 | G178: 2 | H178: 2 | I178: 2 | J178: 3 | K178: 5 | V178: -6.906754779
A179: Case 165 | B179: 7 | C179: 7 | D179: 7 | E179: 6 | F179: 7 | G179: 6 | H179: 1 | I179: 1 | J179: 1 | K179: 7 | V179: 6.906754779
A180: Case 166 | B180: 7 | C180: 7 | D180: 6 | E180: 6 | F180: 7 | G180: 5 | H180: 3 | I180: 4 | J180: 3 | K180: 5 | V180: -6.906754779
A181: Case 167 | B181: 6 | C181: 6 | D181: 7 | E181: 7 | F181: 7 | G181: 7 | H181: 1 | I181: 1 | J181: 1 | K181: 6 | V181: -6.906754779
A182: Case 168 | B182: 7 | C182: 7 | D182: 7 | E182: 7 | F182: 7 | G182: 6 | H182: 3 | I182: 3 | J182: 2 | K182: 6 | V182: 6.906754779
A183: Case 169 | B183: 5 | C183: 5 | D183: 5 | E183: 7 | F183: 6 | G183: 7 | H183: 1 | I183: 1 | J183: 1 | K183: 7 | V183: -6.906754779
A184: Case 170 | B184: 6 | C184: 6 | D184: 6 | E184: 7 | F184: 7 | G184: 7 | H184: 1 | I184: 1 | J184: 1 | K184: 7 | V184: 6.906754779
A185: Case 171 | B185: 6 | C185: 6 | D185: 7 | E185: 7 | F185: 6 | G185: 7 | H185: 1 | I185: 2 | J185: 2 | K185: 7 | V185: -6.906754779
A186: Case 172 | B186: 5 | C186: 5 | D186: 4 | E186: 6 | F186: 6 | G186: 7 | H186: 4 | I186: 3 | J186: 4 | K186: 5 | V186: -6.906754779
A187: Case 173 | B187: 4 | C187: 5 | D187: 6 | E187: 6 | F187: 7 | G187: 7 | H187: 3 | I187: 3 | J187: 3 | K187: 6 | V187: -6.906754779
A188: Case 174 | B188: 5 | C188: 4 | D188: 4 | E188: 7 | F188: 7 | G188: 6 | H188: 2 | I188: 2 | J188: 2 | K188: 4 | V188: -6.906754779
A189: Case 175 | B189: 7 | C189: 6 | D189: 6 | E189: 3 | F189: 5 | G189: 4 | H189: 4 | I189: 2 | J189: 3 | K189: 7 | V189: -6.906754779
A190: Case 176 | B190: 7 | C190: 7 | D190: 7 | E190: 4 | F190: 4 | G190: 5 | H190: 1 | I190: 1 | J190: 1 | K190: 7 | V190: 6.906754779
A191: Case 177 | B191: 6 | C191: 6 | D191: 6 | E191: 4 | F191: 6 | G191: 5 | H191: 5 | I191: 4 | J191: 4 | K191: 4 | V191: -6.906754779
A192: Case 178 | B192: 7 | C192: 7 | D192: 7 | E192: 6 | F192: 6 | G192: 5 | H192: 1 | I192: 1 | J192: 1 | K192: 7 | V192: 6.906754779
A193: Case 179 | B193: 7 | C193: 7 | D193: 7 | E193: 5 | F193: 6 | G193: 5 | H193: 1 | I193: 1 | J193: 1 | K193: 7 | V193: 6.906754779
A194: Case 180 | B194: 7 | C194: 7 | D194: 7 | E194: 7 | F194: 7 | G194: 6 | H194: 1 | I194: 1 | J194: 1 | K194: 7 | V194: 6.906754779
A195: Case 181 | B195: 6 | C195: 6 | D195: 6 | E195: 6 | F195: 6 | G195: 7 | H195: 1 | I195: 1 | J195: 1 | K195: 7 | V195: 6.906754779
A196: Case 182 | B196: 3 | C196: 4 | D196: 3 | E196: 7 | F196: 7 | G196: 7 | H196: 1 | I196: 2 | J196: 2 | K196: 6 | V196: -6.906754779
A197: Case 183 | B197: 5 | C197: 4 | D197: 6 | E197: 6 | F197: 7 | G197: 6 | H197: 3 | I197: 3 | J197: 3 | K197: 4 | V197: -6.906754779
A198: Case 184 | B198: 7 | C198: 7 | D198: 7 | E198: 4 | F198: 5 | G198: 4 | H198: 1 | I198: 1 | J198: 1 | K198: 7 | V198: 6.906754779
A199: Case 185 | B199: 7 | C199: 7 | D199: 7 | E199: 7 | F199: 7 | G199: 7 | H199: 1 | I199: 1 | J199: 1 | K199: 7 | V199: 6.906754779
A200: Case 186 | B200: 3 | C200: 3 | D200: 3 | E200: 6 | F200: 4 | G200: 6 | H200: 3 | I200: 3 | J200: 2 | K200: 5 | V200: 6.906754779
A201: Case 187 | B201: 1 | C201: 3 | D201: 3 | E201: 7 | F201: 7 | G201: 7 | H201: 1 | I201: 2 | J201: 2 | K201: 5 | V201: -6.906754779
A202: Case 188 | B202: 6 | C202: 6 | D202: 6 | E202: 5 | F202: 4 | G202: 5 | H202: 2 | I202: 2 | J202: 4 | K202: 7 | V202: -6.906754779
A203: Case 189 | B203: 7 | C203: 7 | D203: 7 | E203: 4 | F203: 3 | G203: 5 | H203: 1 | I203: 1 | J203: 1 | K203: 4 | V203: -6.906754779
A204: Case 190 | B204: 7 | C204: 7 | D204: 7 | E204: 5 | F204: 6 | G204: 5 | H204: 4 | I204: 5 | J204: 3 | K204: 7 | V204: -6.906754779
... 1310 more rows

Sheet BestSub5
A1: Logistic Regression (using X2, X4, X6, X8, X10) via Excel Solver to Maximize Log-Likelihood (Minimize Deviance)
F2: b-hat
A3: Y = 1 if recommended the resataurant, else 0 | F3: -5.328721934
A4: X2 = the entrées are delicious | F4: 0.4260944538
A5: X4 = parking at the restaurant is ample | F5: 0.137643581
A6: X6 = the noise level in the restaurant is not distracting to me | F6: 0.1286978263
A7: X8 = the wait for food service is excessive | F7: -0.4623536833
A8: X10 = restaurant service personnel are courteous and friendly | F8: 0.2565979833
A10: Deviance (-2LL) | E10: =-2*SUM(K17:K1016) -> 1111.064568
A11: Akaike's Information Criterion (AIC) = | E11: =E10+2*6 -> 1123.064568
A12: Bayesian Information Criterion (BIC) = | E12: =E10+6*LOG(1000) -> 1129.064568
A13: % Correctly Classified (Training Sample) = | E13: =SUM(M17:M1016)/1000 -> 0.782
A14: % Correctly Classified (Holdout Sample) = | E14: =SUM(M1017:M1516)/500 -> 0.754
J15: Prob
A16: Customer | B16: Y | C16: X0 | D16: X2 | E16: X4 | F16: X6 | G16: X8 | H16: X10 | J16: Y = 1 | K16: LL | L16: PRED | M16: Correct?
A17: 1 | B17: 0 | C17: 1 | D17: 7 | E17: 6 | F17: 6 | G17: 4 | H17: 5 | J17: =1/(1+EXP(-(F$3*C17+F$4*D17+F$5*E17+F$6*F17+F$7*G17+F$8*H17))) -> 0.2117452989 | K17: =B17*LN(J17)+(1-B17)*LN(1-J17) -> -0.2379340166 | L17: =IF(J17>0.5,1,0) -> 0 | M17: =IF(B17=L17,1,0) -> 1
A18: 2 | B18: 0 | C18: 1 | D18: 7 | E18: 7 | F18: 7 | G18: 3 | H18: 6 | J18: =1/(1+EXP(-(F$3*C18+F$4*D18+F$5*E18+F$6*F18+F$7*G18+F$8*H18))) -> 0.4184489019 | K18: -0.542056438 | L18: 0 | M18: 1
A19: 3 | B19: 0 | C19: 1 | D19: 7 | E19: 5 | F19: 7 | G19: 3 | H19: 7 | J19: 0.4139079543 | K19: -0.5342784272 | L19: 0 | M19: 1
A20: 4 | B20: 1 | C20: 1 | D20: 6 | E20: 4 | F20: 6 | G20: 3 | H20: 4 | J20: 0.1406305062 | K20: -1.961619352 | L20: 0 | M20: 0
A21: 5 | B21: 1 | C21: 1 | D21: 7 | E21: 7 | F21: 7 | G21: 5 | H21: 6 | J21: 0.2220341511 | K21: -1.504924075 | L21: 0 | M21: 0
A22: 6 | B22: 1 | C22: 1 | D22: 7 | E22: 6 | F22: 5 | G22: 1 | H22: 7 | J22: 0.612331227 | K22: -0.4904819222 | L22: 1 | M22: 1
A23: 7 | B23: 1 | C23: 1 | D23: 5 | E23: 7 | F23: 7 | G23: 3 | H23: 2 | J23: 0.09905893244 | K23: -2.312040329 | L23: 0 | M23: 0
A24: 8 | B24: 0 | C24: 1 | D24: 7 | E24: 6 | F24: 7 | G24: 1 | H24: 7 | J24: 0.6713986395 | K24: -1.112909933 | L24: 1 | M24: 0
A25: 9 | B25: 1 | C25: 1 | D25: 7 | E25: 7 | F25: 7 | G25: 1 | H25: 7 | J25: 0.7010203264 | K25: -0.3552183961 | L25: 1 | M25: 1
A26: 10 | B26: 0 | C26: 1 | D26: 7 | E26: 4 | F26: 2 | G26: 1 | H26: 7 | J26: 0.4491121585 | K26: -0.596224045 | L26: 0 | M26: 1
A27: 11 | B27: 0 | C27: 1 | D27: 6 | E27: 7 | F27: 7 | G27: 3 | H27: 4 | J27: 0.2195253616 | K27: -0.2478530336 | L27: 0 | M27: 1
A28: 12 | B28: 1 | C28: 1 | D28: 7 | E28: 3 | F28: 3 | G28: 1 | H28: 7 | J28: 0.4468999074 | K28: -0.8054206303 | L28: 0 | M28: 0
A29: 13 | B29: 1 | C29: 1 | D29: 7 | E29: 7 | F29: 4 | G29: 4 | H29: 5 | J29: 0.1924467971 | K29: -1.647935542 | L29: 0 | M29: 0
A30: 14 | B30: 0 | C30: 1 | D30: 7 | E30: 6 | F30: 6 | G30: 2 | H30: 4 | J30: 0.3438175476 | K30: -0.4213164 | L30: 0 | M30: 1
A31: 15 | B31: 1 | C31: 1 | D31: 7 | E31: 4 | F31: 4 | G31: 1 | H31: 6 | J31: 0.4493095182 | K31: -0.8000432786 | L31: 0 | M31: 0
A32: 16 | B32: 1 | C32: 1 | D32: 7 | E32: 5 | F32: 6 | G32: 1 | H32: 7 | J32: 0.6102055467 | K32: -0.4939594167 | L32: 1 | M32: 1
A33: 17 | B33: 1 | C33: 1 | D33: 6 | E33: 7 | F33: 7 | G33: 1 | H33: 7 | J33: 0.6049340759 | K33: -0.5026357923 | L33: 1 | M33: 1
A34: 18 | B34: 1 | C34: 1 | D34: 2 | E34: 7 | F34: 3 | G34: 4 | H34: 5 | J34: 0.02428387124 | K34: -3.717942884 | L34: 0 | M34: 0
A35: 19 | B35: 1 | C35: 1 | D35: 3 | E35: 7 | F35: 6 | G35: 4 | H35: 5 | J35: 0.05309221703 | K35: -2.935724933 | L35: 0 | M35: 0
A36: 20 | B36: 0 | C36: 1 | D36: 7 | E36: 5 | F36: 4 | G36: 3 | H36: 4 | J36: 0.1818712555 | K36: -0.2007355654 | L36: 0 | M36: 1
A37: 21 | B37: 0 | C37: 1 | D37: 7 | E37: 7 | F37: 6 | G37: 6 | H37: 5 | J37: 0.1089510257 | K37: -0.1153558874 | L37: 0 | M37: 1
A38: 22 | B38: 0 | C38: 1 | D38: 7 | E38: 7 | F38: 7 | G38: 2 | H38: 5 | J38: 0.4691919878 | K38: -0.633354882 | L38: 0 | M38: 1
A39: 23 | B39: 0 | C39: 1 | D39: 7 | E39: 6 | F39: 6 | G39: 2 | H39: 7 | J39: 0.5308273998 | K39: -0.7567845607 | L39: 1 | M39: 0
A40: 24 | B40: 1 | C40: 1 | D40: 7 | E40: 5 | F40: 5 | G40: 1 | H40: 7 | J40: 0.5791971481 | K40: -0.5461123617 | L40: 1 | M40: 1
A41: 25 | B41: 1 | C41: 1 | D41: 7 | E41: 7 | F41: 7 | G41: 1 | H41: 7 | J41: 0.7010203264 | K41: -0.3552183961 | L41: 1 | M41: 1
A42: 26 | B42: 0 | C42: 1 | D42: 6 | E42: 6 | F42: 7 | G42: 1 | H42: 6 | J42: 0.5079556473 | K42: -0.7091864188 | L42: 1 | M42: 0
A43: 27 | B43: 1 | C43: 1 | D43: 7 | E43: 7 | F43: 7 | G43: 1 | H43: 7 | J43: 0.7010203264 | K43: -0.3552183961 | L43: 1 | M43: 1
A44: 28 | B44: 1 | C44: 1 | D44: 7 | E44: 7 | F44: 5 | G44: 1 | H44: 7 | J44: 0.6444578563 | K44: -0.4393458485 | L44: 1 | M44: 1
A45: 29 | B45: 0 | C45: 1 | D45: 2 | E45: 7 | F45: 7 | G45: 1 | H45: 3 | J45: 0.09073421636 | K45: -0.0951178363 | L45: 0 | M45: 1
A46: 30 | B46: 1 | C46: 1 | D46: 6 | E46: 7 | F46: 7 | G46: 1 | H46: 7 | J46: 0.6049340759 | K46: -0.5026357923 | L46: 1 | M46: 1
A47: 31 | B47: 1 | C47: 1 | D47: 6 | E47: 7 | F47: 7 | G47: 4 | H47: 4 | J47: 0.1504867932 | K47: -1.893879952 | L47: 0 | M47: 0
A48: 32 | B48: 0 | C48: 1 | D48: 5 | E48: 7 | F48: 7 | G48: 1 | H48: 7 | J48: 0.4999930964 | K48: -0.6931333734 | L48: 0 | M48: 1
A49: 33 | B49: 0 | C49: 1 | D49: 7 | E49: 7 | F49: 7 | G49: 5 | H49: 7 | J49: 0.2694817704 | K49: -0.3140010932 | L49: 0 | M49: 1
A50: 34 | B50: 1 | C50: 1 | D50: 5 | E50: 5 | F50: 5 | G50: 4 | H50: 6 | J50: 0.1018926806 | K50: -2.283835171 | L50: 0 | M50: 0
A51: 35 | B51: 0 | C51: 1 | D51: 7 | E51: 4 | F51: 3 | G51: 1 | H51: 7 | J51: 0.4811187938 | K51: -0.6560803119 | L51: 0 | M51: 1
A52: 36 | B52: 0 | C52: 1 | D52: 5 | E52: 7 | F52: 6 | G52: 1 | H52: 5 | J52: 0.3448123319 | K52: -0.4228335682 | L52: 0 | M52: 1
A53: 37 | B53: 0 | C53: 1 | D53: 7 | E53: 3 | F53: 3 | G53: 4 | H53: 5 | J53: 0.1077953173 | K53: -0.1140597078 | L53: 0 | M53: 1
A54: 38 | B54: 1 | C54: 1 | D54: 7 | E54: 4 | F54: 3 | G54: 1 | H54: 7 | J54: 0.4811187938 | K54: -0.7316410667 | L54: 0 | M54: 0
A55: 39 | B55: 0 | C55: 1 | D55: 6 | E55: 6 | F55: 5 | G55: 3 | H55: 6 | J55: 0.2404383556 | K55: -0.2750137958 | L55: 0 | M55: 1
A56: 40 | B56: 1 | C56: 1 | D56: 7 | E56: 4 | F56: 2 | G56: 1 | H56: 7 | J56: 0.4491121585 | K56: -0.8004826262 | L56: 0 | M56: 0
A57: 41 | B57: 1 | C57: 1 | D57: 7 | E57: 6 | F57: 6 | G57: 1 | H57: 7 | J57: 0.6424054597 | K57: -0.4425356175 | L57: 1 | M57: 1
A58: 42 | B58: 0 | C58: 1 | D58: 5 | E58: 7 | F58: 7 | G58: 3 | H58: 5 | J58: 0.1918659577 | K58: -0.2130273403 | L58: 0 | M58: 1
A59: 43 | B59: 0 | C59: 1 | D59: 4 | E59: 4 | F59: 6 | G59: 3 | H59: 2 | J59: 0.04010018698 | K59: -0.0409263614 | L59: 0 | M59: 1
A60: 44 | B60: 0 | C60: 1 | D60: 7 | E60: 2 | F60: 5 | G60: 4 | H60: 6 | J60: 0.1496802253 | K60: -0.1621427947 | L60: 0 | M60: 1
A61: 45 | B61: 0 | C61: 1 | D61: 5 | E61: 7 | F61: 7 | G61: 1 | H61: 7 | J61: 0.4999930964 | K61: -0.6931333734 | L61: 0 | M61: 1
A62: 46 | B62: 0 | C62: 1 | D62: 4 | E62: 7 | F62: 7 | G62: 2 | H62: 7 | J62: 0.2914244789 | K62: -0.3444986326 | L62: 0 | M62: 1
A63: 47 | B63: 0 | C63: 1 | D63: 5 | E63: 4 | F63: 4 | G63: 3 | H63: 4 | J63: 0.07631136559 | K63: -0.07938023988 | L63: 0 | M63: 1
A64: 48 | B64: 0 | C64: 1 | D64: 5 | E64: 6 | F64: 6 | G64: 2 | H64: 6 | J64: 0.2718373195 | K64: -0.3172307935 | L64: 0 | M64: 1
A65: 49 | B65: 0 | C65: 1 | D65: 6 | E65: 7 | F65: 7 | G65: 4 | H65: 5 | J65: 0.186306563 | K65: -0.2061715969 | L65: 0 | M65: 1
A66: 50 | B66: 1 | C66: 1 | D66: 7 | E66: 4 | F66: 7 | G66: 1 | H66: 7 | J66: 0.608075671 | K66: -0.4974559459 | L66: 1 | M66: 1
A67: 51 | B67: 0 | C67: 1 | D67: 6 | E67: 7 | F67: 7 | G67: 2 | H67: 6 | J67: 0.4272977607 | K67: -0.5573893496 | L67: 0 | M67: 1
A68: 52 | B68: 0 | C68: 1 | D68: 6 | E68: 7 | F68: 7 | G68: 1 | H68: 7 | J68: 0.6049340759 | K68: -0.9287026316 | L68: 1 | M68: 0
A69: 53 | B69: 0 | C69: 1 | D69: 5 | E69: 7 | F69: 5 | G69: 4 | H69: 5 | J69: 0.1036157075 | K69: -0.1093860601 | L69: 0 | M69: 1
A70: 54 | B70: 0 | C70: 1 | D70: 7 | E70: 7 | F70: 7 | G70: 3 | H70: 7 | J70: 0.4818714317 | K70: -0.6575318662 | L70: 0 | M70: 1
A71: 55 | B71: 0 | C71: 1 | D71: 7 | E71: 5 | F71: 4 | G71: 4 | H71: 6 | J71: 0.1895589757 | K71: -0.210176705 | L71: 0 | M71: 1
A72: 56 | B72: 0 | C72: 1 | D72: 4 | E72: 7 | F72: 7 | G72: 2 | H72: 6 | J72: 0.2413900355 | K72: -0.2762675144 | L72: 0 | M72: 1
A73: 57 | B73: 0 | C73: 1 | D73: 7 | E73: 6 | F73: 4 | G73: 3 | H73: 2 | J73: 0.1324723949 | K73: -0.1421079462 | L73: 0 | M73: 1
A74: 58 | B74: 0 | C74: 1 | D74: 7 | E74: 5 | F74: 4 | G74: 2 | H74: 5 | J74: 0.3132929692 | K74: -0.3758475249 | L74: 0 | M74: 1
A75: 59 | B75: 1 | C75: 1 | D75: 7 | E75: 7 | F75: 7 | G75: 1 | H75: 6 | J75: 0.6446406067 | K75: -0.4390623163 | L75: 1 | M75: 1
A76: 60 | B76: 1 | C76: 1 | D76: 6 | E76: 6 | F76: 7 | G76: 1 | H76: 4 | J76: 0.3819285087 | K76: -0.962521838 | L76: 0 | M76: 0
B77: 0 | C77: 1 | D77: 7 | E77: 7 | F77: 7 | G77: 1 | H77: 7 | J77: 0.7010203264 | K77: -1.207379689 | L77: 1 | M77: 0
B78: 1 | C78: 1 | D78: 7 | E78: 5 | F78: 6 | G78: 2 | H78: 7 | J78: 0.4964557148 | K78: -0.7002609943 | L78: 0 | M78: 0
B79: 1 | C79: 1 | D79: 7 | E79: 7 | F79: 6 | G79: 1 | H79: 7 | J79: 0.6733692397 | K79: -0.3954614525 | L79: 1 | M79: 1
B80: 1 | C80: 1 | D80: 6 | E80: 5 | F80: 6 | G80: 1 | H80: 7 | J80: 0.5055202385 | K80: -0.6821672048 | L80: 1 | M80: 1
B81: 1 | C81: 1 | D81: 6 | E81: 6 | F81: 7 | G81: 1 | H81: 7 | J81: 0.5716100767 | K81: =B81*LN(J81)+(1-B81)*LN(1-J81) -> -0.5592982041 | L81: =IF(J81>0.5,1,0) -> 1 | M81: =IF(B81=L81,1,0) -> 1
B82: 0 | C82: 1 | D82: 7 | E82: 7 | F82: 7 | G82: 2 | H82: 7 | J82: =1/(1+EXP(-(F$3*C82+F$4*D82+F$5*E82+F$6*F82+F$7*G82+F$8*H82))) -> 0.5962363844 | K82: -0.9069256823 | L82: 1 | M82: 0
B83: 1 | C83: 1 | D83: 7 | E83: 7 | F83: 7 | G83: 1 | H83: 7 | J83: 0.7010203264 | K83: -0.3552183961 | L83: 1 | M83: 1
B84: 1 | C84: 1 | D84: 7 | E84: 4 | F84: 7 | G84: 3 | H84: 6 | J84: 0.3225506089 | K84: -1.131495228 | L84: 0 | M84: 0
B85: 0 | C85: 1 | D85: 2 | E85: 5 | F85: 4 | G85: 5 | H85: 4 | J85: 0.01036501172 | K85: -0.01041910255 | L85: 0 | M85: 1
B86: 1 | C86: 1 | D86: 1 | E86: 2 | F86: 3 | G86: 4 | H86: 3 | J86: 0.004864729223 | K86: -5.325744223 | L86: 0 | M86: 0
B87: 0 | C87: 1 | D87: 6 | E87: 6 | F87: 5 | G87: 5 | H87: 2 | J87: 0.04305048896 | K87: -0.04400464645 | L87: 0 | M87: 1
B88: 0 | C88: 1 | D88: 5 | E88: 7 | F88: 7 | G88: 3 | H88: 6 | J88: 0.2348126104 | K88: -0.2676345214 | L88: 0 | M88: 1
B89: 0 | C89: 1 | D89: 7 | E89: 4 | F89: 5 | G89: 2 | H89: 7 | J89: 0.4303265935 | K89: -0.5626920533 | L89: 0 | M89: 1
B90: 0 | C90: 1 | D90: 7 | E90: 7 | F90: 7 | G90: 3 | H90: 7 | J90: 0.4818714317 | K90: -0.6575318662 | L90: 0 | M90: 1
B91: 1 | C91: 1 | D91: 7 | E91: 5 | F91: 4 | G91: 1 | H91: 7 | J91: 0.5475510233 | K91: -0.6022996284 | L91: 1 | M91: 1
B92: 0 | C92: 1 | D92: 5 | E92: 7 | F92: 6 | G92: 1 | H92: 7 | J92: 0.467863004 | K92: -0.6308543116 | L92: 0 | M92: 1
B93: 0 | C93: 1 | D93: 6 | E93: 5 | F93: 6 | G93: 1 | H93: 7 | J93: 0.5055202385 | K93: -0.7042490559 | L93: 1 | M93: 0
B94: 0 | C94: 1 | D94: 7 | E94: 5 | F94: 6 | G94: 4 | H94: 6 | J94: 0.2322797886 | K94: -0.2643299203 | L94: 0 | M94: 1
B95: 0 | C95: 1 | D95: 7 | E95: 5 | F95: 5 | G95: 1 | H95: 5 | J95: 0.4517215104 | K95: -0.6009719285 | L95: 0 | M95: 1
B96: 0 | C96: 1 | D96: 7 | E96: 6 | F96: 7 | G96: 1 | H96: 6 | J96: 0.6125205621 | K96: -0.9480924952 | L96: 1 | M96: 0
B97: 1 | C97: 1 | D97: 7 | E97: 7 | F97: 6 | G97: 1 | H97: 7 | J97: 0.6733692397 | K97: -0.3954614525 | L97: 1 | M97: 1
B98: 0 | C98: 1 | D98: 6 | E98: 6 | F98: 5 | G98: 1 | H98: 7 | J98: 0.5077562792 | K98: -0.7087813177 | L98: 1 | M98: 0
B99: 0 | C99: 1 | D99: 5 | E99: 6 | F99: 5 | G99: 2 | H99: 7 | J99: 0.2978785522 | K99: -0.3536488873 | L99: 0 | M99: 1
B100: 0 | C100: 1 | D100: 6 | E100: 7 | F100: 7 | G100: 2 | H100: 4 | J100: 0.308726283 | K100: -0.3692194164 | L100: 0 | M100: 1
B101: 0 | C101: 1 | D101: 6 | E101: 5 | F101: 5 | G101: 3 | H101: 5 | J101: 0.1758792605 | K101: -0.1934382312 | L101: 0 | M101: 1
B102: 0 | C102: 1 | D102: 4 | E102: 7 | F102: 7 | G102: 2 | H102: 6 | J102: 0.2413900355 | K102: -0.2762675144 | L102: 0 | M102: 1
B103: 1 | C103: 1 | D103: 7 | E103: 7 | F103: 7 | G103: 1 | H103: 7 | J103: 0.7010203264 | K103: -0.3552183961 | L103: 1 | M103: 1
B104: 1 | C104: 1 | D104: 7 | E104: 6 | F104: 7 | G104: 2 | H104: 7 | J104: 0.5627090703 | K104: -0.5749925334 | L104: 1 | M104: 1
B105: 1 | C105: 1 | D105: 7 | E105: 6 | F105: 6 | G105: 2 | H105: 7 | J105: 0.5308273998 | K105: -0.6333183581 | L105: 1 | M105: 1
B106: 0 | C106: 1 | D106: 7 | E106: 7 | F106: 6 | G106: 1 | H106: 7 | J106: 0.6733692397 | K106: -1.118924919 | L106: 1 | M106: 0
B107: 1 | C107: 1 | D107: 7 | E107: 4 | F107: 7 | G107: 1 | H107: 7 | J107: 0.608075671 | K107: -0.4974559459 | L107: 1 | M107: 1
B108: 0 | C108: 1 | D108: 7 | E108: 4 | F108: 3 | G108: 3 | H108: 7 | J108: 0.2688887088 | K108: -0.3131895856 | L108: 0 | M108: 1
B109: 0 | C109: 1 | D109: 5 | E109: 2 | F109: 4 | G109: 1 | H109: 7 | J109: 0.2545788028 | K109: -0.293805855 | L109: 0 | M109: 1
B110: 0 | C110: 1 | D110: 7 | E110: 6 | F110: 7 | G110: 3 | H110: 6 | J110: 0.385376848 | K110: -0.4867459599 | L110: 0 | M110: 1
B111: 0 | C111: 1 | D111: 7 | E111: 5 | F111: 6 | G111: 2 | H111: 5 | J111: 0.3711297217 | K111: -0.4638302784 | L111: 0 | M111: 1
B112: 0 | C112: 1 | D112: 7 | E112: 7 | F112: 6 | G112: 4 | H112: 6 | J112: 0.284918048 | K112: -0.3353581247 | L112: 0 | M112: 1
B113: 1 | C113: 1 | D113: 7 | E113: 7 | F113: 7 | G113: 1 | H113: 7 | J113: 0.7010203264 | K113: -0.3552183961 | L113: 1 | M113: 1
B114: 0 | C114: 1 | D114: 5 | E114: 7 | F114: 7 | G114: 2 | H114: 7 | J114: 0.3864210661 | K114: -0.4884463615 | L114: 0 | M114: 1
B115: 1 | C115: 1 | D115: 7 | E115: 7 | F115: 7 | G115: 1 | H115: 7 | J115: 0.7010203264 | K115: -0.3552183961 | L115: 1 | M115: 1
B116: 0 | C116: 1 | D116: 5 | E116: 4 | F116: 7 | G116: 2 | H116: 5 | J116: 0.1996460518 | K116: -0.2227012139 | L116: 0 | M116: 1
B117: 0 | C117: 1 | D117: 4 | E117: 7 | F117: 7 | G117: 1 | H117: 7 | J117: 0.3950527251 | K117: -0.5026139736 | L117: 0 | M117: 1
B118: 0 | C118: 1 | D118: 7 | E118: 7 | F118: 5 | G118: 1 | H118: 5 | J118: 0.5203811191 | K118: -0.7347634885 | L118: 1 | M118: 0
B119: 0 | C119: 1 | D119: 4 | E119: 7 | F119: 7 | G119: 4 | H119: 6 | J119: 0.1120688192 | K119: -0.1188610381 | L119: 0 | M119: 1
B120: 0 | C120: 1 | D120: 5 | E120: 7 | F120: 7 | G120: 4 | H120: 5 | J120: 0.1300762632 | K120: -0.13934973 | L120: 0 | M120: 1
B121: 0 | C121: 1 | D121: 7 | E121: 5 | F121: 2 | G121: 1 | H121: 7 | J121: 0.4833524057 | K121: -0.6603942727 | L121: 0 | M121: 1
B122: 0 | C122: 1 | D122: 6 | E122: 6 | F122: 6 | G122: 1 | H122: 5 | J122: 0.4125410793 | K122: -0.5319489576 | L122: 0 | M122: 1
B123: 0 | C123: 1 | D123: 5 | E123: 5 | F123: 4 | G123: 3 | H123: 6 | J123: 0.1367306753 | K123: -0.1470285569 | L123: 0 | M123: 1
B124: 0 | C124: 1 | D124: 6 | E124: 6 | F124: 4 | G124: 2 | H124: 2 | J124: 0.1366952431 | K124: -0.1469875136 | L124: 0 | M124: 1
B125: 1 | C125: 1 | D125: 6 | E125: 4 | F125: 7 | G125: 1 | H125: 7 | J125: 0.5032839769 | K125: -0.6866007018 | L125: 1 | M125: 1
B126: 0 | C126: 1 | D126: 5 | E126: 7 | F126: 6 | G126: 5 | H126: 6 | J126: 0.0966740748 | K126: -0.1016718547 | L126: 0 | M126: 1
B127: 1 | C127: 1 | D127: 4 | E127: 7 | F127: 6 | G127: 1 | H127: 3 | J127: 0.1706239261 | K127: -1.768293407 | L127: 0 | M127: 0
B128: 1 | C128: 1 | D128: 7 | E128: 7 | F128: 7 | G128: 1 | H128: 7 | J128: 0.7010203264 | K128: -0.3552183961 | L128: 1 | M128: 1
B129: 1 | C129: 1 | D129: 7 | E129: 6 | F129: 6 | G129: 4 | H129: 5 | J129: 0.2117452989 | K129: -1.552371147 | L129: 0 | M129: 0
B130: 1 | C130: 1 | D130: 7 | E130: 5 | F130: 5 | G130: 1 | H130: 7 | J130: 0.5791971481 | K130: -0.5461123617 | L130: 1 | M130: 1
B131: 1 | C131: 1 | D131: 7 | E131: 7 | F131: 7 | G131: 1 | H131: 7 | J131: 0.7010203264 | K131: -0.3552183961 | L131: 1 | M131: 1
B132: 0 | C132: 1 | D132: 3 | E132: 7 | F132: 7 | G132: 1 | H132: 7 | J132: 0.2989680983 | K132: -0.3552018841 | L132: 0 | M132: 1
B133: 0 | C133: 1 | D133: 7 | E133: 7 | F133: 7 | G133: 1 | H133: 7 | J133: 0.7010203264 | K133: -1.207379689 | L133: 1 | M133: 0
B134: 0 | C134: 1 | D134: 7 | E134: 5 | F134: 5 | G134: 1 | H134: 6 | J134: 0.5157149462 | K134: -0.7250815914 | L134: 1 | M134: 0
B135: 0 | C135: 1 | D135: 4 | E135: 6 | F135: 7 | G135: 3 | H135: 4 | J135: 0.09463875497 | K135: -0.09942124915 | L135: 0 | M135: 1
B136: 0 | C136: 1 | D136: 7 | E136: 5 | F136: 5 | G136: 1 | H136: 6 | J136: 0.5157149462 | K136: -0.7250815914 | L136: 1 | M136: 0
B137: 0 | C137: 1 | D137: 7 | E137: 7 | F137: 7 | G137: 1 | H137: 7 | J137: 0.7010203264 | K137: -1.207379689 | L137: 1 | M137: 0
B138: 0 | C138: 1 | D138: 6 | E138: 6 | F138: 4 | G138: 1 | H138: 5 | J138: 0.3518616343 | K138: -0.4336510781 | L138: 0 | M138: 1
B139: 0 | C139: 1 | D139: 6 | E139: 6 | F139: 7 | G139: 1 | H139: 3 | J139: 0.3234484983 | K139: -0.3907467046 | L139: 0 | M139: 1
B140: 1 | C140: 1 | D140: 7 | E140: 7 | F140: 7 | G140: 1 | H140: 7 | J140: 0.7010203264 | K140: -0.3552183961 | L140: 1 | M140: 1
B141: 1 | C141: 1 | D141: 7 | E141: 6 | F141: 5 | G141: 5 | H141: 4 | J141: 0.1032071631 | K141: -2.271017018 | L141: 0 | M141: 0
B142: 0 | C142: 1 | D142: 7 | E142: 4 | F142: 4 | G142: 7 | H142: 6 | J142: 0.04844893431 | K142: -0.04966192507 | L142: 0 | M142: 1
B143: 1 | C143: 1 | D143: 7 | E143: 7 | F143: 7 | G143: 2 | H143: 6 | J143: 0.5332532485 | K143: -0.6287588298 | L143: 1 | M143: 1
B144: 1 | C144: 1 | D144: 7 | E144: 7 | F144: 7 | G144: 1 | H144: 7 | J144: 0.7010203264 | K144: -0.3552183961 | L144: 1 | M144: 1
B145: 1 | C145: 1 | D145: 7 | E145: 7 | F145: 7 | G145: 1 | H145: 7 | J145: 0.7010203264 | K145: =B145*LN(J145)+(1-B145)*LN(1-J145) -> -0.3552183961 | L145: =IF(J145>0.5,1,0) -> 1 | M145: =IF(B145=L145,1,0) -> 1
B146: 1 | C146: 1 | D146: 7 | E146: 4 | F146: 4 | G146: 1 | H146: 7 | J146: =1/(1+EXP(-(F$3*C146+F$4*D146+F$5*E146+F$6*F146+F$7*G146+F$8*H146))) -> 0.513281143 | K146: -0.6669315469 | L146: 1 | M146: 1
B147: 1 | C147: 1 | D147: 7 | E147: 7 | F147: 7 | G147: 1 | H147: 7 | J147: 0.7010203264 | K147: -0.3552183961 | L147: 1 | M147: 1
B148: 1 | C148: 1 | D148: 6 | E148: 5 | F148: 5 | G148: 3 | H148: 3 | J148: 0.113275114 | K148: -2.177935782 | L148: 0 | M148: 0
B149: 1 | C149: 1 | D149: 7 | E149: 7 | F149: 7 | G149: 1 | H149: 7 | J149: 0.7010203264 | K149: -0.3552183961 | L149: 1 | M149: 1
B150: 1 | C150: 1 | D150: 7 | E150: 7 | F150: 7 | G150: 1 | H150: 7 | J150: 0.7010203264 | K150: -0.3552183961 | L150: 1 | M150: 1
B151: 0 | C151: 1 | D151: 4 | E151: 4 | F151: 5 | G151: 4 | H151: 3 | J151: 0.02903181382 | K151: -0.02946157521 | L151: 0 | M151: 1
B152: 0 | C152: 1 | D152: 7 | E152: 6 | F152: 7 | G152: 1 | H152: 7 | J152: 0.6713986395 | K152: -1.112909933 | L152: 1 | M152: 0
B153: 1 | C153: 1 | D153: 7 | E153: 6 | F153: 4 | G153: 1 | H153: 7 | J153: 0.5813759192 | K153: -0.5423577103 | L153: 1 | M153: 1
B154: 1 | C154: 1 | D154: 7 | E154: 5 | F154: 6 | G154: 1 | H154: 6 | J154: 0.5477486295 | K154: -0.6019388026 | L154: 1 | M154: 1
B155: 1 | C155: 1 | D155: 7 | E155: 6 | F155: 5 | G155: 1 | H155: 7 | J155: 0.612331227 | K155: -0.4904819222 | L155: 1 | M155: 1
B156: 1 | C156: 1 | D156: 7 | E156: 6 | F156: 5 | G156: 1 | H156: 7 | J156: 0.612331227 | K156: -0.4904819222 | L156: 1 | M156: 1
B157: 0 | C157: 1 | D157: 6 | E157: 7 | F157: 5 | G157: 1 | H157: 3 | J157: 0.2978157669 | K157: -0.3535594691 | L157: 0 | M157: 1
B158: 1 | C158: 1 | D158: 7 | E158: 7 | F158: 7 | G158: 1 | H158: 7 | J158: 0.7010203264 | K158: -0.3552183961 | L158: 1 | M158: 1
B159: 0 | C159: 1 | D159: 4 | E159: 7 | F159: 5 | G159: 1 | H159: 4 | J159: 0.1894924198 | K159: -0.2100945854 | L159: 0 | M159: 1
B160: 0 | C160: 1 | D160: 4 | E160: 7 | F160: 7 | G160: 2 | H160: 4 | J160: 0.1599944057 | K160: -0.1743467273 | L160: 0 | M160: 1
B161: 1 | C161: 1 | D161: 7 | E161: 7 | F161: 7 | G161: 1 | H161: 6 | J161: 0.6446406067 | K161: -0.4390623163 | L161: 1 | M161: 1
B162: 0 | C162: 1 | D162: 6 | E162: 6 | F162: 7 | G162: 1 | H162: 6 | J162: 0.5079556473 | K162: -0.7091864188 | L162: 1 | M162: 0
B163: 0 | C163: 1 | D163: 7 | E163: 4 | F163: 4 | G163: 2 | H163: 5 | J163: 0.2844665699 | K163: -0.3347269584 | L163: 0 | M163: 1
B164: 1 | C164: 1 | D164: 5 | E164: 6 | F164: 7 | G164: 2 | H164: 7 | J164: 0.3543380019 | K164: -1.037504014 | L164: 0 | M164: 0
B165: 0 | C165: 1 | D165: 7 | E165: 6 | F165: 5 | G165: 1 | H165: 6 | J165: 0.5499637115 | K165: -0.7984270584 | L165: 1 | M165: 0
B166: 0 | C166: 1 | D166: 2 | E166: 5 | F166: 6 | G166: 4 | H166: 6 | J166: 0.03469143443 | K166: -0.03530747169 | L166: 0 | M166: 1
B167: 0 | C167: 1 | D167: 4 | E167: 4 | F167: 5 | G167: 3 | H167: 7 | J167: 0.1169995284 | K167: -0.1244295443 | L167: 0 | M167: 1
B168: 1 | C168: 1 | D168: 7 | E168: 5 | F168: 7 | G168: 1 | H168: 7 | J168: 0.6403478272 | K168: -0.4457437702 | L168: 1 | M168: 1
B169: 0 | C169: 1 | D169: 7 | E169: 7 | F169: 7 | G169: 1 | H169: 7 | J169: 0.7010203264 | K169: -1.207379689 | L169: 1 | M169: 0
B170: 1 | C170: 1 | D170: 7 | E170: 7 | F170: 7 | G170: 1 | H170: 7 | J170: 0.7010203264 | K170: -0.3552183961 | L170: 1 | M170: 1
B171: 0 | C171: 1 | D171: 7 | E171: 6 | F171: 5 | G171: 3 | H171: 6 | J171: 0.3264724599 | K171: -0.395226393 | L171: 0 | M171: 1
B172: 1 | C172: 1 | D172: 6 | E172: 7 | F172: 7 | G172: 1 | H172: 7 | J172: 0.6049340759 | K172: -0.5026357923 | L172: 1 | M172: 1
B173: 0 | C173: 1 | D173: 1 | E173: 5 | F173: 7 | G173: 6 | H173: 4 | J173: 0.006297688858 | K173: -0.006317602953 | L173: 0 | M173: 1
B174: 0 | C174: 1 | D174: 6 | E174: 4 | F174: 4 | G174: 2 | H174: 7 | J174: 0.3025232458 | K174: -0.3602860932 | L174: 0 | M174: 1
B175: 1 | C175: 1 | D175: 6 | E175: 7 | F175: 7 | G175: 1 | H175: 7 | J175: 0.6049340759 | K175: -0.5026357923 | L175: 1 | M175: 1
B176: 1 | C176: 1 | D176: 7 | E176: 6 | F176: 6 | G176: 1 | H176: 7 | J176: 0.6424054597 | K176: -0.4425356175 | L176: 1 | M176: 1
B177: 0 | C177: 1 | D177: 6 | E177: 6 | F177: 4 | G177: 1 | H177: 7 | J177: 0.4756018373 | K177: -0.6455040307 | L177: 0 | M177: 1
B178: 1 | C178: 1 | D178: 4 | E178: 5 | F178: 4 | G178: 4 | H178: 4 | J178: 0.03753016525 | K178: -3.282610263 | L178: 0 | M178: 0
B179: 0 | C179: 1 | D179: 7 | E179: 7 | F179: 7 | G179: 1 | H179: 7 | J179: 0.7010203264 | K179: -1.207379689 | L179: 1 | M179: 0
B180: 0 | C180: 1 | D180: 3 | E180: 2 | F180: 2 | G180: 2 | H180: 5 | J180: 0.04071962589 | K180: -0.04157188592 | L180: 0 | M180: 1
B181: 1 | C181: 1 | D181: 7 | E181: 6 | F181: 6 | G181: 1 | H181: 7 | J181: 0.6424054597 | K181: -0.4425356175 | L181: 1 | M181: 1
B182: 0 | C182: 1 | D182: 7 | E182: 6 | F182: 5 | G182: 4 | H182: 5 | J182: 0.1910603519 | K182: -0.2120309654 | L182: 0 | M182: 1
B183: 0 | C183: 1 | D183: 6 | E183: 7 | F183: 7 | G183: 1 | H183: 6 | J183: 0.5422661066 | K183: -0.7814672825 | L183: 1 | M183: 0
B184: 1 | C184: 1 | D184: 7 | E184: 7 | F184: 6 | G184: 3 | H184: 6 | J184: 0.3874979139 | K184: -0.9480448137 | L184: 0 | M184: 0
B185: 0 | C185: 1 | D185: 5 | E185: 7 | F185: 7 | G185: 1 | H185: 7 | J185: 0.4999930964 | K185: -0.6931333734 | L185: 0 | M185: 1
B186: 1 | C186: 1 | D186: 6 | E186: 7 | F186: 7 | G186: 1 | H186: 7 | J186: 0.6049340759 | K186: -0.5026357923 | L186: 1 | M186: 1
B187: 0 | C187: 1 | D187: 6 | E187: 7 | F187: 7 | G187: 2 | H187: 7 | J187: 0.4909292843 | K187: -0.6751683415 | L187: 0 | M187: 1
B188: 0 | C188: 1 | D188: 5 | E188: 6 | F188: 7 | G188: 3 | H188: 5 | J188: 0.1714231501 | K188: -0.1880456886 | L188: 0 | M188: 1
B189: 0 | C189: 1 | D189: 5 | E189: 6 | F189: 7 | G189: 3 | H189: 6 | J189: 0.2109886201 | K189: -0.236974535 | L189: 0 | M189: 1
B190: 0 | C190: 1 | D190: 4 | E190: 7 | F190: 6 | G190: 2 | H190: 4 | J190: 0.143444916 | K190: -0.1548366504 | L190: 0 | M190: 1
B191: 0 | C191: 1 | D191: 6 | E191: 3 | F191: 4 | G191: 2 | H191: 7 | J191: 0.2742919704 | K191: -0.3206075081 | L191: 0 | M191: 1
B192: 1 | C192: 1 | D192: 7 | E192: 4 | F192: 5 | G192: 1 | H192: 7 | J192: 0.5453338835 | K192: -0.6063570416 | L192: 1 | M192: 1
B193: 0 | C193: 1 | D193: 6 | E193: 4 | F193: 5 | G193: 4 | H193: 4 | J193: 0.08308774551 | K193: -0.08674349889 | L193: 0 | M193: 1
B194: 1 | C194: 1 | D194: 7 | E194: 6 | F194: 5 | G194: 1 | H194: 7 | J194: 0.612331227 | K194: -0.4904819222 | L194: 1 | M194: 1
B195: 1 | C195: 1 | D195: 7 | E195: 5 | F195: 5 | G195: 1 | H195: 7 | J195: 0.5791971481 | K195: -0.5461123617 | L195: 1 | M195: 1
B196: 1 | C196: 1 | D196: 7 | E196: 7 | F196: 6 | G196: 1 | H196: 7 | J196: 0.6733692397 | K196: -0.3954614525 | L196: 1 | M196: 1
B197: 1 | C197: 1 | D197: 6 | E197: 6 | F197: 7 | G197: 1 | H197: 7 | J197: 0.5716100767 | K197: -0.5592982041 | L197: 1 | M197: 1
B198: 0 | C198: 1 | D198: 4 | E198: 7 | F198: 7 | G198: 2 | H198: 6 | J198: 0.2413900355 | K198: -0.2762675144 | L198: 0 | M198: 1
B199: 0 | C199: 1 | D199: 4 | E199: 6 | F199: 6 | G199: 3 | H199: 4 | J199: 0.08417211238 | K199: -0.08792682757 | L199: 0 | M199: 1
B200: 1 | C200: 1 | D200: 7 | E200: 4 | F200: 4 | G200: 1 | H200: 7 | J200: 0.513281143 | K200: -0.6669315469 | L200: 1 | M200: 1
B201: 1 | C201: 1 | D201: 7 | E201: 7 | F201: 7 | G201: 1 | H201: 7 | J201: 0.7010203264 | K201: -0.3552183961 | L201: 1 | M201: 1
... 1315 more rows

Sheet BestSub4
A1: Logistic Regression (using X2, X6, X8, X10) via Excel Solver to Maximize Log-Likelihood (Minimize Deviance)
E2: b-hat
A3: Y = 1 if recommended the resataurant, else 0 | E3: -5.007368317
A4: X2 = the entrées are delicious | E4: 0.4313380207
A5: X6 = the noise level in the restaurant is not distracting to me | E5: 0.2094881419
A6: X8 = the wait for food service is excessive | E6: -0.4634013103
A7: X10 = restaurant service personnel are courteous and friendly | E7: 0.2549392474
A9: Deviance (-2LL) | E9: =-2*SUM(M17:M1016) -> 1114.615447
A10: Akaike's Information Criterion (AIC) = | E10: =E9+2*5 -> 1124.615447
A11: Bayesian Information Criterion (BIC) = | E11: =E9+5*LOG(1000) -> 1129.615447
A13: % Correctly Classified (Training Sample) = | E13: =SUM(O17:O1016)/1000 -> 0.791
A14: % Correctly Classified (Holdout Sample) = | E14: =SUM(O1017:O1516)/500 -> 0.768
L15: Prob
A16: Customer | B16: Y | C16: X0 | D16: X2 | E16: X6 | F16: X8 | G16: X10 | L16: Y = 1 | M16: LL | N16: PRED | O16: Correct?
A17: 1 | B17: 0 | C17: 1 | D17: 7 | E17: 6 | F17: 4 | G17: 5 | L17: =1/(1+EXP(-(E$3+E$4*D17+E$5*E17+E$6*F17+E$7*G17))) -> 0.2124898018 | M17: =B17*LN(L17)+(1-B17)*LN(1-L17) -> -0.2388789583 | N17: =IF(L17>0.5,1,0) -> 0 | O17: =IF(B17=N17,1,0) -> 1
A18: 2 | B18: 0 | C18: 1 | D18: 7 | E18: 7 | F18: 3 | G18: 6 | L18: 0.405607574 | M18: -0.5202155279 | N18: 0 | O18: 1
A19: 3 | B19: 0 | C19: 1 | D19: 7 | E19: 7 | F19: 3 | G19: 7 | L19: 0.4682392273 | M19: -0.6315615662 | N19: 0 | O19: 1
A20: 4 | B20: 1 | C20: 1 | D20: 6 | E20: 6 | F20: 3 | G20: 4 | L20: 0.1775758698 | M20: -1.728357326 | N20: 0 | O20: 0
A21: 5 | B21: 1 | C21: 1 | D21: 7 | E21: 7 | F21: 5 | G21: 6 | L21: 0.2126615544 | M21: -1.548053324 | N21: 0 | O21: 0
A22: 6 | B22: 1 | C22: 1 | D22: 7 | E22: 5 | F22: 1 | G22: 7 | L22: 0.5940206915 | M22: -0.5208411261 | N22: 1 | O22: 1
A23: 7 | B23: 1 | C23: 1 | D23: 5 | E23: 7 | F23: 3 | G23: 2 | L23: 0.094098655 | M23: -2.363411526 | N23: 0 | O23: 0
A24: 8 | B24: 0 | C24: 1 | D24: 7 | E24: 7 | F24: 1 | G24: 7 | L24: 0.6898863953 | M24: -1.170816582 | N24: 1 | O24: 0
A25: 9 | B25: 1 | C25: 1 | D25: 7 | E25: 7 | F25: 1 | G25: 7 | L25: 0.6898863953 | M25: -0.3712283394 | N25: 1 | O25: 1
A26: 10 | B26: 0 | C26: 1 | D26: 7 | E26: 2 | F26: 1 | G26: 7 | L26: 0.4383521506 | M26: -0.576880228 | N26: 0 | O26: 1
A27: 11 | B27: 0 | C27: 1 | D27: 6 | E27: 7 | F27: 3 | G27: 4 | L27: 0.2102581363 | M27: -0.2360491418 | N27: 0 | O27: 1
A28: 12 | B28: 1 | C28: 1 | D28: 7 | E28: 3 | F28: 1 | G28: 7 | L28: 0.490410095 | M28: -0.7125133094 | N28: 0 | O28: 0
A29: 13 | B29: 1 | C29: 1 | D29: 7 | E29: 4 | F29: 4 | G29: 5 | L29: 0.1507208336 | M29: -1.892325937 | N29: 0 | O29: 0
A30: 14 | B30: 0 | C30: 1 | D30: 7 | E30: 6 | F30: 2 | G30: 4 | L30: 0.3456718766 | M30: -0.4241463357 | N30: 0 | O30: 1
A31: 15 | B31: 1 | C31: 1 | D31: 7 | E31: 4 | F31: 1 | G31: 6 | L31: 0.4790584006 | M31: -0.7359327671 | N31: 0 | O31: 0
A32: 16 | B32: 1 | C32: 1 | D32: 7 | E32: 6 | F32: 1 | G32: 7 | L32: 0.6433881131 | M32: -0.4410071395 | N32: 1 | O32: 1
A33: 17 | B33: 1 | C33: 1 | D33: 6 | E33: 7 | F33: 1 | G33: 7 | L33: 0.5910361028 | M33: -0.5258781758 | N33: 1 | O33: 1
A34: 18 | B34: 1 | C34: 1 | D34: 2 | E34: 3 | F34: 4 | G34: 5 | L34: 0.01638067205 | M34: -4.111653173 | N34: 0 | O34: 0
A35: 19 | B35: 1 | C35: 1 | D35: 3 | E35: 6 | F35: 4 | G35: 5 | L35: 0.04585486874 | M35: -3.082273898 | N35: 0 | O35: 0
A36: 20 | B36: 0 | C36: 1 | D36: 7 | E36: 4 | F36: 3 | G36: 4 | L36: 0.1793884122 | M36: -0.1977053779 | N36: 0 | O36: 1
A37: 21 | B37: 0 | C37: 1 | D37: 7 | E37: 6 | F37: 6 | G37: 5 | L37: 0.09649547996 | M37: -0.1014741662 | N37: 0 | O37: 1
A38: 22 | B38: 0 | C38: 1 | D38: 7 | E38: 7 | F38: 2 | G38: 5 | L38: 0.4566859489 | M38: -0.6100677633 | N38: 0 | O38: 1
A39: 23 | B39: 0 | C39: 1 | D39: 7 | E39: 6 | F39: 2 | G39: 7 | L39: 0.5316323938 | M39: -0.758501808 | N39: 1 | O39: 0
A40: 24 | B40: 1 | C40: 1 | D40: 7 | E40: 5 | F40: 1 | G40: 7 | L40: 0.5940206915 | M40: -0.5208411261 | N40: 1 | O40: 1
A41: 25 | B41: 1 | C41: 1 | D41: 7 | E41: 7 | F41: 1 | G41: 7 | L41: 0.6898863953 | M41: -0.3712283394 | N41: 1 | O41: 1
A42: 26 | B42: 0 | C42: 1 | D42: 6 | E42: 7 | F42: 1 | G42: 6 | L42: 0.5282974733 | M42: -0.7514067321 | N42: 1 | O42: 0
A43: 27 | B43: 1 | C43: 1 | D43: 7 | E43: 7 | F43: 1 | G43: 7 | L43: 0.6898863953 | M43: -0.3712283394 | N43: 1 | O43: 1
A44: 28 | B44: 1 | C44: 1 | D44: 7 | E44: 5 | F44: 1 | G44: 7 | L44: 0.5940206915 | M44: -0.5208411261 | N44: 1 | O44: 1
A45: 29 | B45: 0 | C45: 1 | D45: 2 | E45: 7 | F45: 1 | G45: 3 | L45: 0.0849544317 | M45: -0.08878141352 | N45: 0 | O45: 1
A46: 30 | B46: 1 | C46: 1 | D46: 6 | E46: 7 | F46: 1 | G46: 7 | L46: 0.5910361028 | M46: -0.5258781758 | N46: 1 | O46: 1
A47: 31 | B47: 1 | C47: 1 | D47: 6 | E47: 7 | F47: 4 | G47: 4 | L47: 0.1434690093 | M47: -1.94163623 | N47: 0 | O47: 0
A48: 32 | B48: 0 | C48: 1 | D48: 5 | E48: 7 | F48: 1 | G48: 7 | L48: 0.4842332793 | M48: -0.6621007075 | N48: 0 | O48: 1
A49: 33 | B49: 0 | C49: 1 | D49: 7 | E49: 7 | F49: 5 | G49: 7 | L49: 0.2584544732 | M49: -0.2990187211 | N49: 0 | O49: 1
A50: 34 | B50: 1 | C50: 1 | D50: 5 | E50: 5 | F50: 4 | G50: 6 | L50: 0.1064804075 | M50: -2.239794278 | N50: 0 | O50: 0
A51: 35 | B51: 0 | C51: 1 | D51: 7 | E51: 3 | F51: 1 | G51: 7 | L51: 0.490410095 | M51: -0.6741489845 | N51: 0 | O51: 1
A52: 36 | B52: 0 | C52: 1 | D52: 5 | E52: 6 | F52: 1 | G52: 5 | L52: 0.3137911403 | M52: -0.3765732373 | N52: 0 | O52: 1
A53: 37 | B53: 0 | C53: 1 | D53: 7 | E53: 3 | F53: 4 | G53: 5 | L53: 0.1258185965 | M53: -0.1344673694 | N53: 0 | O53: 1
A54: 38 | B54: 1 | C54: 1 | D54: 7 | E54: 3 | F54: 1 | G54: 7 | L54: 0.490410095 | M54: -0.7125133094 | N54: 0 | O54: 0
A55: 39 | B55: 0 | C55: 1 | D55: 6 | E55: 5 | F55: 3 | G55: 6 | L55: 0.2257497722 | M55: -0.2558601659 | N55: 0 | O55: 1
A56: 40 | B56: 1 | C56: 1 | D56: 7 | E56: 2 | F56: 1 | G56: 7 | L56: 0.4383521506 | M56: -0.8247326948 | N56: 0 | O56: 0
A57: 41 | B57: 1 | C57: 1 | D57: 7 | E57: 6 | F57: 1 | G57: 7 | L57: 0.6433881131 | M57: -0.4410071395 | N57: 1 | O57: 1
A58: 42 | B58: 0 | C58: 1 | D58: 5 | E58: 7 | F58: 3 | G58: 5 | L58: 0.182459992 | M58: -0.2014554379 | N58: 0 | O58: 1
A59: 43 | B59: 0 | C59: 1 | D59: 4 | E59: 6 | F59: 3 | G59: 2 | L59: 0.05188663584 | M59: -0.05328120143 | N59: 0 | O59: 1
A60: 44 | B60: 0 | C60: 1 | D60: 7 | E60: 5 | F60: 4 | G60: 6 | L60: 0.2201948543 | M60: -0.2487112038 | N60: 0 | O60: 1
A61: 45 | B61: 0 | C61: 1 | D61: 5 | E61: 7 | F61: 1 | G61: 7 | L61: 0.4842332793 | M61: -0.6621007075 | N61: 0 | O61: 1
A62: 46 | B62: 0 | C62: 1 | D62: 4 | E62: 7 | F62: 2 | G62: 7 | L62: 0.2773134505 | M62: -0.3247796924 | N62: 0 | O62: 1
A63: 47 | B63: 0 | C63: 1 | D63: 5 | E63: 4 | F63: 3 | G63: 4 | L63: 0.08446490407 | M63: -0.08824658034 | N63: 0 | O63: 1
A64: 48 | B64: 0 | C64: 1 | D64: 5 | E64: 6 | F64: 2 | G64: 6 | L64: 0.2707310901 | M64: -0.3157127399 | N64: 0 | O64: 1
A65: 49 | B65: 0 | C65: 1 | D65: 6 | E65: 7 | F65: 4 | G65: 5 | L65: 0.1777257707 | M65: -0.1956813272 | N65: 0 | O65: 1
A66: 50 | B66: 1 | C66: 1 | D66: 7 | E66: 7 | F66: 1 | G66: 7 | L66: 0.6898863953 | M66: -0.3712283394 | N66: 1 | O66: 1
A67: 51 | B67: 0 | C67: 1 | D67: 6 | E67: 7 | F67: 2 | G67: 6 | L67: 0.4133605151 | M67: -0.5333448132 | N67: 0 | O67: 1
A68: 52 | B68: 0 | C68: 1 | D68: 6 | E68: 7 | F68: 1 | G68: 7 | L68: 0.5910361028 | M68: -0.8941283977 | N68: 1 | O68: 0
A69: 53 | B69: 0 | C69: 1 | D69: 5 | E69: 5 | F69: 4 | G69: 5 | L69: 0.08454428519 | M69: -0.08833328872 | N69: 0 | O69: 1
A70: 54 | B70: 0 | C70: 1 | D70: 7 | E70: 7 | F70: 3 | G70: 7 | L70: 0.4682392273 | M70: -0.6315615662 | N70: 0 | O70: 1
A71: 55 | B71: 0 | C71: 1 | D71: 7 | E71: 4 | F71: 4 | G71: 6 | L71: 0.1863324594 | M71: -0.2062034232 | N71: 0 | O71: 1
A72: 56 | B72: 0 | C72: 1 | D72: 4 | E72: 7 | F72: 2 | G72: 6 | L72: 0.2292119384 | M72: -0.2603418309 | N72: 0 | O72: 1
A73: 57 | B73: 0 | C73: 1 | D73: 7 | E73: 4 | F73: 3 | G73: 2 | L73: 0.1160504439 | M73: -0.1233552812 | N73: 0 | O73: 1
A74: 58 | B74: 0 | C74: 1 | D74: 7 | E74: 4 | F74: 2 | G74: 5 | L74: 0.3095645211 | M74: -0.3704327517 | N74: 0 | O74: 1
A75: 59 | B75: 1 | C75: 1 | D75: 7 | E75: 7 | F75: 1 | G75: 6 | L75: 0.6328932282 | M75: -0.4574535468 | N75: 1 | O75: 1
A76: 60 | B76: 1 | C76: 1 | D76: 6 | E76: 7 | F76: 1 | G76: 4 | L76: 0.4021373087 | M76: -0.9109616848 | N76: 0 | O76: 0
B77: 0 | C77: 1 | D77: 7 | E77: 7 | F77: 1 | G77: 7 | L77: 0.6898863953 | M77: -1.170816582 | N77: 1 | O77: 0
B78: 1 | C78: 1 | D78: 7 | E78: 6 | F78: 2 | G78: 7 | L78: 0.5316323938 | M78: -0.6318030176 | N78: 1 | O78: 1
B79: 1 | C79: 1 | D79: 7 | E79: 6 | F79: 1 | G79: 7 | L79: 0.6433881131 | M79: -0.4410071395 | N79: 1 | O79: 1
B80: 1 | C80: 1 | D80: 6 | E80: 6 | F80: 1 | G80: 7 | L80: 0.5396073617 | M80: -0.6169135119 | N80: 1 | O80: 1
B81: 1 | C81: 1 | D81: 6 | E81: 7 | F81: 1 | G81: 7 | L81: =1/(1+EXP(-(E$3+E$4*D81+E$5*E81+E$6*F81+E$7*G81))) -> 0.5910361028 | M81: =B81*LN(L81)+(1-B81)*LN(1-L81) -> -0.5258781758 | N81: =IF(L81>0.5,1,0) -> 1 | O81: =IF(B81=N81,1,0) -> 1
B82: 0 | C82: 1 | D82: 7 | E82: 7 | F82: 2 | G82: 7 | L82: 0.5832639869 | M82: -0.8753023197 | N82: 1 | O82: 0
B83: 1 | C83: 1 | D83: 7 | E83: 7 | F83: 1 | G83: 7 | L83: 0.6898863953 | M83: -0.3712283394 | N83: 1 | O83: 1
B84: 1 | C84: 1 | D84: 7 | E84: 7 | F84: 3 | G84: 6 | L84: 0.405607574 | M84: -0.9023691533 | N84: 0 | O84: 0
B85: 0 | C85: 1 | D85: 2 | E85: 4 | F85: 5 | G85: 4 | L85: 0.009912573278 | M85: -0.009962029932 | N85: 0 | O85: 1
B86: 1 | C86: 1 | D86: 1 | E86: 3 | F86: 4 | G86: 3 | L86: 0.006455455118 | M86: -5.042829751 | N86: 0 | O86: 0
B87: 0 | C87: 1 | D87: 6 | E87: 5 | F87: 5 | G87: 2 | L87: 0.0399626263 | M87: -0.04078306434 | N87: 0 | O87: 1
B88: 0 | C88: 1 | D88: 5 | E88: 7 | F88: 3 | G88: 6 | L88: 0.2235964313 | M88: -0.2530828312 | N88: 0 | O88: 1
B89: 0 | C89: 1 | D89: 7 | E89: 5 | F89: 2 | G89: 7 | L89: 0.4793144758 | M89: -0.6526090199 | N89: 0 | O89: 1
B90: 0 | C90: 1 | D90: 7 | E90: 7 | F90: 3 | G90: 7 | L90: 0.4682392273 | M90: -0.6315615662 | N90: 0 | O90: 1
B91: 1 | C91: 1 | D91: 7 | E91: 4 | F91: 1 | G91: 7 | L91: 0.5426768615 | M91: -0.6112412346 | N91: 1 | O91: 1
B92: 0 | C92: 1 | D92: 5 | E92: 6 | F92: 1 | G92: 7 | L92: 0.432274815 | M92: -0.5661178065 | N92: 0 | O92: 1
B93: 0 | C93: 1 | D93: 6 | E93: 6 | F93: 1 | G93: 7 | L93: 0.5396073617 | M93: -0.7756755919 | N93: 1 | O93: 0
B94: 0 | C94: 1 | D94: 7 | E94: 6 | F94: 4 | G94: 6 | L94: 0.258257868 | M94: -0.2987536273 | N94: 0 | O94: 1
B95: 0 | C95: 1 | D95: 7 | E95: 5 | F95: 1 | G95: 5 | L95: 0.4677282914 | M95: -0.6306011896 | N95: 0 | O95: 1
B96: 0 | C96: 1 | D96: 7 | E96: 7 | F96: 1 | G96: 6 | L96: 0.6328932282 | M96: -1.002102542 | N96: 1 | O96: 0
B97: 1 | C97: 1 | D97: 7 | E97: 6 | F97: 1 | G97: 7 | L97: 0.6433881131 | M97: -0.4410071395 | N97: 1 | O97: 1
B98: 0 | C98: 1 | D98: 6 | E98: 5 | F98: 1 | G98: 7 | L98: 0.4873212031 | M98: -0.6681057568 | N98: 0 | O98: 1
B99: 0 | C99: 1 | D99: 5 | E99: 5 | F99: 2 | G99: 7 | L99: 0.2797976818 | M99: -0.328223109 | N99: 0 | O99: 1
B100: 0 | C100: 1 | D100: 6 | E100: 7 | F100: 2 | G100: 4 | L100: 0.2973458579 | M100: -0.3528904825 | N100: 0 | O100: 1
B101: 0 | C101: 1 | D101: 6 | E101: 5 | F101: 3 | G101: 5 | L101: 0.1843112149 | M101: -0.2037223876 | N101: 0 | O101: 1
B102: 0 | C102: 1 | D102: 4 | E102: 7 | F102: 2 | G102: 6 | L102: 0.2292119384 | M102: -0.2603418309 | N102: 0 | O102: 1
B103: 1 | C103: 1 | D103: 7 | E103: 7 | F103: 1 | G103: 7 | L103: 0.6898863953 | M103: -0.3712283394 | N103: 1 | O103: 1
B104: 1 | C104: 1 | D104: 7 | E104: 7 | F104: 2 | G104: 7 | L104: 0.5832639869 | M104: -0.5391153874 | N104: 1 | O104: 1
B105: 1 | C105: 1 | D105: 7 | E105: 6 | F105: 2 | G105: 7 | L105: 0.5316323938 | M105: -0.6318030176 | N105: 1 | O105: 1
B106: 0 | C106: 1 | D106: 7 | E106: 6 | F106: 1 | G106: 7 | L106: 0.6433881131 | M106: -1.03110724 | N106: 1 | O106: 0
B107: 1 | C107: 1 | D107: 7 | E107: 7 | F107: 1 | G107: 7 | L107: 0.6898863953 | M107: -0.3712283394 | N107: 1 | O107: 1
B108: 0 | C108: 1 | D108: 7 | E108: 3 | F108: 3 | G108: 7 | L108: 0.2758448799 | M108: -0.3227496553 | N108: 0 | O108: 1
B109: 0 | C109: 1 | D109: 5 | E109: 4 | F109: 1 | G109: 7 | L109: 0.3336878622 | M109: -0.4059970429 | N109: 0 | O109: 1
B110: 0 | C110: 1 | D110: 7 | E110: 7 | F110: 3 | G110: 6 | L110: 0.405607574 | M110: -0.5202155279 | N110: 0 | O110: 1
B111: 0 | C111: 1 | D111: 7 | E111: 6 | F111: 2 | G111: 5 | L111: 0.4053602205 | M111: -0.5197994695 | N111: 0 | O111: 1
B112: 0 | C112: 1 | D112: 7 | E112: 6 | F112: 4 | G112: 6 | L112: 0.258257868 | M112: -0.2987536273 | N112: 0 | O112: 1
B113: 1 | C113: 1 | D113: 7 | E113: 7 | F113: 1 | G113: 7 | L113: 0.6898863953 | M113: -0.3712283394 | N113: 1 | O113: 1
B114: 0 | C114: 1 | D114: 5 | E114: 7 | F114: 2 | G114: 7 | L114: 0.3713361192 | M114: -0.4641585358 | N114: 0 | O114: 1
B115: 1 | C115: 1 | D115: 7 | E115: 7 | F115: 1 | G115: 7 | L115: 0.6898863953 | M115: -0.3712283394 | N115: 1 | O115: 1
B116: 0 | C116: 1 | D116: 5 | E116: 7 | F116: 2 | G116: 5 | L116: 0.261851475 | M116: -0.3036102213 | N116: 0 | O116: 1
B117: 0 | C117: 1 | D117: 4 | E117: 7 | F117: 1 | G117: 7 | L117: 0.3788515133 | M117: -0.4761851166 | N117: 0 | O117: 1
B118: 0 | C118: 1 | D118: 7 | E118: 5 | F118: 1 | G118: 5 | L118: 0.4677282914 | M118: -0.6306011896 | N118: 0 | O118: 1
B119: 0 | C119: 1 | D119: 4 | E119: 7 | F119: 4 | G119: 6 | L119: 0.1053099916 | M119: -0.11127798 | N119: 0 | O119: 1
B120: 0 | C120: 1 | D120: 5 | E120: 7 | F120: 4 | G120: 5 | L120: 0.1231243659 | M120: -0.131390105 | N120: 0 | O120: 1
B121: 0 | C121: 1 | D121: 7 | E121: 2 | F121: 1 | G121: 7 | L121: 0.4383521506 | M121: -0.576880228 | N121: 0 | O121: 1
B122: 0 | C122: 1 | D122: 6 | E122: 6 | F122: 1 | G122: 5 | L122: 0.4131117196 | M122: -0.5329208003 | N122: 0 | O122: 1
B123: 0 | C123: 1 | D123: 5 | E123: 4 | F123: 3 | G123: 6 | L123: 0.1331610285 | M123: -0.1429020501 | N123: 0 | O123: 1
B124: 0 | C124: 1 | D124: 6 | E124: 4 | F124: 2 | G124: 2 | L124: 0.1193802913 | M124: -0.127129405 | N124: 0 | O124: 1
B125: 1 | C125: 1 | D125: 6 | E125: 7 | F125: 1 | G125: 7 | L125: 0.5910361028 | M125: -0.5258781758 | N125: 1 | O125: 1
B126: 0 | C126: 1 | D126: 5 | E126: 6 | F126: 5 | G126: 6 | L126: 0.08462373402 | M126: -0.08842007859 | N126: 0 | O126: 1
B127: 1 | C127: 1 | D127: 4 | E127: 6 | F127: 1 | G127: 3 | L127: 0.151398926 | M127: -1.887837031 | N127: 0 | O127: 0
B128: 1 | C128: 1 | D128: 7 | E128: 7 | F128: 1 | G128: 7 | L128: 0.6898863953 | M128: -0.3712283394 | N128: 1 | O128: 1
B129: 1 | C129: 1 | D129: 7 | E129: 6 | F129: 4 | G129: 5 | L129: 0.2124898018 | M129: -1.548861283 | N129: 0 | O129: 0
B130: 1 | C130: 1 | D130: 7 | E130: 5 | F130: 1 | G130: 7 | L130: 0.5940206915 | M130: -0.5208411261 | N130: 1 | O130: 1
B131: 1 | C131: 1 | D131: 7 | E131: 7 | F131: 1 | G131: 7 | L131: 0.6898863953 | M131: -0.3712283394 | N131: 1 | O131: 1
B132: 0 | C132: 1 | D132: 3 | E132: 7 | F132: 1 | G132: 7 | L132: 0.2837849292 | M132: -0.3337747789 | N132: 0 | O132: 1
B133: 0 | C133: 1 | D133: 7 | E133: 7 | F133: 1 | G133: 7 | L133: 0.6898863953 | M133: -1.170816582 | N133: 1 | O133: 0
B134: 0 | C134: 1 | D134: 7 | E134: 5 | F134: 1 | G134: 6 | L134: 0.5313768925 | M134: -0.7579564423 | N134: 1 | O134: 0
B135: 0 | C135: 1 | D135: 4 | E135: 7 | F135: 3 | G135: 4 | L135: 0.1010105636 | M135: -0.106483995 | N135: 0 | O135: 1
B136: 0 | C136: 1 | D136: 7 | E136: 5 | F136: 1 | G136: 6 | L136: 0.5313768925 | M136: -0.7579564423 | N136: 1 | O136: 0
B137: 0 | C137: 1 | D137: 7 | E137: 7 | F137: 1 | G137: 7 | L137: 0.6898863953 | M137: -1.170816582 | N137: 1 | O137: 0
B138: 0 | C138: 1 | D138: 6 | E138: 4 | F138: 1 | G138: 5 | L138: 0.3164590541 | M138: -0.3804687184 | N138: 0 | O138: 1
B139: 0 | C139: 1 | D139: 6 | E139: 7 | F139: 1 | G139: 3 | L139: 0.3426500711 | M139: -0.419538786 | N139: 0 | O139: 1
B140: 1 | C140: 1 | D140: 7 | E140: 7 | F140: 1 | G140: 7 | L140: 0.6898863953 | M140: -0.3712283394 | N140: 1 | O140: 1
B141: 1 | C141: 1 | D141: 7 | E141: 5 | F141: 5 | G141: 4 | L141: 0.09640605922 | M141: -2.339186224 | N141: 0 | O141: 0
B142: 0 | C142: 1 | D142: 7 | E142: 4 | F142: 7 | G142: 6 | L142: 0.05395073692 | M142: -0.05546063615 | N142: 0 | O142: 1
B143: 1 | C143: 1 | D143: 7 | E143: 7 | F143: 2 | G143: 6 | L143: 0.520300755 | M143: -0.6533482595 | N143: 1 | O143: 1
B144: 1 | C144: 1 | D144: 7 | E144: 7 | F144: 1 | G144: 7 | L144: 0.6898863953 | M144: -0.3712283394 | N144: 1 | O144: 1
B145: 1 | C145: 1 | D145: 7 | E145: 7 | F145: 1 | G145: 7 | L145: =1/(1+EXP(-(E$3+E$4*D145+E$5*E145+E$6*F145+E$7*G145))) -> 0.6898863953 | M145: =B145*LN(L145)+(1-B145)*LN(1-L145) -> -0.3712283394 | N145: =IF(L145>0.5,1,0) -> 1 | O145: =IF(B145=N145,1,0) -> 1
B146: 1 | C146: 1 | D146: 7 | E146: 4 | F146: 1 | G146: 7 | L146: 0.5426768615 | M146: -0.6112412346 | N146: 1 | O146: 1
B147: 1 | C147: 1 | D147: 7 | E147: 7 | F147: 1 | G147: 7 | L147: 0.6898863953 | M147: -0.3712283394 | N147: 1 | O147: 1
B148: 1 | C148: 1 | D148: 6 | E148: 5 | F148: 3 | G148: 3 | L148: 0.1194882038 | M148: -2.124537626 | N148: 0 | O148: 0
B149: 1 | C149: 1 | D149: 7 | E149: 7 | F149: 1 | G149: 7 | L149: 0.6898863953 | M149: -0.3712283394 | N149: 1 | O149: 1
B150: 1 | C150: 1 | D150: 7 | E150: 7 | F150: 1 | G150: 7 | L150: 0.6898863953 | M150: -0.3712283394 | N150: 1 | O150: 1
B151: 0 | C151: 1 | D151: 4 | E151: 5 | F151: 4 | G151: 3 | L151: 0.03477833905 | M151: -0.03539750356 | N151: 0 | O151: 1
B152: 0 | C152: 1 | D152: 7 | E152: 7 | F152: 1 | G152: 7 | L152: 0.6898863953 | M152: -1.170816582 | N152: 1 | O152: 0
B153: 1 | C153: 1 | D153: 7 | E153: 4 | F153: 1 | G153: 7 | L153: 0.5426768615 | M153: -0.6112412346 | N153: 1 | O153: 1
B154: 1 | C154: 1 | D154: 7 | E154: 6 | F154: 1 | G154: 6 | L154: 0.5830145596 | M154: -0.5395431194 | N154: 1 | O154: 1
B155: 1 | C155: 1 | D155: 7 | E155: 5 | F155: 1 | G155: 7 | L155: 0.5940206915 | M155: -0.5208411261 | N155: 1 | O155: 1
B156: 1 | C156: 1 | D156: 7 | E156: 5 | F156: 1 | G156: 7 | L156: 0.5940206915 | M156: -0.5208411261 | N156: 1 | O156: 1
B157: 0 | C157: 1 | D157: 6 | E157: 5 | F157: 1 | G157: 3 | L157: 0.255311232 | M157: -0.294788909 | N157: 0 | O157: 1
B158: 1 | C158: 1 | D158: 7 | E158: 7 | F158: 1 | G158: 7 | L158: 0.6898863953 | M158: -0.3712283394 | N158: 1 | O158: 1
B159: 0 | C159: 1 | D159: 4 | E159: 5 | F159: 1 | G159: 4 | L159: 0.1573313346 | M159: -0.1711814405 | N159: 0 | O159: 1
B160: 0 | C160: 1 | D160: 4 | E160: 7 | F160: 2 | G160: 4 | L160: 0.151530801 | M160: -0.1643214956 | N160: 0 | O160: 1
B161: 1 | C161: 1 | D161: 7 | E161: 7 | F161: 1 | G161: 6 | L161: 0.6328932282 | M161: -0.4574535468 | N161: 1 | O161: 1
B162: 0 | C162: 1 | D162: 6 | E162: 7 | F162: 1 | G162: 6 | L162: 0.5282974733 | M162: -0.7514067321 | N162: 1 | O162: 0
B163: 0 | C163: 1 | D163: 7 | E163: 4 | F163: 2 | G163: 5 | L163: 0.3095645211 | M163: -0.3704327517 | N163: 0 | O163: 1
B164: 1 | C164: 1 | D164: 5 | E164: 7 | F164: 2 | G164: 7 | L164: 0.3713361192 | M164: -0.9906476449 | N164: 0 | O164: 0
B165: 0 | C165: 1 | D165: 7 | E165: 5 | F165: 1 | G165: 6 | L165: 0.5313768925 | M165: -0.7579564423 | N165: 1 | O165: 0
B166: 0 | C166: 1 | D166: 2 | E166: 6 | F166: 4 | G166: 6 | L166: 0.03872656205 | M166: -0.03949637567 | N166: 0 | O166: 1
B167: 0 | C167: 1 | D167: 4 | E167: 5 | F167: 3 | G167: 7 | L167: 0.1370270821 | M167: -0.1473719697 | N167: 0 | O167: 1
B168: 1 | C168: 1 | D168: 7 | E168: 7 | F168: 1 | G168: 7 | L168: 0.6898863953 | M168: -0.3712283394 | N168: 1 | O168: 1
B169: 0 | C169: 1 | D169: 7 | E169: 7 | F169: 1 | G169: 7 | L169: 0.6898863953 | M169: -1.170816582 | N169: 1 | O169: 0
B170: 1 | C170: 1 | D170: 7 | E170: 7 | F170: 1 | G170: 7 | L170: 0.6898863953 | M170: -0.3712283394 | N170: 1 | O170: 1
B171: 0 | C171: 1 | D171: 7 | E171: 5 | F171: 3 | G171: 6 | L171: 0.3097838723 | M171: -0.3707505018 | N171: 0 | O171: 1
B172: 1 | C172: 1 | D172: 6 | E172: 7 | F172: 1 | G172: 7 | L172: 0.5910361028 | M172: -0.5258781758 | N172: 1 | O172: 1
B173: 0 | C173: 1 | D173: 1 | E173: 7 | F173: 6 | G173: 4 | L173: 0.007612937028 | M173: -0.007642063351 | N173: 0 | O173: 1
B174: 0 | C174: 1 | D174: 6 | E174: 4 | F174: 2 | G174: 7 | L174: 0.3265973195 | M174: -0.3954117917 | N174: 0 | O174: 1
B175: 1 | C175: 1 | D175: 6 | E175: 7 | F175: 1 | G175: 7 | L175: 0.5910361028 | M175: -0.5258781758 | N175: 1 | O175: 1
B176: 1 | C176: 1 | D176: 7 | E176: 6 | F176: 1 | G176: 7 | L176: 0.6433881131 | M176: -0.4410071395 | N176: 1 | O176: 1
B177: 0 | C177: 1 | D177: 6 | E177: 4 | F177: 1 | G177: 7 | L177: 0.4353110529 | M177: -0.5714802356 | N177: 0 | O177: 1
B178: 1 | C178: 1 | D178: 4 | E178: 4 | F178: 4 | G178: 4 | L178: 0.03633676275 | M178: -3.314925302 | N178: 0 | O178: 0
B179: 0 | C179: 1 | D179: 7 | E179: 7 | F179: 1 | G179: 7 | L179: 0.6898863953 | M179: -1.170816582 | N179: 1 | O179: 0
B180: 0 | C180: 1 | D180: 3 | E180: 2 | F180: 2 | G180: 5 | L180: 0.04990293405 | M180: -0.05119112492 | N180: 0 | O180: 1
B181: 1 | C181: 1 | D181: 7 | E181: 6 | F181: 1 | G181: 7 | L181: 0.6433881131 | M181: -0.4410071395 | N181: 1 | O181: 1
B182: 0 | C182: 1 | D182: 7 | E182: 5 | F182: 4 | G182: 5 | L182: 0.1795395091 | M182: -0.1978895221 | N182: 0 | O182: 1
B183: 0 | C183: 1 | D183: 6 | E183: 7 | F183: 1 | G183: 6 | L183: 0.5282974733 | M183: -0.7514067321 | N183: 1 | O183: 0
B184: 1 | C184: 1 | D184: 7 | E184: 6 | F184: 3 | G184: 6 | L184: 0.3562582454 | M184: -1.032099403 | N184: 0 | O184: 0
B185: 0 | C185: 1 | D185: 5 | E185: 7 | F185: 1 | G185: 7 | L185: 0.4842332793 | M185: -0.6621007075 | N185: 0 | O185: 1
B186: 1 | C186: 1 | D186: 6 | E186: 7 | F186: 1 | G186: 7 | L186: 0.5910361028 | M186: -0.5258781758 | N186: 1 | O186: 1
B187: 0 | C187: 1 | D187: 6 | E187: 7 | F187: 2 | G187: 7 | L187: 0.476230159 | M187: -0.6467029259 | N187: 0 | O187: 1
B188: 0 | C188: 1 | D188: 5 | E188: 7 | F188: 3 | G188: 5 | L188: 0.182459992 | M188: -0.2014554379 | N188: 0 | O188: 1
B189: 0 | C189: 1 | D189: 5 | E189: 7 | F189: 3 | G189: 6 | L189: 0.2235964313 | M189: -0.2530828312 | N189: 0 | O189: 1
B190: 0 | C190: 1 | D190: 4 | E190: 6 | F190: 2 | G190: 4 | L190: 0.1265146757 | M190: -0.1352639506 | N190: 0 | O190: 1
B191: 0 | C191: 1 | D191: 6 | E191: 4 | F191: 2 | G191: 7 | L191: 0.3265973195 | M191: -0.3954117917 | N191: 0 | O191: 1
B192: 1 | C192: 1 | D192: 7 | E192: 5 | F192: 1 | G192: 7 | L192: 0.5940206915 | M192: -0.5208411261 | N192: 1 | O192: 1
B193: 0 | C193: 1 | D193: 6 | E193: 5 | F193: 4 | G193: 4 | L193: 0.09923552675 | M193: -0.1045114615 | N193: 0 | O193: 1
B194: 1 | C194: 1 | D194: 7 | E194: 5 | F194: 1 | G194: 7 | L194: 0.5940206915 | M194: -0.5208411261 | N194: 1 | O194: 1
B195: 1 | C195: 1 | D195: 7 | E195: 5 | F195: 1 | G195: 7 | L195: 0.5940206915 | M195: -0.5208411261 | N195: 1 | O195: 1
B196: 1 | C196: 1 | D196: 7 | E196: 6 | F196: 1 | G196: 7 | L196: 0.6433881131 | M196: -0.4410071395 | N196: 1 | O196: 1
B197: 1 | C197: 1 | D197: 6 | E197: 7 | F197: 1 | G197: 7 | L197: 0.5910361028 | M197: -0.5258781758 | N197: 1 | O197: 1
B198: 0 | C198: 1 | D198: 4 | E198: 7 | F198: 2 | G198: 6 | L198: 0.2292119384 | M198: -0.2603418309 | N198: 0 | O198: 1
B199: 0 | C199: 1 | D199: 4 | E199: 6 | F199: 3 | G199: 4 | L199: 0.08351386109 | M199: -0.08720833576 | N199: 0 | O199: 1
B200: 1 | C200: 1 | D200: 7 | E200: 4 | F200: 1 | G200: 7 | L200: 0.5426768615 | M200: -0.6112412346 | N200: 1 | O200: 1
B201: 1 | C201: 1 | D201: 7 | E201: 7 | F201: 1 | G201: 7 | L201: 0.6898863953 | M201: -0.3712283394 | N201: 1 | O201: 1
B202: 1 | C202: 1 | D202: 3 | E202: 6 | F202: 3 | G202: 5 | L202: 0.07096674832 | M202: -2.645543845 | N202: 0 | O202: 0
... 1314 more rows
